{"text_format":"1","workbook":"xlsx","n_sheets":3,"sheets":["Um skjalið","Samantekt","Útreikningar"],"not_rendered":{"charts":2,"images":1,"macros":1,"external_links":0,"defined_names":23,"comments":0,"pivot_tables":0},"unopened":[],"bounds":{"document_bytes":16777216,"sheet_cells":100000,"rows_first":2000,"rows_last":500,"rows_between":2000,"halvings":0,"cell_chars":16384,"cell_head_chars":4096},"cells_cut":0,"cells_raw":0,"read":"whole","date_system":"1900"}

{"sheet":"Um skjalið","index":0,"n_rows":19,"n_cols":3,"rows_kept":19,"cut":false,"hidden":false,"merged":[]}
[]
[]
[null,"Reiknilíkan KPMG v/ áhrifa af breytingu laga um atvinnutryggingar"]
[null,"Útgáfunúmer:","1.0"]
[null,"Útgáfudagur:","2020-03-21"]
[]
[null,"Litir reita (e. cell colour)"]
[null,"Forsendureitir eru gráir"]
[null,"Hvítir reitir innihalda útreikning eða föst gildi"]
[]
[null,"Vísanir"]
[null,"Lög og reglur"]
[null,"Lög um atvinnuleysistryggingar"]
[null,"Lög um Ábyrgðasjóð launa"]
[null,"Lög um breytingu á lögum um atvinnuleysistryggingar og lögum um Ábyrgðasjóð launa (minnkað starfshlutfall)"]
[]
[null,"KPMG"]
[null,"Heimasíða KPMG - Skatta- og lögfræðileg álitamál vegna áhrifa COVID-19"]
[null,"Heimasíða KPMG - Stýring í ólgusjó"]

{"sheet":"Samantekt","index":1,"n_rows":39,"n_cols":31,"rows_kept":39,"cut":false,"hidden":false,"merged":[]}
[]
[null,null,null,null,null,null,null,null,null,null,null,null,null,null,null,null,null,null,null,null,null,null,null,null,null,null,null,null,"Fyrir gröf >"]
[null,"Samantekt á heildaráhrifum"]
[null,"Liður","Fyrir","Eftir","Áhrif","%"]
[null,"Laun starfsmanna frá launagreiðanda",{"$f":"+SUM(Launatafla[Meðal heildarlaun sl. 3M fyrir skatta])","v":71400000},{"$f":"+SUM(Launatafla[Laun frá launagreiðanda])","v":36210000},{"$f":"+D5-C5","v":-35190000},{"$f":"+IFERROR((D5-C5)/C5,\"-\")","v":-0.49285714285714288},null,null,null,null,null,null,null,null,null,null,null,null,null,null,null,null,null,null,null,null,null,null,null,"Heildarlaun með bótum",{"$f":"D17","v":50988092.199999996}]
[null,null,null,null,null,null,null,null,null,null,null,null,null,null,null,null,null,null,null,null,null,null,null,null,null,null,null,null,null,"Töpuð heildarlaun",{"$f":"-E17","v":20411907.800000004}]
[null,"Launatengd gjöld"]
[null,"Skylduframlag launagreiðanda í lífeyrissjóð",{"$f":"+C$5*Mótframl_lífeyrissj","v":8211000},{"$f":"+D$5*Mótframl_lífeyrissj","v":4164150},{"$f":"+D8-C8","v":-4046850},{"$f":"+IFERROR((D8-C8)/C8,\"-\")","v":-0.49285714285714288},null,null,null,null,null,null,null,null,null,null,null,null,null,null,null,null,null,null,null,null,null,null,null,"Kostnaður launagreiðanda",{"$f":"+D15","v":44305560.225000001}]
[null,"Mótframlag launagreiðanda í séreignasjóð",{"$f":"+C$5*Mótframl_séreignasj","v":1428000},{"$f":"+D$5*Mótframl_séreignasj","v":724200},{"$f":"+D9-C9","v":-703800},-0.49285714285714288,null,null,null,null,null,null,null,null,null,null,null,null,null,null,null,null,null,null,null,null,null,null,null,"Lækkun kostnaðar launagreiðanda",{"$f":"-E15","v":43057516.274999999}]
[null,"Endurhæfingarsjóður",{"$f":"+C$5*Endurhæfingarsj","v":71400},{"$f":"+D$5*Endurhæfingarsj","v":36210},-35190,-0.49285714285714288]
[null,"Tryggingagjald",{"$f":"+SUM(C5,C8:C9)*Tryggingagj","v":5145976.5},{"$f":"+SUM(D5,D8:D9)*Tryggingagj","v":2609745.2250000001},-2536231.2749999999,-0.49285714285714283]
[null,"Mótframlag launagreiðanda í stéttarfélag",{"$f":"+C$5*Mótframl_stéttarf","v":1106700},{"$f":"+D$5*Mótframl_stéttarf","v":561255},-545445,-0.49285714285714288]
[null,"Launatengd gjöld alls",{"$f":"SUM(C8:C12)","v":15963076.5},{"$f":"SUM(D8:D12)","v":8095560.2249999996},-7867516.2750000004,-0.49285714285714288]
[]
[null,"Kostnaður launagreiðanda alls",{"$f":"+C5+C13","v":87363076.5},{"$f":"+D5+D13","v":44305560.225000001},-43057516.274999999,{"$f":"+IFERROR((D15-C15)/C15,\"-\")","v":-0.49285714285714283}]
[]
[null,"Heildarlaun starfsmanna fyrir skatta",{"$f":"+SUM(Launatafla[Meðal heildarlaun sl. 3M fyrir skatta])","v":71400000},{"$f":"+SUM(Launatafla[Heildarlaun])","v":50988092.199999996},-20411907.800000004,{"$f":"+IFERROR((D17-C17)/C17,\"-\")","v":-0.28588106162464993}]
[]
[null,"Starfsmaður 1","<< Veldu starfsmann hér"]
[]
[null,"Samantekt á áhrifum fyrir einstaka starfsmenn"]
[null,"Liður","Fyrir","Eftir","Áhrif","%"]
[null,"Heildarlaun fyrir skatta",{"$f":"+SUMIFS(Launatafla[Meðal heildarlaun sl. 3M fyrir skatta],Launatafla[Starfsmaður],Valinn_starfsm)","v":300000},{"$f":"+SUMIFS(Launatafla[Heildarlaun],Launatafla[Starfsmaður],Valinn_starfsm)","v":300000},{"$f":"+D23-C23","v":0},{"$f":"+IFERROR((D23-C23)/C23,\"-\")","v":0}]
[]
[null,"Iðgjöld starfsmanns"]
[null,"Lífeyrissjóður",{"$f":"+C23*Skylduframlag_launþ","v":12000},{"$f":"+D23*Skylduframlag_launþ","v":12000},{"$f":"+D26-C26","v":0},{"$f":"+IFERROR((D26-C26)/C26,\"-\")","v":0}]
[null,"Séreignasjóður",{"$f":"+C23*Séreignasj_launþ","v":12000},{"$f":"+D23*Séreignasj_launþ","v":12000},0,0]
[null,"Stéttarfélag",{"$f":"+C23*Stéttarf_launþ","v":2100},{"$f":"+D23*Stéttarf_launþ","v":2100},0,0]
[null,"Samtals",{"$f":"SUM(C26:C28)","v":26100},{"$f":"SUM(D26:D28)","v":26100},0,0]
[]
[null,"Tekjuskattur"]
[null,"Tekjuskattsstofn",{"$f":"+C23-SUM(C26:C27)","v":276000},{"$f":"+D23-SUM(D26:D27)","v":276000},{"$f":"+D32-C32","v":0},{"$f":"+IFERROR((D32-C32)/C32,\"-\")","v":0}]
[null,"1. skattþrep",{"$f":"+MIN(C32,Fjárhæðarmörk1)*Skattþrep1","v":96710.399999999994},{"$f":"+MIN(D32,Fjárhæðarmörk1)*Skattþrep1","v":96710.399999999994},0,0]
[null,"2. skattþrep",{"$f":"MAX(MIN(C32-Fjárhæðarmörk1,Fjárhæðarmörk2-Fjárhæðarmörk1+1)*Skattþrep2,0)","v":0},{"$f":"MAX(MIN(D32-Fjárhæðarmörk1,Fjárhæðarmörk2-Fjárhæðarmörk1+1)*Skattþrep2,0)","v":0},0,"-"]
[null,"3. skattþrep",{"$f":"MAX(C32-Fjárhæðarmörk3,0)*Skattþrep3","v":0},{"$f":"MAX(D32-Fjárhæðarmörk3,0)*Skattþrep3","v":0},0,"-"]
[null,"Persónuafsláttur",{"$f":"+Persónuafsláttur","v":54628},{"$f":"+Persónuafsláttur","v":54628},0,0]
[null,"Tekjuskattur til greiðslu",{"$f":"+MAX(SUM(C33:C35)-C36,0)","v":42082.399999999994},{"$f":"+MAX(SUM(D33:D35)-D36,0)","v":42082.399999999994},0,0]
[]
[null,"Greidd laun",{"$f":"+C23-C29-C37","v":231817.60000000001},{"$f":"+D23-D29-D37","v":231817.60000000001},0,{"$f":"+IFERROR((D39-C39)/C39,\"-\")","v":0}]

{"sheet":"Útreikningar","index":2,"n_rows":115,"n_cols":19,"rows_kept":115,"cut":false,"hidden":false,"merged":[[30,1,31,2]]}
[]
[]
[null,"Forsendur útreikninga",null,null,"Áhrif breytinga laga um atvinnuleysistryggingar"]
[null,null,null,null,"Forsendur notanda",null,null,null,"Útreikningar til grundvalla skerðinga",null,null,null,"Skerðingar",null,null,"Atvinnuleysisbætur",null,"Heildarlaun"]
[null,null,"kr. / %",null,"Starfsmaður","Meðal heildarlaun sl. 3M fyrir skatta","Starfshlutfall fyrir","Skerðing starfshlutfalls","Starfshlutfall eftir","Atvinnuleysisbætur fyrir skerðingu","Laun frá launagreiðanda","Laun með bótum án skerðingar","Skerðing v/ hámarkshlutfalls","Skerðing v/ hámarkslauna","Skerðing v/ samtals","Viðbót v/ tryggðra lágmarkslauna","Laun frá ríkissjóði","Heildarlaun","% af fyrri launum"]
[null,"Forsendur frumvarps",null,null,"Starfsmaður 1",300000,1,0.2,{"$f":"+Launatafla[[#This Row],[Starfshlutfall fyrir]]-Launatafla[[#This Row],[Skerðing starfshlutfalls]]","v":0.8},{"$f":"+IF(OR(Launatafla[[#This Row],[Skerðing starfshlutfalls]]>Hámarkslækkun_starfshl,Launatafla[[#This Row],[Skerðing starfshlutfalls]]<Lágmarkslækkun_starfshl),0,Atvinnuleysisbætur*Launatafla[[#This Row],[Skerðing starfshlutfalls]])","v":91280.8},{"$f":"IFERROR(Launatafla[[#This Row],[Meðal heildarlaun sl. 3M fyrir skatta]]/Launatafla[[#This Row],[Starfshlutfall fyrir]],0)*(Launatafla[[#This Row],[Starfshlutfall fyrir]]-Launatafla[[#This Row],[Skerðing starfshlutfalls]])","v":240000},{"$f":"+Launatafla[[#This Row],[Atvinnuleysisbætur fyrir skerðingu]]+Launatafla[[#This Row],[Laun frá launagreiðanda]]","v":331280.8},{"$f":"-MAX(Launatafla[[#This Row],[Laun með bótum án skerðingar]]-Launatafla[[#This Row],[Meðal heildarlaun sl. 3M fyrir skatta]]*Hámarkshlutfall_af_launum,0)","v":-61280.799999999988},{"$f":"-MIN(MAX(Launatafla[[#This Row],[Laun með bótum án skerðingar]]-Hámarkslaun,0),Launatafla[[#This Row],[Atvinnuleysisbætur fyrir skerðingu]])","v":0},{"$f":"+MIN(Launatafla[[#This Row],[Skerðing v/ hámarkshlutfalls]:[Skerðing v/ hámarkslauna]])","v":-61280.799999999988},{"$f":"+IF(Launatafla[[#This Row],[Atvinnuleysisbætur fyrir skerðingu]]=0,0,\nMAX(MIN(Lágmarkslaun_fullt_starf,Launatafla[[#This Row],[Meðal heildarlaun sl. 3M fyrir skatta]]/Launatafla[[#This Row],[Starfshlutfall fyrir]])*Launatafla[[#This Row],[Starfshlutfall fyrir]]-(Launatafla[[#This Row],[Laun frá launagreiðanda]]+Launatafla[[#This Row],[Atvinnuleysisbætur fyrir skerðingu]]+Launatafla[[#This Row],[Skerðing v/ samtals]]),0))","v":30000},{"$f":"+Launatafla[[#This Row],[Atvinnuleysisbætur fyrir skerðingu]]+Launatafla[[#This Row],[Skerðing v/ samtals]]+Launatafla[[#This Row],[Viðbót v/ tryggðra lágmarkslauna]]","v":60000.000000000015},{"$f":"+Launatafla[[#This Row],[Laun frá launagreiðanda]]+Launatafla[[#This Row],[Laun frá ríkissjóði]]","v":300000},{"$f":"IFERROR(Launatafla[[#This Row],[Heildarlaun]]/Launatafla[[#This Row],[Meðal heildarlaun sl. 3M fyrir skatta]],0)","v":1}]
[null,"Fullar atvinnuleysisbætur (kr.)",456404,null,"Starfsmaður 2",300000,1,0.3,{"$f":"+Launatafla[[#This Row],[Starfshlutfall fyrir]]-Launatafla[[#This Row],[Skerðing starfshlutfalls]]","v":0.7},{"$f":"+IF(OR(Launatafla[[#This Row],[Skerðing starfshlutfalls]]>Hámarkslækkun_starfshl,Launatafla[[#This Row],[Skerðing starfshlutfalls]]<Lágmarkslækkun_starfshl),0,Atvinnuleysisbætur*Launatafla[[#This Row],[Skerðing starfshlutfalls]])","v":136921.19999999998},{"$f":"IFERROR(Launatafla[[#This Row],[Meðal heildarlaun sl. 3M fyrir skatta]]/Launatafla[[#This Row],[Starfshlutfall fyrir]],0)*(Launatafla[[#This Row],[Starfshlutfall fyrir]]-Launatafla[[#This Row],[Skerðing starfshlutfalls]])","v":210000},{"$f":"+Launatafla[[#This Row],[Atvinnuleysisbætur fyrir skerðingu]]+Launatafla[[#This Row],[Laun frá launagreiðanda]]","v":346921.19999999995},{"$f":"-MAX(Launatafla[[#This Row],[Laun með bótum án skerðingar]]-Launatafla[[#This Row],[Meðal heildarlaun sl. 3M fyrir skatta]]*Hámarkshlutfall_af_launum,0)","v":-76921.199999999953},{"$f":"-MIN(MAX(Launatafla[[#This Row],[Laun með bótum án skerðingar]]-Hámarkslaun,0),Launatafla[[#This Row],[Atvinnuleysisbætur fyrir skerðingu]])","v":0},{"$f":"+MIN(Launatafla[[#This Row],[Skerðing v/ hámarkshlutfalls]:[Skerðing v/ hámarkslauna]])","v":-76921.199999999953},{"$f":"+IF(Launatafla[[#This Row],[Atvinnuleysisbætur fyrir skerðingu]]=0,0,\nMAX(MIN(Lágmarkslaun_fullt_starf,Launatafla[[#This Row],[Meðal heildarlaun sl. 3M fyrir skatta]]/Launatafla[[#This Row],[Starfshlutfall fyrir]])*Launatafla[[#This Row],[Starfshlutfall fyrir]]-(Launatafla[[#This Row],[Laun frá launagreiðanda]]+Launatafla[[#This Row],[Atvinnuleysisbætur fyrir skerðingu]]+Launatafla[[#This Row],[Skerðing v/ samtals]]),0))","v":30000},{"$f":"+Launatafla[[#This Row],[Atvinnuleysisbætur fyrir skerðingu]]+Launatafla[[#This Row],[Skerðing v/ samtals]]+Launatafla[[#This Row],[Viðbót v/ tryggðra lágmarkslauna]]","v":90000.000000000029},{"$f":"+Launatafla[[#This Row],[Laun frá launagreiðanda]]+Launatafla[[#This Row],[Laun frá ríkissjóði]]","v":300000},{"$f":"IFERROR(Launatafla[[#This Row],[Heildarlaun]]/Launatafla[[#This Row],[Meðal heildarlaun sl. 3M fyrir skatta]],0)","v":1}]
[null,"Lágmarkslaun fyrir fullt starf (fyrir skerðingu) (kr.)",400000,null,"Starfsmaður 3",300000,1,0.4,{"$f":"+Launatafla[[#This Row],[Starfshlutfall fyrir]]-Launatafla[[#This Row],[Skerðing starfshlutfalls]]","v":0.6},{"$f":"+IF(OR(Launatafla[[#This Row],[Skerðing starfshlutfalls]]>Hámarkslækkun_starfshl,Launatafla[[#This Row],[Skerðing starfshlutfalls]]<Lágmarkslækkun_starfshl),0,Atvinnuleysisbætur*Launatafla[[#This Row],[Skerðing starfshlutfalls]])","v":182561.6},{"$f":"IFERROR(Launatafla[[#This Row],[Meðal heildarlaun sl. 3M fyrir skatta]]/Launatafla[[#This Row],[Starfshlutfall fyrir]],0)*(Launatafla[[#This Row],[Starfshlutfall fyrir]]-Launatafla[[#This Row],[Skerðing starfshlutfalls]])","v":180000},{"$f":"+Launatafla[[#This Row],[Atvinnuleysisbætur fyrir skerðingu]]+Launatafla[[#This Row],[Laun frá launagreiðanda]]","v":362561.6},{"$f":"-MAX(Launatafla[[#This Row],[Laun með bótum án skerðingar]]-Launatafla[[#This Row],[Meðal heildarlaun sl. 3M fyrir skatta]]*Hámarkshlutfall_af_launum,0)","v":-92561.599999999977},{"$f":"-MIN(MAX(Launatafla[[#This Row],[Laun með bótum án skerðingar]]-Hámarkslaun,0),Launatafla[[#This Row],[Atvinnuleysisbætur fyrir skerðingu]])","v":0},{"$f":"+MIN(Launatafla[[#This Row],[Skerðing v/ hámarkshlutfalls]:[Skerðing v/ hámarkslauna]])","v":-92561.599999999977},{"$f":"+IF(Launatafla[[#This Row],[Atvinnuleysisbætur fyrir skerðingu]]=0,0,\nMAX(MIN(Lágmarkslaun_fullt_starf,Launatafla[[#This Row],[Meðal heildarlaun sl. 3M fyrir skatta]]/Launatafla[[#This Row],[Starfshlutfall fyrir]])*Launatafla[[#This Row],[Starfshlutfall fyrir]]-(Launatafla[[#This Row],[Laun frá launagreiðanda]]+Launatafla[[#This Row],[Atvinnuleysisbætur fyrir skerðingu]]+Launatafla[[#This Row],[Skerðing v/ samtals]]),0))","v":30000},{"$f":"+Launatafla[[#This Row],[Atvinnuleysisbætur fyrir skerðingu]]+Launatafla[[#This Row],[Skerðing v/ samtals]]+Launatafla[[#This Row],[Viðbót v/ tryggðra lágmarkslauna]]","v":120000.00000000003},{"$f":"+Launatafla[[#This Row],[Laun frá launagreiðanda]]+Launatafla[[#This Row],[Laun frá ríkissjóði]]","v":300000},{"$f":"IFERROR(Launatafla[[#This Row],[Heildarlaun]]/Launatafla[[#This Row],[Meðal heildarlaun sl. 3M fyrir skatta]],0)","v":1}]
[null,"Lágmarkslækkun starfshlutfalls (%)",0.2,null,"Starfsmaður 4",300000,1,0.5,{"$f":"+Launatafla[[#This Row],[Starfshlutfall fyrir]]-Launatafla[[#This Row],[Skerðing starfshlutfalls]]","v":0.5},{"$f":"+IF(OR(Launatafla[[#This Row],[Skerðing starfshlutfalls]]>Hámarkslækkun_starfshl,Launatafla[[#This Row],[Skerðing starfshlutfalls]]<Lágmarkslækkun_starfshl),0,Atvinnuleysisbætur*Launatafla[[#This Row],[Skerðing starfshlutfalls]])","v":228202},{"$f":"IFERROR(Launatafla[[#This Row],[Meðal heildarlaun sl. 3M fyrir skatta]]/Launatafla[[#This Row],[Starfshlutfall fyrir]],0)*(Launatafla[[#This Row],[Starfshlutfall fyrir]]-Launatafla[[#This Row],[Skerðing starfshlutfalls]])","v":150000},{"$f":"+Launatafla[[#This Row],[Atvinnuleysisbætur fyrir skerðingu]]+Launatafla[[#This Row],[Laun frá launagreiðanda]]","v":378202},{"$f":"-MAX(Launatafla[[#This Row],[Laun með bótum án skerðingar]]-Launatafla[[#This Row],[Meðal heildarlaun sl. 3M fyrir skatta]]*Hámarkshlutfall_af_launum,0)","v":-108202},{"$f":"-MIN(MAX(Launatafla[[#This Row],[Laun með bótum án skerðingar]]-Hámarkslaun,0),Launatafla[[#This Row],[Atvinnuleysisbætur fyrir skerðingu]])","v":0},{"$f":"+MIN(Launatafla[[#This Row],[Skerðing v/ hámarkshlutfalls]:[Skerðing v/ hámarkslauna]])","v":-108202},{"$f":"+IF(Launatafla[[#This Row],[Atvinnuleysisbætur fyrir skerðingu]]=0,0,\nMAX(MIN(Lágmarkslaun_fullt_starf,Launatafla[[#This Row],[Meðal heildarlaun sl. 3M fyrir skatta]]/Launatafla[[#This Row],[Starfshlutfall fyrir]])*Launatafla[[#This Row],[Starfshlutfall fyrir]]-(Launatafla[[#This Row],[Laun frá launagreiðanda]]+Launatafla[[#This Row],[Atvinnuleysisbætur fyrir skerðingu]]+Launatafla[[#This Row],[Skerðing v/ samtals]]),0))","v":30000},{"$f":"+Launatafla[[#This Row],[Atvinnuleysisbætur fyrir skerðingu]]+Launatafla[[#This Row],[Skerðing v/ samtals]]+Launatafla[[#This Row],[Viðbót v/ tryggðra lágmarkslauna]]","v":150000},{"$f":"+Launatafla[[#This Row],[Laun frá launagreiðanda]]+Launatafla[[#This Row],[Laun frá ríkissjóði]]","v":300000},{"$f":"IFERROR(Launatafla[[#This Row],[Heildarlaun]]/Launatafla[[#This Row],[Meðal heildarlaun sl. 3M fyrir skatta]],0)","v":1}]
[null,"Hámarkslækkun starfshlutfalls (%)",0.75,null,"Starfsmaður 5",300000,1,0.6,{"$f":"+Launatafla[[#This Row],[Starfshlutfall fyrir]]-Launatafla[[#This Row],[Skerðing starfshlutfalls]]","v":0.4},{"$f":"+IF(OR(Launatafla[[#This Row],[Skerðing starfshlutfalls]]>Hámarkslækkun_starfshl,Launatafla[[#This Row],[Skerðing starfshlutfalls]]<Lágmarkslækkun_starfshl),0,Atvinnuleysisbætur*Launatafla[[#This Row],[Skerðing starfshlutfalls]])","v":273842.39999999997},{"$f":"IFERROR(Launatafla[[#This Row],[Meðal heildarlaun sl. 3M fyrir skatta]]/Launatafla[[#This Row],[Starfshlutfall fyrir]],0)*(Launatafla[[#This Row],[Starfshlutfall fyrir]]-Launatafla[[#This Row],[Skerðing starfshlutfalls]])","v":120000},{"$f":"+Launatafla[[#This Row],[Atvinnuleysisbætur fyrir skerðingu]]+Launatafla[[#This Row],[Laun frá launagreiðanda]]","v":393842.39999999997},{"$f":"-MAX(Launatafla[[#This Row],[Laun með bótum án skerðingar]]-Launatafla[[#This Row],[Meðal heildarlaun sl. 3M fyrir skatta]]*Hámarkshlutfall_af_launum,0)","v":-123842.39999999997},{"$f":"-MIN(MAX(Launatafla[[#This Row],[Laun með bótum án skerðingar]]-Hámarkslaun,0),Launatafla[[#This Row],[Atvinnuleysisbætur fyrir skerðingu]])","v":0},{"$f":"+MIN(Launatafla[[#This Row],[Skerðing v/ hámarkshlutfalls]:[Skerðing v/ hámarkslauna]])","v":-123842.39999999997},{"$f":"+IF(Launatafla[[#This Row],[Atvinnuleysisbætur fyrir skerðingu]]=0,0,\nMAX(MIN(Lágmarkslaun_fullt_starf,Launatafla[[#This Row],[Meðal heildarlaun sl. 3M fyrir skatta]]/Launatafla[[#This Row],[Starfshlutfall fyrir]])*Launatafla[[#This Row],[Starfshlutfall fyrir]]-(Launatafla[[#This Row],[Laun frá launagreiðanda]]+Launatafla[[#This Row],[Atvinnuleysisbætur fyrir skerðingu]]+Launatafla[[#This Row],[Skerðing v/ samtals]]),0))","v":30000},{"$f":"+Launatafla[[#This Row],[Atvinnuleysisbætur fyrir skerðingu]]+Launatafla[[#This Row],[Skerðing v/ samtals]]+Launatafla[[#This Row],[Viðbót v/ tryggðra lágmarkslauna]]","v":180000},{"$f":"+Launatafla[[#This Row],[Laun frá launagreiðanda]]+Launatafla[[#This Row],[Laun frá ríkissjóði]]","v":300000},{"$f":"IFERROR(Launatafla[[#This Row],[Heildarlaun]]/Launatafla[[#This Row],[Meðal heildarlaun sl. 3M fyrir skatta]],0)","v":1}]
[null,"Hámarkshlutfall af fyrri launum (%)",0.9,null,"Starfsmaður 6",300000,1,0.7,{"$f":"+Launatafla[[#This Row],[Starfshlutfall fyrir]]-Launatafla[[#This Row],[Skerðing starfshlutfalls]]","v":0.30000000000000004},{"$f":"+IF(OR(Launatafla[[#This Row],[Skerðing starfshlutfalls]]>Hámarkslækkun_starfshl,Launatafla[[#This Row],[Skerðing starfshlutfalls]]<Lágmarkslækkun_starfshl),0,Atvinnuleysisbætur*Launatafla[[#This Row],[Skerðing starfshlutfalls]])","v":319482.8},{"$f":"IFERROR(Launatafla[[#This Row],[Meðal heildarlaun sl. 3M fyrir skatta]]/Launatafla[[#This Row],[Starfshlutfall fyrir]],0)*(Launatafla[[#This Row],[Starfshlutfall fyrir]]-Launatafla[[#This Row],[Skerðing starfshlutfalls]])","v":90000.000000000015},{"$f":"+Launatafla[[#This Row],[Atvinnuleysisbætur fyrir skerðingu]]+Launatafla[[#This Row],[Laun frá launagreiðanda]]","v":409482.8},{"$f":"-MAX(Launatafla[[#This Row],[Laun með bótum án skerðingar]]-Launatafla[[#This Row],[Meðal heildarlaun sl. 3M fyrir skatta]]*Hámarkshlutfall_af_launum,0)","v":-139482.79999999999},{"$f":"-MIN(MAX(Launatafla[[#This Row],[Laun með bótum án skerðingar]]-Hámarkslaun,0),Launatafla[[#This Row],[Atvinnuleysisbætur fyrir skerðingu]])","v":0},{"$f":"+MIN(Launatafla[[#This Row],[Skerðing v/ hámarkshlutfalls]:[Skerðing v/ hámarkslauna]])","v":-139482.79999999999},{"$f":"+IF(Launatafla[[#This Row],[Atvinnuleysisbætur fyrir skerðingu]]=0,0,\nMAX(MIN(Lágmarkslaun_fullt_starf,Launatafla[[#This Row],[Meðal heildarlaun sl. 3M fyrir skatta]]/Launatafla[[#This Row],[Starfshlutfall fyrir]])*Launatafla[[#This Row],[Starfshlutfall fyrir]]-(Launatafla[[#This Row],[Laun frá launagreiðanda]]+Launatafla[[#This Row],[Atvinnuleysisbætur fyrir skerðingu]]+Launatafla[[#This Row],[Skerðing v/ samtals]]),0))","v":30000},{"$f":"+Launatafla[[#This Row],[Atvinnuleysisbætur fyrir skerðingu]]+Launatafla[[#This Row],[Skerðing v/ samtals]]+Launatafla[[#This Row],[Viðbót v/ tryggðra lágmarkslauna]]","v":210000},{"$f":"+Launatafla[[#This Row],[Laun frá launagreiðanda]]+Launatafla[[#This Row],[Laun frá ríkissjóði]]","v":300000},{"$f":"IFERROR(Launatafla[[#This Row],[Heildarlaun]]/Launatafla[[#This Row],[Meðal heildarlaun sl. 3M fyrir skatta]],0)","v":1}]
[null,"Hámarkslaun með bótum",700000,null,"Starfsmaður 7",300000,1,0.75,{"$f":"+Launatafla[[#This Row],[Starfshlutfall fyrir]]-Launatafla[[#This Row],[Skerðing starfshlutfalls]]","v":0.25},{"$f":"+IF(OR(Launatafla[[#This Row],[Skerðing starfshlutfalls]]>Hámarkslækkun_starfshl,Launatafla[[#This Row],[Skerðing starfshlutfalls]]<Lágmarkslækkun_starfshl),0,Atvinnuleysisbætur*Launatafla[[#This Row],[Skerðing starfshlutfalls]])","v":342303},{"$f":"IFERROR(Launatafla[[#This Row],[Meðal heildarlaun sl. 3M fyrir skatta]]/Launatafla[[#This Row],[Starfshlutfall fyrir]],0)*(Launatafla[[#This Row],[Starfshlutfall fyrir]]-Launatafla[[#This Row],[Skerðing starfshlutfalls]])","v":75000},{"$f":"+Launatafla[[#This Row],[Atvinnuleysisbætur fyrir skerðingu]]+Launatafla[[#This Row],[Laun frá launagreiðanda]]","v":417303},{"$f":"-MAX(Launatafla[[#This Row],[Laun með bótum án skerðingar]]-Launatafla[[#This Row],[Meðal heildarlaun sl. 3M fyrir skatta]]*Hámarkshlutfall_af_launum,0)","v":-147303},{"$f":"-MIN(MAX(Launatafla[[#This Row],[Laun með bótum án skerðingar]]-Hámarkslaun,0),Launatafla[[#This Row],[Atvinnuleysisbætur fyrir skerðingu]])","v":0},{"$f":"+MIN(Launatafla[[#This Row],[Skerðing v/ hámarkshlutfalls]:[Skerðing v/ hámarkslauna]])","v":-147303},{"$f":"+IF(Launatafla[[#This Row],[Atvinnuleysisbætur fyrir skerðingu]]=0,0,\nMAX(MIN(Lágmarkslaun_fullt_starf,Launatafla[[#This Row],[Meðal heildarlaun sl. 3M fyrir skatta]]/Launatafla[[#This Row],[Starfshlutfall fyrir]])*Launatafla[[#This Row],[Starfshlutfall fyrir]]-(Launatafla[[#This Row],[Laun frá launagreiðanda]]+Launatafla[[#This Row],[Atvinnuleysisbætur fyrir skerðingu]]+Launatafla[[#This Row],[Skerðing v/ samtals]]),0))","v":30000},{"$f":"+Launatafla[[#This Row],[Atvinnuleysisbætur fyrir skerðingu]]+Launatafla[[#This Row],[Skerðing v/ samtals]]+Launatafla[[#This Row],[Viðbót v/ tryggðra lágmarkslauna]]","v":225000},{"$f":"+Launatafla[[#This Row],[Laun frá launagreiðanda]]+Launatafla[[#This Row],[Laun frá ríkissjóði]]","v":300000},{"$f":"IFERROR(Launatafla[[#This Row],[Heildarlaun]]/Launatafla[[#This Row],[Meðal heildarlaun sl. 3M fyrir skatta]],0)","v":1}]
[null,"Iðgjöld launþegar",null,null,"Starfsmaður 8",400000,1,0.2,{"$f":"+Launatafla[[#This Row],[Starfshlutfall fyrir]]-Launatafla[[#This Row],[Skerðing starfshlutfalls]]","v":0.8},{"$f":"+IF(OR(Launatafla[[#This Row],[Skerðing starfshlutfalls]]>Hámarkslækkun_starfshl,Launatafla[[#This Row],[Skerðing starfshlutfalls]]<Lágmarkslækkun_starfshl),0,Atvinnuleysisbætur*Launatafla[[#This Row],[Skerðing starfshlutfalls]])","v":91280.8},{"$f":"IFERROR(Launatafla[[#This Row],[Meðal heildarlaun sl. 3M fyrir skatta]]/Launatafla[[#This Row],[Starfshlutfall fyrir]],0)*(Launatafla[[#This Row],[Starfshlutfall fyrir]]-Launatafla[[#This Row],[Skerðing starfshlutfalls]])","v":320000},{"$f":"+Launatafla[[#This Row],[Atvinnuleysisbætur fyrir skerðingu]]+Launatafla[[#This Row],[Laun frá launagreiðanda]]","v":411280.8},{"$f":"-MAX(Launatafla[[#This Row],[Laun með bótum án skerðingar]]-Launatafla[[#This Row],[Meðal heildarlaun sl. 3M fyrir skatta]]*Hámarkshlutfall_af_launum,0)","v":-51280.799999999988},{"$f":"-MIN(MAX(Launatafla[[#This Row],[Laun með bótum án skerðingar]]-Hámarkslaun,0),Launatafla[[#This Row],[Atvinnuleysisbætur fyrir skerðingu]])","v":0},{"$f":"+MIN(Launatafla[[#This Row],[Skerðing v/ hámarkshlutfalls]:[Skerðing v/ hámarkslauna]])","v":-51280.799999999988},{"$f":"+IF(Launatafla[[#This Row],[Atvinnuleysisbætur fyrir skerðingu]]=0,0,\nMAX(MIN(Lágmarkslaun_fullt_starf,Launatafla[[#This Row],[Meðal heildarlaun sl. 3M fyrir skatta]]/Launatafla[[#This Row],[Starfshlutfall fyrir]])*Launatafla[[#This Row],[Starfshlutfall fyrir]]-(Launatafla[[#This Row],[Laun frá launagreiðanda]]+Launatafla[[#This Row],[Atvinnuleysisbætur fyrir skerðingu]]+Launatafla[[#This Row],[Skerðing v/ samtals]]),0))","v":40000},{"$f":"+Launatafla[[#This Row],[Atvinnuleysisbætur fyrir skerðingu]]+Launatafla[[#This Row],[Skerðing v/ samtals]]+Launatafla[[#This Row],[Viðbót v/ tryggðra lágmarkslauna]]","v":80000.000000000015},{"$f":"+Launatafla[[#This Row],[Laun frá launagreiðanda]]+Launatafla[[#This Row],[Laun frá ríkissjóði]]","v":400000},{"$f":"IFERROR(Launatafla[[#This Row],[Heildarlaun]]/Launatafla[[#This Row],[Meðal heildarlaun sl. 3M fyrir skatta]],0)","v":1}]
[null,"Skylduframlag launþega í lífeyrissjóð (%)",0.04,null,"Starfsmaður 9",400000,1,0.3,{"$f":"+Launatafla[[#This Row],[Starfshlutfall fyrir]]-Launatafla[[#This Row],[Skerðing starfshlutfalls]]","v":0.7},{"$f":"+IF(OR(Launatafla[[#This Row],[Skerðing starfshlutfalls]]>Hámarkslækkun_starfshl,Launatafla[[#This Row],[Skerðing starfshlutfalls]]<Lágmarkslækkun_starfshl),0,Atvinnuleysisbætur*Launatafla[[#This Row],[Skerðing starfshlutfalls]])","v":136921.19999999998},{"$f":"IFERROR(Launatafla[[#This Row],[Meðal heildarlaun sl. 3M fyrir skatta]]/Launatafla[[#This Row],[Starfshlutfall fyrir]],0)*(Launatafla[[#This Row],[Starfshlutfall fyrir]]-Launatafla[[#This Row],[Skerðing starfshlutfalls]])","v":280000},{"$f":"+Launatafla[[#This Row],[Atvinnuleysisbætur fyrir skerðingu]]+Launatafla[[#This Row],[Laun frá launagreiðanda]]","v":416921.19999999995},{"$f":"-MAX(Launatafla[[#This Row],[Laun með bótum án skerðingar]]-Launatafla[[#This Row],[Meðal heildarlaun sl. 3M fyrir skatta]]*Hámarkshlutfall_af_launum,0)","v":-56921.199999999953},{"$f":"-MIN(MAX(Launatafla[[#This Row],[Laun með bótum án skerðingar]]-Hámarkslaun,0),Launatafla[[#This Row],[Atvinnuleysisbætur fyrir skerðingu]])","v":0},{"$f":"+MIN(Launatafla[[#This Row],[Skerðing v/ hámarkshlutfalls]:[Skerðing v/ hámarkslauna]])","v":-56921.199999999953},{"$f":"+IF(Launatafla[[#This Row],[Atvinnuleysisbætur fyrir skerðingu]]=0,0,\nMAX(MIN(Lágmarkslaun_fullt_starf,Launatafla[[#This Row],[Meðal heildarlaun sl. 3M fyrir skatta]]/Launatafla[[#This Row],[Starfshlutfall fyrir]])*Launatafla[[#This Row],[Starfshlutfall fyrir]]-(Launatafla[[#This Row],[Laun frá launagreiðanda]]+Launatafla[[#This Row],[Atvinnuleysisbætur fyrir skerðingu]]+Launatafla[[#This Row],[Skerðing v/ samtals]]),0))","v":40000},{"$f":"+Launatafla[[#This Row],[Atvinnuleysisbætur fyrir skerðingu]]+Launatafla[[#This Row],[Skerðing v/ samtals]]+Launatafla[[#This Row],[Viðbót v/ tryggðra lágmarkslauna]]","v":120000.00000000003},{"$f":"+Launatafla[[#This Row],[Laun frá launagreiðanda]]+Launatafla[[#This Row],[Laun frá ríkissjóði]]","v":400000},{"$f":"IFERROR(Launatafla[[#This Row],[Heildarlaun]]/Launatafla[[#This Row],[Meðal heildarlaun sl. 3M fyrir skatta]],0)","v":1}]
[null,"Séreignasjóður launþega í lífeyrissjóð (%)",0.04,null,"Starfsmaður 10",400000,1,0.4,{"$f":"+Launatafla[[#This Row],[Starfshlutfall fyrir]]-Launatafla[[#This Row],[Skerðing starfshlutfalls]]","v":0.6},{"$f":"+IF(OR(Launatafla[[#This Row],[Skerðing starfshlutfalls]]>Hámarkslækkun_starfshl,Launatafla[[#This Row],[Skerðing starfshlutfalls]]<Lágmarkslækkun_starfshl),0,Atvinnuleysisbætur*Launatafla[[#This Row],[Skerðing starfshlutfalls]])","v":182561.6},{"$f":"IFERROR(Launatafla[[#This Row],[Meðal heildarlaun sl. 3M fyrir skatta]]/Launatafla[[#This Row],[Starfshlutfall fyrir]],0)*(Launatafla[[#This Row],[Starfshlutfall fyrir]]-Launatafla[[#This Row],[Skerðing starfshlutfalls]])","v":240000},{"$f":"+Launatafla[[#This Row],[Atvinnuleysisbætur fyrir skerðingu]]+Launatafla[[#This Row],[Laun frá launagreiðanda]]","v":422561.6},{"$f":"-MAX(Launatafla[[#This Row],[Laun með bótum án skerðingar]]-Launatafla[[#This Row],[Meðal heildarlaun sl. 3M fyrir skatta]]*Hámarkshlutfall_af_launum,0)","v":-62561.599999999977},{"$f":"-MIN(MAX(Launatafla[[#This Row],[Laun með bótum án skerðingar]]-Hámarkslaun,0),Launatafla[[#This Row],[Atvinnuleysisbætur fyrir skerðingu]])","v":0},{"$f":"+MIN(Launatafla[[#This Row],[Skerðing v/ hámarkshlutfalls]:[Skerðing v/ hámarkslauna]])","v":-62561.599999999977},{"$f":"+IF(Launatafla[[#This Row],[Atvinnuleysisbætur fyrir skerðingu]]=0,0,\nMAX(MIN(Lágmarkslaun_fullt_starf,Launatafla[[#This Row],[Meðal heildarlaun sl. 3M fyrir skatta]]/Launatafla[[#This Row],[Starfshlutfall fyrir]])*Launatafla[[#This Row],[Starfshlutfall fyrir]]-(Launatafla[[#This Row],[Laun frá launagreiðanda]]+Launatafla[[#This Row],[Atvinnuleysisbætur fyrir skerðingu]]+Launatafla[[#This Row],[Skerðing v/ samtals]]),0))","v":40000},{"$f":"+Launatafla[[#This Row],[Atvinnuleysisbætur fyrir skerðingu]]+Launatafla[[#This Row],[Skerðing v/ samtals]]+Launatafla[[#This Row],[Viðbót v/ tryggðra lágmarkslauna]]","v":160000.00000000003},{"$f":"+Launatafla[[#This Row],[Laun frá launagreiðanda]]+Launatafla[[#This Row],[Laun frá ríkissjóði]]","v":400000},{"$f":"IFERROR(Launatafla[[#This Row],[Heildarlaun]]/Launatafla[[#This Row],[Meðal heildarlaun sl. 3M fyrir skatta]],0)","v":1}]
[null,"Iðgjald launþega í stéttarfélag (%)*1",7.0000000000000001E-3,null,"Starfsmaður 11",400000,1,0.5,{"$f":"+Launatafla[[#This Row],[Starfshlutfall fyrir]]-Launatafla[[#This Row],[Skerðing starfshlutfalls]]","v":0.5},{"$f":"+IF(OR(Launatafla[[#This Row],[Skerðing starfshlutfalls]]>Hámarkslækkun_starfshl,Launatafla[[#This Row],[Skerðing starfshlutfalls]]<Lágmarkslækkun_starfshl),0,Atvinnuleysisbætur*Launatafla[[#This Row],[Skerðing starfshlutfalls]])","v":228202},{"$f":"IFERROR(Launatafla[[#This Row],[Meðal heildarlaun sl. 3M fyrir skatta]]/Launatafla[[#This Row],[Starfshlutfall fyrir]],0)*(Launatafla[[#This Row],[Starfshlutfall fyrir]]-Launatafla[[#This Row],[Skerðing starfshlutfalls]])","v":200000},{"$f":"+Launatafla[[#This Row],[Atvinnuleysisbætur fyrir skerðingu]]+Launatafla[[#This Row],[Laun frá launagreiðanda]]","v":428202},{"$f":"-MAX(Launatafla[[#This Row],[Laun með bótum án skerðingar]]-Launatafla[[#This Row],[Meðal heildarlaun sl. 3M fyrir skatta]]*Hámarkshlutfall_af_launum,0)","v":-68202},{"$f":"-MIN(MAX(Launatafla[[#This Row],[Laun með bótum án skerðingar]]-Hámarkslaun,0),Launatafla[[#This Row],[Atvinnuleysisbætur fyrir skerðingu]])","v":0},{"$f":"+MIN(Launatafla[[#This Row],[Skerðing v/ hámarkshlutfalls]:[Skerðing v/ hámarkslauna]])","v":-68202},{"$f":"+IF(Launatafla[[#This Row],[Atvinnuleysisbætur fyrir skerðingu]]=0,0,\nMAX(MIN(Lágmarkslaun_fullt_starf,Launatafla[[#This Row],[Meðal heildarlaun sl. 3M fyrir skatta]]/Launatafla[[#This Row],[Starfshlutfall fyrir]])*Launatafla[[#This Row],[Starfshlutfall fyrir]]-(Launatafla[[#This Row],[Laun frá launagreiðanda]]+Launatafla[[#This Row],[Atvinnuleysisbætur fyrir skerðingu]]+Launatafla[[#This Row],[Skerðing v/ samtals]]),0))","v":40000},{"$f":"+Launatafla[[#This Row],[Atvinnuleysisbætur fyrir skerðingu]]+Launatafla[[#This Row],[Skerðing v/ samtals]]+Launatafla[[#This Row],[Viðbót v/ tryggðra lágmarkslauna]]","v":200000},{"$f":"+Launatafla[[#This Row],[Laun frá launagreiðanda]]+Launatafla[[#This Row],[Laun frá ríkissjóði]]","v":400000},{"$f":"IFERROR(Launatafla[[#This Row],[Heildarlaun]]/Launatafla[[#This Row],[Meðal heildarlaun sl. 3M fyrir skatta]],0)","v":1}]
[null,"Forsendur launatengdra gjalda",null,null,"Starfsmaður 12",400000,1,0.6,{"$f":"+Launatafla[[#This Row],[Starfshlutfall fyrir]]-Launatafla[[#This Row],[Skerðing starfshlutfalls]]","v":0.4},{"$f":"+IF(OR(Launatafla[[#This Row],[Skerðing starfshlutfalls]]>Hámarkslækkun_starfshl,Launatafla[[#This Row],[Skerðing starfshlutfalls]]<Lágmarkslækkun_starfshl),0,Atvinnuleysisbætur*Launatafla[[#This Row],[Skerðing starfshlutfalls]])","v":273842.39999999997},{"$f":"IFERROR(Launatafla[[#This Row],[Meðal heildarlaun sl. 3M fyrir skatta]]/Launatafla[[#This Row],[Starfshlutfall fyrir]],0)*(Launatafla[[#This Row],[Starfshlutfall fyrir]]-Launatafla[[#This Row],[Skerðing starfshlutfalls]])","v":160000},{"$f":"+Launatafla[[#This Row],[Atvinnuleysisbætur fyrir skerðingu]]+Launatafla[[#This Row],[Laun frá launagreiðanda]]","v":433842.39999999997},{"$f":"-MAX(Launatafla[[#This Row],[Laun með bótum án skerðingar]]-Launatafla[[#This Row],[Meðal heildarlaun sl. 3M fyrir skatta]]*Hámarkshlutfall_af_launum,0)","v":-73842.399999999965},{"$f":"-MIN(MAX(Launatafla[[#This Row],[Laun með bótum án skerðingar]]-Hámarkslaun,0),Launatafla[[#This Row],[Atvinnuleysisbætur fyrir skerðingu]])","v":0},{"$f":"+MIN(Launatafla[[#This Row],[Skerðing v/ hámarkshlutfalls]:[Skerðing v/ hámarkslauna]])","v":-73842.399999999965},{"$f":"+IF(Launatafla[[#This Row],[Atvinnuleysisbætur fyrir skerðingu]]=0,0,\nMAX(MIN(Lágmarkslaun_fullt_starf,Launatafla[[#This Row],[Meðal heildarlaun sl. 3M fyrir skatta]]/Launatafla[[#This Row],[Starfshlutfall fyrir]])*Launatafla[[#This Row],[Starfshlutfall fyrir]]-(Launatafla[[#This Row],[Laun frá launagreiðanda]]+Launatafla[[#This Row],[Atvinnuleysisbætur fyrir skerðingu]]+Launatafla[[#This Row],[Skerðing v/ samtals]]),0))","v":40000},{"$f":"+Launatafla[[#This Row],[Atvinnuleysisbætur fyrir skerðingu]]+Launatafla[[#This Row],[Skerðing v/ samtals]]+Launatafla[[#This Row],[Viðbót v/ tryggðra lágmarkslauna]]","v":240000},{"$f":"+Launatafla[[#This Row],[Laun frá launagreiðanda]]+Launatafla[[#This Row],[Laun frá ríkissjóði]]","v":400000},{"$f":"IFERROR(Launatafla[[#This Row],[Heildarlaun]]/Launatafla[[#This Row],[Meðal heildarlaun sl. 3M fyrir skatta]],0)","v":1}]
[null,"Skylduframlag launagreiðanda í lífeyrissjóð (%)",0.115,null,"Starfsmaður 13",400000,1,0.7,{"$f":"+Launatafla[[#This Row],[Starfshlutfall fyrir]]-Launatafla[[#This Row],[Skerðing starfshlutfalls]]","v":0.30000000000000004},{"$f":"+IF(OR(Launatafla[[#This Row],[Skerðing starfshlutfalls]]>Hámarkslækkun_starfshl,Launatafla[[#This Row],[Skerðing starfshlutfalls]]<Lágmarkslækkun_starfshl),0,Atvinnuleysisbætur*Launatafla[[#This Row],[Skerðing starfshlutfalls]])","v":319482.8},{"$f":"IFERROR(Launatafla[[#This Row],[Meðal heildarlaun sl. 3M fyrir skatta]]/Launatafla[[#This Row],[Starfshlutfall fyrir]],0)*(Launatafla[[#This Row],[Starfshlutfall fyrir]]-Launatafla[[#This Row],[Skerðing starfshlutfalls]])","v":120000.00000000001},{"$f":"+Launatafla[[#This Row],[Atvinnuleysisbætur fyrir skerðingu]]+Launatafla[[#This Row],[Laun frá launagreiðanda]]","v":439482.8},{"$f":"-MAX(Launatafla[[#This Row],[Laun með bótum án skerðingar]]-Launatafla[[#This Row],[Meðal heildarlaun sl. 3M fyrir skatta]]*Hámarkshlutfall_af_launum,0)","v":-79482.799999999988},{"$f":"-MIN(MAX(Launatafla[[#This Row],[Laun með bótum án skerðingar]]-Hámarkslaun,0),Launatafla[[#This Row],[Atvinnuleysisbætur fyrir skerðingu]])","v":0},{"$f":"+MIN(Launatafla[[#This Row],[Skerðing v/ hámarkshlutfalls]:[Skerðing v/ hámarkslauna]])","v":-79482.799999999988},{"$f":"+IF(Launatafla[[#This Row],[Atvinnuleysisbætur fyrir skerðingu]]=0,0,\nMAX(MIN(Lágmarkslaun_fullt_starf,Launatafla[[#This Row],[Meðal heildarlaun sl. 3M fyrir skatta]]/Launatafla[[#This Row],[Starfshlutfall fyrir]])*Launatafla[[#This Row],[Starfshlutfall fyrir]]-(Launatafla[[#This Row],[Laun frá launagreiðanda]]+Launatafla[[#This Row],[Atvinnuleysisbætur fyrir skerðingu]]+Launatafla[[#This Row],[Skerðing v/ samtals]]),0))","v":40000},{"$f":"+Launatafla[[#This Row],[Atvinnuleysisbætur fyrir skerðingu]]+Launatafla[[#This Row],[Skerðing v/ samtals]]+Launatafla[[#This Row],[Viðbót v/ tryggðra lágmarkslauna]]","v":280000},{"$f":"+Launatafla[[#This Row],[Laun frá launagreiðanda]]+Launatafla[[#This Row],[Laun frá ríkissjóði]]","v":400000},{"$f":"IFERROR(Launatafla[[#This Row],[Heildarlaun]]/Launatafla[[#This Row],[Meðal heildarlaun sl. 3M fyrir skatta]],0)","v":1}]
[null,"Mótframlag launagreiðanda í séreignasjóð (%)",0.02,null,"Starfsmaður 14",400000,1,0.75,{"$f":"+Launatafla[[#This Row],[Starfshlutfall fyrir]]-Launatafla[[#This Row],[Skerðing starfshlutfalls]]","v":0.25},{"$f":"+IF(OR(Launatafla[[#This Row],[Skerðing starfshlutfalls]]>Hámarkslækkun_starfshl,Launatafla[[#This Row],[Skerðing starfshlutfalls]]<Lágmarkslækkun_starfshl),0,Atvinnuleysisbætur*Launatafla[[#This Row],[Skerðing starfshlutfalls]])","v":342303},{"$f":"IFERROR(Launatafla[[#This Row],[Meðal heildarlaun sl. 3M fyrir skatta]]/Launatafla[[#This Row],[Starfshlutfall fyrir]],0)*(Launatafla[[#This Row],[Starfshlutfall fyrir]]-Launatafla[[#This Row],[Skerðing starfshlutfalls]])","v":100000},{"$f":"+Launatafla[[#This Row],[Atvinnuleysisbætur fyrir skerðingu]]+Launatafla[[#This Row],[Laun frá launagreiðanda]]","v":442303},{"$f":"-MAX(Launatafla[[#This Row],[Laun með bótum án skerðingar]]-Launatafla[[#This Row],[Meðal heildarlaun sl. 3M fyrir skatta]]*Hámarkshlutfall_af_launum,0)","v":-82303},{"$f":"-MIN(MAX(Launatafla[[#This Row],[Laun með bótum án skerðingar]]-Hámarkslaun,0),Launatafla[[#This Row],[Atvinnuleysisbætur fyrir skerðingu]])","v":0},{"$f":"+MIN(Launatafla[[#This Row],[Skerðing v/ hámarkshlutfalls]:[Skerðing v/ hámarkslauna]])","v":-82303},{"$f":"+IF(Launatafla[[#This Row],[Atvinnuleysisbætur fyrir skerðingu]]=0,0,\nMAX(MIN(Lágmarkslaun_fullt_starf,Launatafla[[#This Row],[Meðal heildarlaun sl. 3M fyrir skatta]]/Launatafla[[#This Row],[Starfshlutfall fyrir]])*Launatafla[[#This Row],[Starfshlutfall fyrir]]-(Launatafla[[#This Row],[Laun frá launagreiðanda]]+Launatafla[[#This Row],[Atvinnuleysisbætur fyrir skerðingu]]+Launatafla[[#This Row],[Skerðing v/ samtals]]),0))","v":40000},{"$f":"+Launatafla[[#This Row],[Atvinnuleysisbætur fyrir skerðingu]]+Launatafla[[#This Row],[Skerðing v/ samtals]]+Launatafla[[#This Row],[Viðbót v/ tryggðra lágmarkslauna]]","v":300000},{"$f":"+Launatafla[[#This Row],[Laun frá launagreiðanda]]+Launatafla[[#This Row],[Laun frá ríkissjóði]]","v":400000},{"$f":"IFERROR(Launatafla[[#This Row],[Heildarlaun]]/Launatafla[[#This Row],[Meðal heildarlaun sl. 3M fyrir skatta]],0)","v":1}]
[null,"Endurhæfingarsjóður (%)",1E-3,null,"Starfsmaður 15",500000,1,0.2,{"$f":"+Launatafla[[#This Row],[Starfshlutfall fyrir]]-Launatafla[[#This Row],[Skerðing starfshlutfalls]]","v":0.8},{"$f":"+IF(OR(Launatafla[[#This Row],[Skerðing starfshlutfalls]]>Hámarkslækkun_starfshl,Launatafla[[#This Row],[Skerðing starfshlutfalls]]<Lágmarkslækkun_starfshl),0,Atvinnuleysisbætur*Launatafla[[#This Row],[Skerðing starfshlutfalls]])","v":91280.8},{"$f":"IFERROR(Launatafla[[#This Row],[Meðal heildarlaun sl. 3M fyrir skatta]]/Launatafla[[#This Row],[Starfshlutfall fyrir]],0)*(Launatafla[[#This Row],[Starfshlutfall fyrir]]-Launatafla[[#This Row],[Skerðing starfshlutfalls]])","v":400000},{"$f":"+Launatafla[[#This Row],[Atvinnuleysisbætur fyrir skerðingu]]+Launatafla[[#This Row],[Laun frá launagreiðanda]]","v":491280.8},{"$f":"-MAX(Launatafla[[#This Row],[Laun með bótum án skerðingar]]-Launatafla[[#This Row],[Meðal heildarlaun sl. 3M fyrir skatta]]*Hámarkshlutfall_af_launum,0)","v":-41280.799999999988},{"$f":"-MIN(MAX(Launatafla[[#This Row],[Laun með bótum án skerðingar]]-Hámarkslaun,0),Launatafla[[#This Row],[Atvinnuleysisbætur fyrir skerðingu]])","v":0},{"$f":"+MIN(Launatafla[[#This Row],[Skerðing v/ hámarkshlutfalls]:[Skerðing v/ hámarkslauna]])","v":-41280.799999999988},{"$f":"+IF(Launatafla[[#This Row],[Atvinnuleysisbætur fyrir skerðingu]]=0,0,\nMAX(MIN(Lágmarkslaun_fullt_starf,Launatafla[[#This Row],[Meðal heildarlaun sl. 3M fyrir skatta]]/Launatafla[[#This Row],[Starfshlutfall fyrir]])*Launatafla[[#This Row],[Starfshlutfall fyrir]]-(Launatafla[[#This Row],[Laun frá launagreiðanda]]+Launatafla[[#This Row],[Atvinnuleysisbætur fyrir skerðingu]]+Launatafla[[#This Row],[Skerðing v/ samtals]]),0))","v":0},{"$f":"+Launatafla[[#This Row],[Atvinnuleysisbætur fyrir skerðingu]]+Launatafla[[#This Row],[Skerðing v/ samtals]]+Launatafla[[#This Row],[Viðbót v/ tryggðra lágmarkslauna]]","v":50000.000000000015},{"$f":"+Launatafla[[#This Row],[Laun frá launagreiðanda]]+Launatafla[[#This Row],[Laun frá ríkissjóði]]","v":450000},{"$f":"IFERROR(Launatafla[[#This Row],[Heildarlaun]]/Launatafla[[#This Row],[Meðal heildarlaun sl. 3M fyrir skatta]],0)","v":0.9}]
[null,"Tryggingagjald (%)",6.3500000000000001E-2,null,"Starfsmaður 16",500000,1,0.3,{"$f":"+Launatafla[[#This Row],[Starfshlutfall fyrir]]-Launatafla[[#This Row],[Skerðing starfshlutfalls]]","v":0.7},{"$f":"+IF(OR(Launatafla[[#This Row],[Skerðing starfshlutfalls]]>Hámarkslækkun_starfshl,Launatafla[[#This Row],[Skerðing starfshlutfalls]]<Lágmarkslækkun_starfshl),0,Atvinnuleysisbætur*Launatafla[[#This Row],[Skerðing starfshlutfalls]])","v":136921.19999999998},{"$f":"IFERROR(Launatafla[[#This Row],[Meðal heildarlaun sl. 3M fyrir skatta]]/Launatafla[[#This Row],[Starfshlutfall fyrir]],0)*(Launatafla[[#This Row],[Starfshlutfall fyrir]]-Launatafla[[#This Row],[Skerðing starfshlutfalls]])","v":350000},{"$f":"+Launatafla[[#This Row],[Atvinnuleysisbætur fyrir skerðingu]]+Launatafla[[#This Row],[Laun frá launagreiðanda]]","v":486921.19999999995},{"$f":"-MAX(Launatafla[[#This Row],[Laun með bótum án skerðingar]]-Launatafla[[#This Row],[Meðal heildarlaun sl. 3M fyrir skatta]]*Hámarkshlutfall_af_launum,0)","v":-36921.199999999953},{"$f":"-MIN(MAX(Launatafla[[#This Row],[Laun með bótum án skerðingar]]-Hámarkslaun,0),Launatafla[[#This Row],[Atvinnuleysisbætur fyrir skerðingu]])","v":0},{"$f":"+MIN(Launatafla[[#This Row],[Skerðing v/ hámarkshlutfalls]:[Skerðing v/ hámarkslauna]])","v":-36921.199999999953},{"$f":"+IF(Launatafla[[#This Row],[Atvinnuleysisbætur fyrir skerðingu]]=0,0,\nMAX(MIN(Lágmarkslaun_fullt_starf,Launatafla[[#This Row],[Meðal heildarlaun sl. 3M fyrir skatta]]/Launatafla[[#This Row],[Starfshlutfall fyrir]])*Launatafla[[#This Row],[Starfshlutfall fyrir]]-(Launatafla[[#This Row],[Laun frá launagreiðanda]]+Launatafla[[#This Row],[Atvinnuleysisbætur fyrir skerðingu]]+Launatafla[[#This Row],[Skerðing v/ samtals]]),0))","v":0},{"$f":"+Launatafla[[#This Row],[Atvinnuleysisbætur fyrir skerðingu]]+Launatafla[[#This Row],[Skerðing v/ samtals]]+Launatafla[[#This Row],[Viðbót v/ tryggðra lágmarkslauna]]","v":100000.00000000003},{"$f":"+Launatafla[[#This Row],[Laun frá launagreiðanda]]+Launatafla[[#This Row],[Laun frá ríkissjóði]]","v":450000},{"$f":"IFERROR(Launatafla[[#This Row],[Heildarlaun]]/Launatafla[[#This Row],[Meðal heildarlaun sl. 3M fyrir skatta]],0)","v":0.9}]
[null,"Mótframlag launagreiðanda í stéttarfélag (%)*1",1.55E-2,null,"Starfsmaður 17",500000,1,0.4,{"$f":"+Launatafla[[#This Row],[Starfshlutfall fyrir]]-Launatafla[[#This Row],[Skerðing starfshlutfalls]]","v":0.6},{"$f":"+IF(OR(Launatafla[[#This Row],[Skerðing starfshlutfalls]]>Hámarkslækkun_starfshl,Launatafla[[#This Row],[Skerðing starfshlutfalls]]<Lágmarkslækkun_starfshl),0,Atvinnuleysisbætur*Launatafla[[#This Row],[Skerðing starfshlutfalls]])","v":182561.6},{"$f":"IFERROR(Launatafla[[#This Row],[Meðal heildarlaun sl. 3M fyrir skatta]]/Launatafla[[#This Row],[Starfshlutfall fyrir]],0)*(Launatafla[[#This Row],[Starfshlutfall fyrir]]-Launatafla[[#This Row],[Skerðing starfshlutfalls]])","v":300000},{"$f":"+Launatafla[[#This Row],[Atvinnuleysisbætur fyrir skerðingu]]+Launatafla[[#This Row],[Laun frá launagreiðanda]]","v":482561.6},{"$f":"-MAX(Launatafla[[#This Row],[Laun með bótum án skerðingar]]-Launatafla[[#This Row],[Meðal heildarlaun sl. 3M fyrir skatta]]*Hámarkshlutfall_af_launum,0)","v":-32561.599999999977},{"$f":"-MIN(MAX(Launatafla[[#This Row],[Laun með bótum án skerðingar]]-Hámarkslaun,0),Launatafla[[#This Row],[Atvinnuleysisbætur fyrir skerðingu]])","v":0},{"$f":"+MIN(Launatafla[[#This Row],[Skerðing v/ hámarkshlutfalls]:[Skerðing v/ hámarkslauna]])","v":-32561.599999999977},{"$f":"+IF(Launatafla[[#This Row],[Atvinnuleysisbætur fyrir skerðingu]]=0,0,\nMAX(MIN(Lágmarkslaun_fullt_starf,Launatafla[[#This Row],[Meðal heildarlaun sl. 3M fyrir skatta]]/Launatafla[[#This Row],[Starfshlutfall fyrir]])*Launatafla[[#This Row],[Starfshlutfall fyrir]]-(Launatafla[[#This Row],[Laun frá launagreiðanda]]+Launatafla[[#This Row],[Atvinnuleysisbætur fyrir skerðingu]]+Launatafla[[#This Row],[Skerðing v/ samtals]]),0))","v":0},{"$f":"+Launatafla[[#This Row],[Atvinnuleysisbætur fyrir skerðingu]]+Launatafla[[#This Row],[Skerðing v/ samtals]]+Launatafla[[#This Row],[Viðbót v/ tryggðra lágmarkslauna]]","v":150000.00000000003},{"$f":"+Launatafla[[#This Row],[Laun frá launagreiðanda]]+Launatafla[[#This Row],[Laun frá ríkissjóði]]","v":450000},{"$f":"IFERROR(Launatafla[[#This Row],[Heildarlaun]]/Launatafla[[#This Row],[Meðal heildarlaun sl. 3M fyrir skatta]],0)","v":0.9}]
[null,"Tekjuskattur",null,null,"Starfsmaður 18",500000,1,0.5,{"$f":"+Launatafla[[#This Row],[Starfshlutfall fyrir]]-Launatafla[[#This Row],[Skerðing starfshlutfalls]]","v":0.5},{"$f":"+IF(OR(Launatafla[[#This Row],[Skerðing starfshlutfalls]]>Hámarkslækkun_starfshl,Launatafla[[#This Row],[Skerðing starfshlutfalls]]<Lágmarkslækkun_starfshl),0,Atvinnuleysisbætur*Launatafla[[#This Row],[Skerðing starfshlutfalls]])","v":228202},{"$f":"IFERROR(Launatafla[[#This Row],[Meðal heildarlaun sl. 3M fyrir skatta]]/Launatafla[[#This Row],[Starfshlutfall fyrir]],0)*(Launatafla[[#This Row],[Starfshlutfall fyrir]]-Launatafla[[#This Row],[Skerðing starfshlutfalls]])","v":250000},{"$f":"+Launatafla[[#This Row],[Atvinnuleysisbætur fyrir skerðingu]]+Launatafla[[#This Row],[Laun frá launagreiðanda]]","v":478202},{"$f":"-MAX(Launatafla[[#This Row],[Laun með bótum án skerðingar]]-Launatafla[[#This Row],[Meðal heildarlaun sl. 3M fyrir skatta]]*Hámarkshlutfall_af_launum,0)","v":-28202},{"$f":"-MIN(MAX(Launatafla[[#This Row],[Laun með bótum án skerðingar]]-Hámarkslaun,0),Launatafla[[#This Row],[Atvinnuleysisbætur fyrir skerðingu]])","v":0},{"$f":"+MIN(Launatafla[[#This Row],[Skerðing v/ hámarkshlutfalls]:[Skerðing v/ hámarkslauna]])","v":-28202},{"$f":"+IF(Launatafla[[#This Row],[Atvinnuleysisbætur fyrir skerðingu]]=0,0,\nMAX(MIN(Lágmarkslaun_fullt_starf,Launatafla[[#This Row],[Meðal heildarlaun sl. 3M fyrir skatta]]/Launatafla[[#This Row],[Starfshlutfall fyrir]])*Launatafla[[#This Row],[Starfshlutfall fyrir]]-(Launatafla[[#This Row],[Laun frá launagreiðanda]]+Launatafla[[#This Row],[Atvinnuleysisbætur fyrir skerðingu]]+Launatafla[[#This Row],[Skerðing v/ samtals]]),0))","v":0},{"$f":"+Launatafla[[#This Row],[Atvinnuleysisbætur fyrir skerðingu]]+Launatafla[[#This Row],[Skerðing v/ samtals]]+Launatafla[[#This Row],[Viðbót v/ tryggðra lágmarkslauna]]","v":200000},{"$f":"+Launatafla[[#This Row],[Laun frá launagreiðanda]]+Launatafla[[#This Row],[Laun frá ríkissjóði]]","v":450000},{"$f":"IFERROR(Launatafla[[#This Row],[Heildarlaun]]/Launatafla[[#This Row],[Meðal heildarlaun sl. 3M fyrir skatta]],0)","v":0.9}]
[null,"1. skattþrep (%)*2",0.35039999999999999,null,"Starfsmaður 19",500000,1,0.6,{"$f":"+Launatafla[[#This Row],[Starfshlutfall fyrir]]-Launatafla[[#This Row],[Skerðing starfshlutfalls]]","v":0.4},{"$f":"+IF(OR(Launatafla[[#This Row],[Skerðing starfshlutfalls]]>Hámarkslækkun_starfshl,Launatafla[[#This Row],[Skerðing starfshlutfalls]]<Lágmarkslækkun_starfshl),0,Atvinnuleysisbætur*Launatafla[[#This Row],[Skerðing starfshlutfalls]])","v":273842.39999999997},{"$f":"IFERROR(Launatafla[[#This Row],[Meðal heildarlaun sl. 3M fyrir skatta]]/Launatafla[[#This Row],[Starfshlutfall fyrir]],0)*(Launatafla[[#This Row],[Starfshlutfall fyrir]]-Launatafla[[#This Row],[Skerðing starfshlutfalls]])","v":200000},{"$f":"+Launatafla[[#This Row],[Atvinnuleysisbætur fyrir skerðingu]]+Launatafla[[#This Row],[Laun frá launagreiðanda]]","v":473842.39999999997},{"$f":"-MAX(Launatafla[[#This Row],[Laun með bótum án skerðingar]]-Launatafla[[#This Row],[Meðal heildarlaun sl. 3M fyrir skatta]]*Hámarkshlutfall_af_launum,0)","v":-23842.399999999965},{"$f":"-MIN(MAX(Launatafla[[#This Row],[Laun með bótum án skerðingar]]-Hámarkslaun,0),Launatafla[[#This Row],[Atvinnuleysisbætur fyrir skerðingu]])","v":0},{"$f":"+MIN(Launatafla[[#This Row],[Skerðing v/ hámarkshlutfalls]:[Skerðing v/ hámarkslauna]])","v":-23842.399999999965},{"$f":"+IF(Launatafla[[#This Row],[Atvinnuleysisbætur fyrir skerðingu]]=0,0,\nMAX(MIN(Lágmarkslaun_fullt_starf,Launatafla[[#This Row],[Meðal heildarlaun sl. 3M fyrir skatta]]/Launatafla[[#This Row],[Starfshlutfall fyrir]])*Launatafla[[#This Row],[Starfshlutfall fyrir]]-(Launatafla[[#This Row],[Laun frá launagreiðanda]]+Launatafla[[#This Row],[Atvinnuleysisbætur fyrir skerðingu]]+Launatafla[[#This Row],[Skerðing v/ samtals]]),0))","v":0},{"$f":"+Launatafla[[#This Row],[Atvinnuleysisbætur fyrir skerðingu]]+Launatafla[[#This Row],[Skerðing v/ samtals]]+Launatafla[[#This Row],[Viðbót v/ tryggðra lágmarkslauna]]","v":250000},{"$f":"+Launatafla[[#This Row],[Laun frá launagreiðanda]]+Launatafla[[#This Row],[Laun frá ríkissjóði]]","v":450000},{"$f":"IFERROR(Launatafla[[#This Row],[Heildarlaun]]/Launatafla[[#This Row],[Meðal heildarlaun sl. 3M fyrir skatta]],0)","v":0.9}]
[null,"2. skattþrep (%)*2",0.37190000000000001,null,"Starfsmaður 20",500000,1,0.7,{"$f":"+Launatafla[[#This Row],[Starfshlutfall fyrir]]-Launatafla[[#This Row],[Skerðing starfshlutfalls]]","v":0.30000000000000004},{"$f":"+IF(OR(Launatafla[[#This Row],[Skerðing starfshlutfalls]]>Hámarkslækkun_starfshl,Launatafla[[#This Row],[Skerðing starfshlutfalls]]<Lágmarkslækkun_starfshl),0,Atvinnuleysisbætur*Launatafla[[#This Row],[Skerðing starfshlutfalls]])","v":319482.8},{"$f":"IFERROR(Launatafla[[#This Row],[Meðal heildarlaun sl. 3M fyrir skatta]]/Launatafla[[#This Row],[Starfshlutfall fyrir]],0)*(Launatafla[[#This Row],[Starfshlutfall fyrir]]-Launatafla[[#This Row],[Skerðing starfshlutfalls]])","v":150000.00000000003},{"$f":"+Launatafla[[#This Row],[Atvinnuleysisbætur fyrir skerðingu]]+Launatafla[[#This Row],[Laun frá launagreiðanda]]","v":469482.80000000005},{"$f":"-MAX(Launatafla[[#This Row],[Laun með bótum án skerðingar]]-Launatafla[[#This Row],[Meðal heildarlaun sl. 3M fyrir skatta]]*Hámarkshlutfall_af_launum,0)","v":-19482.800000000047},{"$f":"-MIN(MAX(Launatafla[[#This Row],[Laun með bótum án skerðingar]]-Hámarkslaun,0),Launatafla[[#This Row],[Atvinnuleysisbætur fyrir skerðingu]])","v":0},{"$f":"+MIN(Launatafla[[#This Row],[Skerðing v/ hámarkshlutfalls]:[Skerðing v/ hámarkslauna]])","v":-19482.800000000047},{"$f":"+IF(Launatafla[[#This Row],[Atvinnuleysisbætur fyrir skerðingu]]=0,0,\nMAX(MIN(Lágmarkslaun_fullt_starf,Launatafla[[#This Row],[Meðal heildarlaun sl. 3M fyrir skatta]]/Launatafla[[#This Row],[Starfshlutfall fyrir]])*Launatafla[[#This Row],[Starfshlutfall fyrir]]-(Launatafla[[#This Row],[Laun frá launagreiðanda]]+Launatafla[[#This Row],[Atvinnuleysisbætur fyrir skerðingu]]+Launatafla[[#This Row],[Skerðing v/ samtals]]),0))","v":0},{"$f":"+Launatafla[[#This Row],[Atvinnuleysisbætur fyrir skerðingu]]+Launatafla[[#This Row],[Skerðing v/ samtals]]+Launatafla[[#This Row],[Viðbót v/ tryggðra lágmarkslauna]]","v":299999.99999999994},{"$f":"+Launatafla[[#This Row],[Laun frá launagreiðanda]]+Launatafla[[#This Row],[Laun frá ríkissjóði]]","v":450000},{"$f":"IFERROR(Launatafla[[#This Row],[Heildarlaun]]/Launatafla[[#This Row],[Meðal heildarlaun sl. 3M fyrir skatta]],0)","v":0.9}]
[null,"3. skattþrep (%)*2",0.46239999999999998,null,"Starfsmaður 21",500000,1,0.75,{"$f":"+Launatafla[[#This Row],[Starfshlutfall fyrir]]-Launatafla[[#This Row],[Skerðing starfshlutfalls]]","v":0.25},{"$f":"+IF(OR(Launatafla[[#This Row],[Skerðing starfshlutfalls]]>Hámarkslækkun_starfshl,Launatafla[[#This Row],[Skerðing starfshlutfalls]]<Lágmarkslækkun_starfshl),0,Atvinnuleysisbætur*Launatafla[[#This Row],[Skerðing starfshlutfalls]])","v":342303},{"$f":"IFERROR(Launatafla[[#This Row],[Meðal heildarlaun sl. 3M fyrir skatta]]/Launatafla[[#This Row],[Starfshlutfall fyrir]],0)*(Launatafla[[#This Row],[Starfshlutfall fyrir]]-Launatafla[[#This Row],[Skerðing starfshlutfalls]])","v":125000},{"$f":"+Launatafla[[#This Row],[Atvinnuleysisbætur fyrir skerðingu]]+Launatafla[[#This Row],[Laun frá launagreiðanda]]","v":467303},{"$f":"-MAX(Launatafla[[#This Row],[Laun með bótum án skerðingar]]-Launatafla[[#This Row],[Meðal heildarlaun sl. 3M fyrir skatta]]*Hámarkshlutfall_af_launum,0)","v":-17303},{"$f":"-MIN(MAX(Launatafla[[#This Row],[Laun með bótum án skerðingar]]-Hámarkslaun,0),Launatafla[[#This Row],[Atvinnuleysisbætur fyrir skerðingu]])","v":0},{"$f":"+MIN(Launatafla[[#This Row],[Skerðing v/ hámarkshlutfalls]:[Skerðing v/ hámarkslauna]])","v":-17303},{"$f":"+IF(Launatafla[[#This Row],[Atvinnuleysisbætur fyrir skerðingu]]=0,0,\nMAX(MIN(Lágmarkslaun_fullt_starf,Launatafla[[#This Row],[Meðal heildarlaun sl. 3M fyrir skatta]]/Launatafla[[#This Row],[Starfshlutfall fyrir]])*Launatafla[[#This Row],[Starfshlutfall fyrir]]-(Launatafla[[#This Row],[Laun frá launagreiðanda]]+Launatafla[[#This Row],[Atvinnuleysisbætur fyrir skerðingu]]+Launatafla[[#This Row],[Skerðing v/ samtals]]),0))","v":0},{"$f":"+Launatafla[[#This Row],[Atvinnuleysisbætur fyrir skerðingu]]+Launatafla[[#This Row],[Skerðing v/ samtals]]+Launatafla[[#This Row],[Viðbót v/ tryggðra lágmarkslauna]]","v":325000},{"$f":"+Launatafla[[#This Row],[Laun frá launagreiðanda]]+Launatafla[[#This Row],[Laun frá ríkissjóði]]","v":450000},{"$f":"IFERROR(Launatafla[[#This Row],[Heildarlaun]]/Launatafla[[#This Row],[Meðal heildarlaun sl. 3M fyrir skatta]],0)","v":0.9}]
[null,"Fjárhæðarmörk 1. þreps - Tekjur að (kr.)",336916,null,"Starfsmaður 22",600000,1,0.2,{"$f":"+Launatafla[[#This Row],[Starfshlutfall fyrir]]-Launatafla[[#This Row],[Skerðing starfshlutfalls]]","v":0.8},{"$f":"+IF(OR(Launatafla[[#This Row],[Skerðing starfshlutfalls]]>Hámarkslækkun_starfshl,Launatafla[[#This Row],[Skerðing starfshlutfalls]]<Lágmarkslækkun_starfshl),0,Atvinnuleysisbætur*Launatafla[[#This Row],[Skerðing starfshlutfalls]])","v":91280.8},{"$f":"IFERROR(Launatafla[[#This Row],[Meðal heildarlaun sl. 3M fyrir skatta]]/Launatafla[[#This Row],[Starfshlutfall fyrir]],0)*(Launatafla[[#This Row],[Starfshlutfall fyrir]]-Launatafla[[#This Row],[Skerðing starfshlutfalls]])","v":480000},{"$f":"+Launatafla[[#This Row],[Atvinnuleysisbætur fyrir skerðingu]]+Launatafla[[#This Row],[Laun frá launagreiðanda]]","v":571280.80000000005},{"$f":"-MAX(Launatafla[[#This Row],[Laun með bótum án skerðingar]]-Launatafla[[#This Row],[Meðal heildarlaun sl. 3M fyrir skatta]]*Hámarkshlutfall_af_launum,0)","v":-31280.800000000047},{"$f":"-MIN(MAX(Launatafla[[#This Row],[Laun með bótum án skerðingar]]-Hámarkslaun,0),Launatafla[[#This Row],[Atvinnuleysisbætur fyrir skerðingu]])","v":0},{"$f":"+MIN(Launatafla[[#This Row],[Skerðing v/ hámarkshlutfalls]:[Skerðing v/ hámarkslauna]])","v":-31280.800000000047},{"$f":"+IF(Launatafla[[#This Row],[Atvinnuleysisbætur fyrir skerðingu]]=0,0,\nMAX(MIN(Lágmarkslaun_fullt_starf,Launatafla[[#This Row],[Meðal heildarlaun sl. 3M fyrir skatta]]/Launatafla[[#This Row],[Starfshlutfall fyrir]])*Launatafla[[#This Row],[Starfshlutfall fyrir]]-(Launatafla[[#This Row],[Laun frá launagreiðanda]]+Launatafla[[#This Row],[Atvinnuleysisbætur fyrir skerðingu]]+Launatafla[[#This Row],[Skerðing v/ samtals]]),0))","v":0},{"$f":"+Launatafla[[#This Row],[Atvinnuleysisbætur fyrir skerðingu]]+Launatafla[[#This Row],[Skerðing v/ samtals]]+Launatafla[[#This Row],[Viðbót v/ tryggðra lágmarkslauna]]","v":59999.999999999956},{"$f":"+Launatafla[[#This Row],[Laun frá launagreiðanda]]+Launatafla[[#This Row],[Laun frá ríkissjóði]]","v":540000},{"$f":"IFERROR(Launatafla[[#This Row],[Heildarlaun]]/Launatafla[[#This Row],[Meðal heildarlaun sl. 3M fyrir skatta]],0)","v":0.9}]
[null,"Fjárhæðarmörk 2. þreps - Tekjur frá efri mörk 1. þreps að (kr.)",945873,null,"Starfsmaður 23",600000,1,0.3,{"$f":"+Launatafla[[#This Row],[Starfshlutfall fyrir]]-Launatafla[[#This Row],[Skerðing starfshlutfalls]]","v":0.7},{"$f":"+IF(OR(Launatafla[[#This Row],[Skerðing starfshlutfalls]]>Hámarkslækkun_starfshl,Launatafla[[#This Row],[Skerðing starfshlutfalls]]<Lágmarkslækkun_starfshl),0,Atvinnuleysisbætur*Launatafla[[#This Row],[Skerðing starfshlutfalls]])","v":136921.19999999998},{"$f":"IFERROR(Launatafla[[#This Row],[Meðal heildarlaun sl. 3M fyrir skatta]]/Launatafla[[#This Row],[Starfshlutfall fyrir]],0)*(Launatafla[[#This Row],[Starfshlutfall fyrir]]-Launatafla[[#This Row],[Skerðing starfshlutfalls]])","v":420000},{"$f":"+Launatafla[[#This Row],[Atvinnuleysisbætur fyrir skerðingu]]+Launatafla[[#This Row],[Laun frá launagreiðanda]]","v":556921.19999999995},{"$f":"-MAX(Launatafla[[#This Row],[Laun með bótum án skerðingar]]-Launatafla[[#This Row],[Meðal heildarlaun sl. 3M fyrir skatta]]*Hámarkshlutfall_af_launum,0)","v":-16921.199999999953},{"$f":"-MIN(MAX(Launatafla[[#This Row],[Laun með bótum án skerðingar]]-Hámarkslaun,0),Launatafla[[#This Row],[Atvinnuleysisbætur fyrir skerðingu]])","v":0},{"$f":"+MIN(Launatafla[[#This Row],[Skerðing v/ hámarkshlutfalls]:[Skerðing v/ hámarkslauna]])","v":-16921.199999999953},{"$f":"+IF(Launatafla[[#This Row],[Atvinnuleysisbætur fyrir skerðingu]]=0,0,\nMAX(MIN(Lágmarkslaun_fullt_starf,Launatafla[[#This Row],[Meðal heildarlaun sl. 3M fyrir skatta]]/Launatafla[[#This Row],[Starfshlutfall fyrir]])*Launatafla[[#This Row],[Starfshlutfall fyrir]]-(Launatafla[[#This Row],[Laun frá launagreiðanda]]+Launatafla[[#This Row],[Atvinnuleysisbætur fyrir skerðingu]]+Launatafla[[#This Row],[Skerðing v/ samtals]]),0))","v":0},{"$f":"+Launatafla[[#This Row],[Atvinnuleysisbætur fyrir skerðingu]]+Launatafla[[#This Row],[Skerðing v/ samtals]]+Launatafla[[#This Row],[Viðbót v/ tryggðra lágmarkslauna]]","v":120000.00000000003},{"$f":"+Launatafla[[#This Row],[Laun frá launagreiðanda]]+Launatafla[[#This Row],[Laun frá ríkissjóði]]","v":540000},{"$f":"IFERROR(Launatafla[[#This Row],[Heildarlaun]]/Launatafla[[#This Row],[Meðal heildarlaun sl. 3M fyrir skatta]],0)","v":0.9}]
[null,"Fjárhæðarmörk 3. þreps - Tekjur frá",945874,null,"Starfsmaður 24",600000,1,0.4,{"$f":"+Launatafla[[#This Row],[Starfshlutfall fyrir]]-Launatafla[[#This Row],[Skerðing starfshlutfalls]]","v":0.6},{"$f":"+IF(OR(Launatafla[[#This Row],[Skerðing starfshlutfalls]]>Hámarkslækkun_starfshl,Launatafla[[#This Row],[Skerðing starfshlutfalls]]<Lágmarkslækkun_starfshl),0,Atvinnuleysisbætur*Launatafla[[#This Row],[Skerðing starfshlutfalls]])","v":182561.6},{"$f":"IFERROR(Launatafla[[#This Row],[Meðal heildarlaun sl. 3M fyrir skatta]]/Launatafla[[#This Row],[Starfshlutfall fyrir]],0)*(Launatafla[[#This Row],[Starfshlutfall fyrir]]-Launatafla[[#This Row],[Skerðing starfshlutfalls]])","v":360000},{"$f":"+Launatafla[[#This Row],[Atvinnuleysisbætur fyrir skerðingu]]+Launatafla[[#This Row],[Laun frá launagreiðanda]]","v":542561.6},{"$f":"-MAX(Launatafla[[#This Row],[Laun með bótum án skerðingar]]-Launatafla[[#This Row],[Meðal heildarlaun sl. 3M fyrir skatta]]*Hámarkshlutfall_af_launum,0)","v":-2561.5999999999767},{"$f":"-MIN(MAX(Launatafla[[#This Row],[Laun með bótum án skerðingar]]-Hámarkslaun,0),Launatafla[[#This Row],[Atvinnuleysisbætur fyrir skerðingu]])","v":0},{"$f":"+MIN(Launatafla[[#This Row],[Skerðing v/ hámarkshlutfalls]:[Skerðing v/ hámarkslauna]])","v":-2561.5999999999767},{"$f":"+IF(Launatafla[[#This Row],[Atvinnuleysisbætur fyrir skerðingu]]=0,0,\nMAX(MIN(Lágmarkslaun_fullt_starf,Launatafla[[#This Row],[Meðal heildarlaun sl. 3M fyrir skatta]]/Launatafla[[#This Row],[Starfshlutfall fyrir]])*Launatafla[[#This Row],[Starfshlutfall fyrir]]-(Launatafla[[#This Row],[Laun frá launagreiðanda]]+Launatafla[[#This Row],[Atvinnuleysisbætur fyrir skerðingu]]+Launatafla[[#This Row],[Skerðing v/ samtals]]),0))","v":0},{"$f":"+Launatafla[[#This Row],[Atvinnuleysisbætur fyrir skerðingu]]+Launatafla[[#This Row],[Skerðing v/ samtals]]+Launatafla[[#This Row],[Viðbót v/ tryggðra lágmarkslauna]]","v":180000.00000000003},{"$f":"+Launatafla[[#This Row],[Laun frá launagreiðanda]]+Launatafla[[#This Row],[Laun frá ríkissjóði]]","v":540000},{"$f":"IFERROR(Launatafla[[#This Row],[Heildarlaun]]/Launatafla[[#This Row],[Meðal heildarlaun sl. 3M fyrir skatta]],0)","v":0.9}]
[null,"Persónuafsláttur",54628,null,"Starfsmaður 25",600000,1,0.5,{"$f":"+Launatafla[[#This Row],[Starfshlutfall fyrir]]-Launatafla[[#This Row],[Skerðing starfshlutfalls]]","v":0.5},{"$f":"+IF(OR(Launatafla[[#This Row],[Skerðing starfshlutfalls]]>Hámarkslækkun_starfshl,Launatafla[[#This Row],[Skerðing starfshlutfalls]]<Lágmarkslækkun_starfshl),0,Atvinnuleysisbætur*Launatafla[[#This Row],[Skerðing starfshlutfalls]])","v":228202},{"$f":"IFERROR(Launatafla[[#This Row],[Meðal heildarlaun sl. 3M fyrir skatta]]/Launatafla[[#This Row],[Starfshlutfall fyrir]],0)*(Launatafla[[#This Row],[Starfshlutfall fyrir]]-Launatafla[[#This Row],[Skerðing starfshlutfalls]])","v":300000},{"$f":"+Launatafla[[#This Row],[Atvinnuleysisbætur fyrir skerðingu]]+Launatafla[[#This Row],[Laun frá launagreiðanda]]","v":528202},{"$f":"-MAX(Launatafla[[#This Row],[Laun með bótum án skerðingar]]-Launatafla[[#This Row],[Meðal heildarlaun sl. 3M fyrir skatta]]*Hámarkshlutfall_af_launum,0)","v":0},{"$f":"-MIN(MAX(Launatafla[[#This Row],[Laun með bótum án skerðingar]]-Hámarkslaun,0),Launatafla[[#This Row],[Atvinnuleysisbætur fyrir skerðingu]])","v":0},{"$f":"+MIN(Launatafla[[#This Row],[Skerðing v/ hámarkshlutfalls]:[Skerðing v/ hámarkslauna]])","v":0},{"$f":"+IF(Launatafla[[#This Row],[Atvinnuleysisbætur fyrir skerðingu]]=0,0,\nMAX(MIN(Lágmarkslaun_fullt_starf,Launatafla[[#This Row],[Meðal heildarlaun sl. 3M fyrir skatta]]/Launatafla[[#This Row],[Starfshlutfall fyrir]])*Launatafla[[#This Row],[Starfshlutfall fyrir]]-(Launatafla[[#This Row],[Laun frá launagreiðanda]]+Launatafla[[#This Row],[Atvinnuleysisbætur fyrir skerðingu]]+Launatafla[[#This Row],[Skerðing v/ samtals]]),0))","v":0},{"$f":"+Launatafla[[#This Row],[Atvinnuleysisbætur fyrir skerðingu]]+Launatafla[[#This Row],[Skerðing v/ samtals]]+Launatafla[[#This Row],[Viðbót v/ tryggðra lágmarkslauna]]","v":228202},{"$f":"+Launatafla[[#This Row],[Laun frá launagreiðanda]]+Launatafla[[#This Row],[Laun frá ríkissjóði]]","v":528202},{"$f":"IFERROR(Launatafla[[#This Row],[Heildarlaun]]/Launatafla[[#This Row],[Meðal heildarlaun sl. 3M fyrir skatta]],0)","v":0.88033666666666666}]
[null,"*1: Iðgjald launþega og launagreiðanda í stéttarfélag er mismunandi eftir stéttarfélögum. Hér er miðað við stéttarfélag VR.",null,null,"Starfsmaður 26",600000,1,0.6,{"$f":"+Launatafla[[#This Row],[Starfshlutfall fyrir]]-Launatafla[[#This Row],[Skerðing starfshlutfalls]]","v":0.4},{"$f":"+IF(OR(Launatafla[[#This Row],[Skerðing starfshlutfalls]]>Hámarkslækkun_starfshl,Launatafla[[#This Row],[Skerðing starfshlutfalls]]<Lágmarkslækkun_starfshl),0,Atvinnuleysisbætur*Launatafla[[#This Row],[Skerðing starfshlutfalls]])","v":273842.39999999997},{"$f":"IFERROR(Launatafla[[#This Row],[Meðal heildarlaun sl. 3M fyrir skatta]]/Launatafla[[#This Row],[Starfshlutfall fyrir]],0)*(Launatafla[[#This Row],[Starfshlutfall fyrir]]-Launatafla[[#This Row],[Skerðing starfshlutfalls]])","v":240000},{"$f":"+Launatafla[[#This Row],[Atvinnuleysisbætur fyrir skerðingu]]+Launatafla[[#This Row],[Laun frá launagreiðanda]]","v":513842.39999999997},{"$f":"-MAX(Launatafla[[#This Row],[Laun með bótum án skerðingar]]-Launatafla[[#This Row],[Meðal heildarlaun sl. 3M fyrir skatta]]*Hámarkshlutfall_af_launum,0)","v":0},{"$f":"-MIN(MAX(Launatafla[[#This Row],[Laun með bótum án skerðingar]]-Hámarkslaun,0),Launatafla[[#This Row],[Atvinnuleysisbætur fyrir skerðingu]])","v":0},{"$f":"+MIN(Launatafla[[#This Row],[Skerðing v/ hámarkshlutfalls]:[Skerðing v/ hámarkslauna]])","v":0},{"$f":"+IF(Launatafla[[#This Row],[Atvinnuleysisbætur fyrir skerðingu]]=0,0,\nMAX(MIN(Lágmarkslaun_fullt_starf,Launatafla[[#This Row],[Meðal heildarlaun sl. 3M fyrir skatta]]/Launatafla[[#This Row],[Starfshlutfall fyrir]])*Launatafla[[#This Row],[Starfshlutfall fyrir]]-(Launatafla[[#This Row],[Laun frá launagreiðanda]]+Launatafla[[#This Row],[Atvinnuleysisbætur fyrir skerðingu]]+Launatafla[[#This Row],[Skerðing v/ samtals]]),0))","v":0},{"$f":"+Launatafla[[#This Row],[Atvinnuleysisbætur fyrir skerðingu]]+Launatafla[[#This Row],[Skerðing v/ samtals]]+Launatafla[[#This Row],[Viðbót v/ tryggðra lágmarkslauna]]","v":273842.39999999997},{"$f":"+Launatafla[[#This Row],[Laun frá launagreiðanda]]+Launatafla[[#This Row],[Laun frá ríkissjóði]]","v":513842.39999999997},{"$f":"IFERROR(Launatafla[[#This Row],[Heildarlaun]]/Launatafla[[#This Row],[Meðal heildarlaun sl. 3M fyrir skatta]],0)","v":0.85640399999999994}]
[null,null,null,null,"Starfsmaður 27",600000,1,0.7,{"$f":"+Launatafla[[#This Row],[Starfshlutfall fyrir]]-Launatafla[[#This Row],[Skerðing starfshlutfalls]]","v":0.30000000000000004},{"$f":"+IF(OR(Launatafla[[#This Row],[Skerðing starfshlutfalls]]>Hámarkslækkun_starfshl,Launatafla[[#This Row],[Skerðing starfshlutfalls]]<Lágmarkslækkun_starfshl),0,Atvinnuleysisbætur*Launatafla[[#This Row],[Skerðing starfshlutfalls]])","v":319482.8},{"$f":"IFERROR(Launatafla[[#This Row],[Meðal heildarlaun sl. 3M fyrir skatta]]/Launatafla[[#This Row],[Starfshlutfall fyrir]],0)*(Launatafla[[#This Row],[Starfshlutfall fyrir]]-Launatafla[[#This Row],[Skerðing starfshlutfalls]])","v":180000.00000000003},{"$f":"+Launatafla[[#This Row],[Atvinnuleysisbætur fyrir skerðingu]]+Launatafla[[#This Row],[Laun frá launagreiðanda]]","v":499482.80000000005},{"$f":"-MAX(Launatafla[[#This Row],[Laun með bótum án skerðingar]]-Launatafla[[#This Row],[Meðal heildarlaun sl. 3M fyrir skatta]]*Hámarkshlutfall_af_launum,0)","v":0},{"$f":"-MIN(MAX(Launatafla[[#This Row],[Laun með bótum án skerðingar]]-Hámarkslaun,0),Launatafla[[#This Row],[Atvinnuleysisbætur fyrir skerðingu]])","v":0},{"$f":"+MIN(Launatafla[[#This Row],[Skerðing v/ hámarkshlutfalls]:[Skerðing v/ hámarkslauna]])","v":0},{"$f":"+IF(Launatafla[[#This Row],[Atvinnuleysisbætur fyrir skerðingu]]=0,0,\nMAX(MIN(Lágmarkslaun_fullt_starf,Launatafla[[#This Row],[Meðal heildarlaun sl. 3M fyrir skatta]]/Launatafla[[#This Row],[Starfshlutfall fyrir]])*Launatafla[[#This Row],[Starfshlutfall fyrir]]-(Launatafla[[#This Row],[Laun frá launagreiðanda]]+Launatafla[[#This Row],[Atvinnuleysisbætur fyrir skerðingu]]+Launatafla[[#This Row],[Skerðing v/ samtals]]),0))","v":0},{"$f":"+Launatafla[[#This Row],[Atvinnuleysisbætur fyrir skerðingu]]+Launatafla[[#This Row],[Skerðing v/ samtals]]+Launatafla[[#This Row],[Viðbót v/ tryggðra lágmarkslauna]]","v":319482.8},{"$f":"+Launatafla[[#This Row],[Laun frá launagreiðanda]]+Launatafla[[#This Row],[Laun frá ríkissjóði]]","v":499482.80000000005},{"$f":"IFERROR(Launatafla[[#This Row],[Heildarlaun]]/Launatafla[[#This Row],[Meðal heildarlaun sl. 3M fyrir skatta]],0)","v":0.83247133333333345}]
[null,"*2: Tekjuskattshlutfall miðar við meðalútsvar 14,44%.",null,null,"Starfsmaður 28",600000,1,0.75,{"$f":"+Launatafla[[#This Row],[Starfshlutfall fyrir]]-Launatafla[[#This Row],[Skerðing starfshlutfalls]]","v":0.25},{"$f":"+IF(OR(Launatafla[[#This Row],[Skerðing starfshlutfalls]]>Hámarkslækkun_starfshl,Launatafla[[#This Row],[Skerðing starfshlutfalls]]<Lágmarkslækkun_starfshl),0,Atvinnuleysisbætur*Launatafla[[#This Row],[Skerðing starfshlutfalls]])","v":342303},{"$f":"IFERROR(Launatafla[[#This Row],[Meðal heildarlaun sl. 3M fyrir skatta]]/Launatafla[[#This Row],[Starfshlutfall fyrir]],0)*(Launatafla[[#This Row],[Starfshlutfall fyrir]]-Launatafla[[#This Row],[Skerðing starfshlutfalls]])","v":150000},{"$f":"+Launatafla[[#This Row],[Atvinnuleysisbætur fyrir skerðingu]]+Launatafla[[#This Row],[Laun frá launagreiðanda]]","v":492303},{"$f":"-MAX(Launatafla[[#This Row],[Laun með bótum án skerðingar]]-Launatafla[[#This Row],[Meðal heildarlaun sl. 3M fyrir skatta]]*Hámarkshlutfall_af_launum,0)","v":0},{"$f":"-MIN(MAX(Launatafla[[#This Row],[Laun með bótum án skerðingar]]-Hámarkslaun,0),Launatafla[[#This Row],[Atvinnuleysisbætur fyrir skerðingu]])","v":0},{"$f":"+MIN(Launatafla[[#This Row],[Skerðing v/ hámarkshlutfalls]:[Skerðing v/ hámarkslauna]])","v":0},{"$f":"+IF(Launatafla[[#This Row],[Atvinnuleysisbætur fyrir skerðingu]]=0,0,\nMAX(MIN(Lágmarkslaun_fullt_starf,Launatafla[[#This Row],[Meðal heildarlaun sl. 3M fyrir skatta]]/Launatafla[[#This Row],[Starfshlutfall fyrir]])*Launatafla[[#This Row],[Starfshlutfall fyrir]]-(Launatafla[[#This Row],[Laun frá launagreiðanda]]+Launatafla[[#This Row],[Atvinnuleysisbætur fyrir skerðingu]]+Launatafla[[#This Row],[Skerðing v/ samtals]]),0))","v":0},{"$f":"+Launatafla[[#This Row],[Atvinnuleysisbætur fyrir skerðingu]]+Launatafla[[#This Row],[Skerðing v/ samtals]]+Launatafla[[#This Row],[Viðbót v/ tryggðra lágmarkslauna]]","v":342303},{"$f":"+Launatafla[[#This Row],[Laun frá launagreiðanda]]+Launatafla[[#This Row],[Laun frá ríkissjóði]]","v":492303},{"$f":"IFERROR(Launatafla[[#This Row],[Heildarlaun]]/Launatafla[[#This Row],[Meðal heildarlaun sl. 3M fyrir skatta]],0)","v":0.82050500000000004}]
[null,null,null,null,"Starfsmaður 29",700000,1,0.2,{"$f":"+Launatafla[[#This Row],[Starfshlutfall fyrir]]-Launatafla[[#This Row],[Skerðing starfshlutfalls]]","v":0.8},{"$f":"+IF(OR(Launatafla[[#This Row],[Skerðing starfshlutfalls]]>Hámarkslækkun_starfshl,Launatafla[[#This Row],[Skerðing starfshlutfalls]]<Lágmarkslækkun_starfshl),0,Atvinnuleysisbætur*Launatafla[[#This Row],[Skerðing starfshlutfalls]])","v":91280.8},{"$f":"IFERROR(Launatafla[[#This Row],[Meðal heildarlaun sl. 3M fyrir skatta]]/Launatafla[[#This Row],[Starfshlutfall fyrir]],0)*(Launatafla[[#This Row],[Starfshlutfall fyrir]]-Launatafla[[#This Row],[Skerðing starfshlutfalls]])","v":560000},{"$f":"+Launatafla[[#This Row],[Atvinnuleysisbætur fyrir skerðingu]]+Launatafla[[#This Row],[Laun frá launagreiðanda]]","v":651280.80000000005},{"$f":"-MAX(Launatafla[[#This Row],[Laun með bótum án skerðingar]]-Launatafla[[#This Row],[Meðal heildarlaun sl. 3M fyrir skatta]]*Hámarkshlutfall_af_launum,0)","v":-21280.800000000047},{"$f":"-MIN(MAX(Launatafla[[#This Row],[Laun með bótum án skerðingar]]-Hámarkslaun,0),Launatafla[[#This Row],[Atvinnuleysisbætur fyrir skerðingu]])","v":0},{"$f":"+MIN(Launatafla[[#This Row],[Skerðing v/ hámarkshlutfalls]:[Skerðing v/ hámarkslauna]])","v":-21280.800000000047},{"$f":"+IF(Launatafla[[#This Row],[Atvinnuleysisbætur fyrir skerðingu]]=0,0,\nMAX(MIN(Lágmarkslaun_fullt_starf,Launatafla[[#This Row],[Meðal heildarlaun sl. 3M fyrir skatta]]/Launatafla[[#This Row],[Starfshlutfall fyrir]])*Launatafla[[#This Row],[Starfshlutfall fyrir]]-(Launatafla[[#This Row],[Laun frá launagreiðanda]]+Launatafla[[#This Row],[Atvinnuleysisbætur fyrir skerðingu]]+Launatafla[[#This Row],[Skerðing v/ samtals]]),0))","v":0},{"$f":"+Launatafla[[#This Row],[Atvinnuleysisbætur fyrir skerðingu]]+Launatafla[[#This Row],[Skerðing v/ samtals]]+Launatafla[[#This Row],[Viðbót v/ tryggðra lágmarkslauna]]","v":69999.999999999956},{"$f":"+Launatafla[[#This Row],[Laun frá launagreiðanda]]+Launatafla[[#This Row],[Laun frá ríkissjóði]]","v":630000},{"$f":"IFERROR(Launatafla[[#This Row],[Heildarlaun]]/Launatafla[[#This Row],[Meðal heildarlaun sl. 3M fyrir skatta]],0)","v":0.9}]
[null,null,null,null,"Starfsmaður 30",700000,1,0.3,{"$f":"+Launatafla[[#This Row],[Starfshlutfall fyrir]]-Launatafla[[#This Row],[Skerðing starfshlutfalls]]","v":0.7},{"$f":"+IF(OR(Launatafla[[#This Row],[Skerðing starfshlutfalls]]>Hámarkslækkun_starfshl,Launatafla[[#This Row],[Skerðing starfshlutfalls]]<Lágmarkslækkun_starfshl),0,Atvinnuleysisbætur*Launatafla[[#This Row],[Skerðing starfshlutfalls]])","v":136921.19999999998},{"$f":"IFERROR(Launatafla[[#This Row],[Meðal heildarlaun sl. 3M fyrir skatta]]/Launatafla[[#This Row],[Starfshlutfall fyrir]],0)*(Launatafla[[#This Row],[Starfshlutfall fyrir]]-Launatafla[[#This Row],[Skerðing starfshlutfalls]])","v":489999.99999999994},{"$f":"+Launatafla[[#This Row],[Atvinnuleysisbætur fyrir skerðingu]]+Launatafla[[#This Row],[Laun frá launagreiðanda]]","v":626921.19999999995},{"$f":"-MAX(Launatafla[[#This Row],[Laun með bótum án skerðingar]]-Launatafla[[#This Row],[Meðal heildarlaun sl. 3M fyrir skatta]]*Hámarkshlutfall_af_launum,0)","v":0},{"$f":"-MIN(MAX(Launatafla[[#This Row],[Laun með bótum án skerðingar]]-Hámarkslaun,0),Launatafla[[#This Row],[Atvinnuleysisbætur fyrir skerðingu]])","v":0},{"$f":"+MIN(Launatafla[[#This Row],[Skerðing v/ hámarkshlutfalls]:[Skerðing v/ hámarkslauna]])","v":0},{"$f":"+IF(Launatafla[[#This Row],[Atvinnuleysisbætur fyrir skerðingu]]=0,0,\nMAX(MIN(Lágmarkslaun_fullt_starf,Launatafla[[#This Row],[Meðal heildarlaun sl. 3M fyrir skatta]]/Launatafla[[#This Row],[Starfshlutfall fyrir]])*Launatafla[[#This Row],[Starfshlutfall fyrir]]-(Launatafla[[#This Row],[Laun frá launagreiðanda]]+Launatafla[[#This Row],[Atvinnuleysisbætur fyrir skerðingu]]+Launatafla[[#This Row],[Skerðing v/ samtals]]),0))","v":0},{"$f":"+Launatafla[[#This Row],[Atvinnuleysisbætur fyrir skerðingu]]+Launatafla[[#This Row],[Skerðing v/ samtals]]+Launatafla[[#This Row],[Viðbót v/ tryggðra lágmarkslauna]]","v":136921.19999999998},{"$f":"+Launatafla[[#This Row],[Laun frá launagreiðanda]]+Launatafla[[#This Row],[Laun frá ríkissjóði]]","v":626921.19999999995},{"$f":"IFERROR(Launatafla[[#This Row],[Heildarlaun]]/Launatafla[[#This Row],[Meðal heildarlaun sl. 3M fyrir skatta]],0)","v":0.89560171428571422}]
[null,null,null,null,"Starfsmaður 31",700000,1,0.4,{"$f":"+Launatafla[[#This Row],[Starfshlutfall fyrir]]-Launatafla[[#This Row],[Skerðing starfshlutfalls]]","v":0.6},{"$f":"+IF(OR(Launatafla[[#This Row],[Skerðing starfshlutfalls]]>Hámarkslækkun_starfshl,Launatafla[[#This Row],[Skerðing starfshlutfalls]]<Lágmarkslækkun_starfshl),0,Atvinnuleysisbætur*Launatafla[[#This Row],[Skerðing starfshlutfalls]])","v":182561.6},{"$f":"IFERROR(Launatafla[[#This Row],[Meðal heildarlaun sl. 3M fyrir skatta]]/Launatafla[[#This Row],[Starfshlutfall fyrir]],0)*(Launatafla[[#This Row],[Starfshlutfall fyrir]]-Launatafla[[#This Row],[Skerðing starfshlutfalls]])","v":420000},{"$f":"+Launatafla[[#This Row],[Atvinnuleysisbætur fyrir skerðingu]]+Launatafla[[#This Row],[Laun frá launagreiðanda]]","v":602561.6},{"$f":"-MAX(Launatafla[[#This Row],[Laun með bótum án skerðingar]]-Launatafla[[#This Row],[Meðal heildarlaun sl. 3M fyrir skatta]]*Hámarkshlutfall_af_launum,0)","v":0},{"$f":"-MIN(MAX(Launatafla[[#This Row],[Laun með bótum án skerðingar]]-Hámarkslaun,0),Launatafla[[#This Row],[Atvinnuleysisbætur fyrir skerðingu]])","v":0},{"$f":"+MIN(Launatafla[[#This Row],[Skerðing v/ hámarkshlutfalls]:[Skerðing v/ hámarkslauna]])","v":0},{"$f":"+IF(Launatafla[[#This Row],[Atvinnuleysisbætur fyrir skerðingu]]=0,0,\nMAX(MIN(Lágmarkslaun_fullt_starf,Launatafla[[#This Row],[Meðal heildarlaun sl. 3M fyrir skatta]]/Launatafla[[#This Row],[Starfshlutfall fyrir]])*Launatafla[[#This Row],[Starfshlutfall fyrir]]-(Launatafla[[#This Row],[Laun frá launagreiðanda]]+Launatafla[[#This Row],[Atvinnuleysisbætur fyrir skerðingu]]+Launatafla[[#This Row],[Skerðing v/ samtals]]),0))","v":0},{"$f":"+Launatafla[[#This Row],[Atvinnuleysisbætur fyrir skerðingu]]+Launatafla[[#This Row],[Skerðing v/ samtals]]+Launatafla[[#This Row],[Viðbót v/ tryggðra lágmarkslauna]]","v":182561.6},{"$f":"+Launatafla[[#This Row],[Laun frá launagreiðanda]]+Launatafla[[#This Row],[Laun frá ríkissjóði]]","v":602561.6},{"$f":"IFERROR(Launatafla[[#This Row],[Heildarlaun]]/Launatafla[[#This Row],[Meðal heildarlaun sl. 3M fyrir skatta]],0)","v":0.86080228571428563}]
[null,null,null,null,"Starfsmaður 32",700000,1,0.5,{"$f":"+Launatafla[[#This Row],[Starfshlutfall fyrir]]-Launatafla[[#This Row],[Skerðing starfshlutfalls]]","v":0.5},{"$f":"+IF(OR(Launatafla[[#This Row],[Skerðing starfshlutfalls]]>Hámarkslækkun_starfshl,Launatafla[[#This Row],[Skerðing starfshlutfalls]]<Lágmarkslækkun_starfshl),0,Atvinnuleysisbætur*Launatafla[[#This Row],[Skerðing starfshlutfalls]])","v":228202},{"$f":"IFERROR(Launatafla[[#This Row],[Meðal heildarlaun sl. 3M fyrir skatta]]/Launatafla[[#This Row],[Starfshlutfall fyrir]],0)*(Launatafla[[#This Row],[Starfshlutfall fyrir]]-Launatafla[[#This Row],[Skerðing starfshlutfalls]])","v":350000},{"$f":"+Launatafla[[#This Row],[Atvinnuleysisbætur fyrir skerðingu]]+Launatafla[[#This Row],[Laun frá launagreiðanda]]","v":578202},{"$f":"-MAX(Launatafla[[#This Row],[Laun með bótum án skerðingar]]-Launatafla[[#This Row],[Meðal heildarlaun sl. 3M fyrir skatta]]*Hámarkshlutfall_af_launum,0)","v":0},{"$f":"-MIN(MAX(Launatafla[[#This Row],[Laun með bótum án skerðingar]]-Hámarkslaun,0),Launatafla[[#This Row],[Atvinnuleysisbætur fyrir skerðingu]])","v":0},{"$f":"+MIN(Launatafla[[#This Row],[Skerðing v/ hámarkshlutfalls]:[Skerðing v/ hámarkslauna]])","v":0},{"$f":"+IF(Launatafla[[#This Row],[Atvinnuleysisbætur fyrir skerðingu]]=0,0,\nMAX(MIN(Lágmarkslaun_fullt_starf,Launatafla[[#This Row],[Meðal heildarlaun sl. 3M fyrir skatta]]/Launatafla[[#This Row],[Starfshlutfall fyrir]])*Launatafla[[#This Row],[Starfshlutfall fyrir]]-(Launatafla[[#This Row],[Laun frá launagreiðanda]]+Launatafla[[#This Row],[Atvinnuleysisbætur fyrir skerðingu]]+Launatafla[[#This Row],[Skerðing v/ samtals]]),0))","v":0},{"$f":"+Launatafla[[#This Row],[Atvinnuleysisbætur fyrir skerðingu]]+Launatafla[[#This Row],[Skerðing v/ samtals]]+Launatafla[[#This Row],[Viðbót v/ tryggðra lágmarkslauna]]","v":228202},{"$f":"+Launatafla[[#This Row],[Laun frá launagreiðanda]]+Launatafla[[#This Row],[Laun frá ríkissjóði]]","v":578202},{"$f":"IFERROR(Launatafla[[#This Row],[Heildarlaun]]/Launatafla[[#This Row],[Meðal heildarlaun sl. 3M fyrir skatta]],0)","v":0.82600285714285715}]
[null,null,null,null,"Starfsmaður 33",700000,1,0.6,{"$f":"+Launatafla[[#This Row],[Starfshlutfall fyrir]]-Launatafla[[#This Row],[Skerðing starfshlutfalls]]","v":0.4},{"$f":"+IF(OR(Launatafla[[#This Row],[Skerðing starfshlutfalls]]>Hámarkslækkun_starfshl,Launatafla[[#This Row],[Skerðing starfshlutfalls]]<Lágmarkslækkun_starfshl),0,Atvinnuleysisbætur*Launatafla[[#This Row],[Skerðing starfshlutfalls]])","v":273842.39999999997},{"$f":"IFERROR(Launatafla[[#This Row],[Meðal heildarlaun sl. 3M fyrir skatta]]/Launatafla[[#This Row],[Starfshlutfall fyrir]],0)*(Launatafla[[#This Row],[Starfshlutfall fyrir]]-Launatafla[[#This Row],[Skerðing starfshlutfalls]])","v":280000},{"$f":"+Launatafla[[#This Row],[Atvinnuleysisbætur fyrir skerðingu]]+Launatafla[[#This Row],[Laun frá launagreiðanda]]","v":553842.39999999991},{"$f":"-MAX(Launatafla[[#This Row],[Laun með bótum án skerðingar]]-Launatafla[[#This Row],[Meðal heildarlaun sl. 3M fyrir skatta]]*Hámarkshlutfall_af_launum,0)","v":0},{"$f":"-MIN(MAX(Launatafla[[#This Row],[Laun með bótum án skerðingar]]-Hámarkslaun,0),Launatafla[[#This Row],[Atvinnuleysisbætur fyrir skerðingu]])","v":0},{"$f":"+MIN(Launatafla[[#This Row],[Skerðing v/ hámarkshlutfalls]:[Skerðing v/ hámarkslauna]])","v":0},{"$f":"+IF(Launatafla[[#This Row],[Atvinnuleysisbætur fyrir skerðingu]]=0,0,\nMAX(MIN(Lágmarkslaun_fullt_starf,Launatafla[[#This Row],[Meðal heildarlaun sl. 3M fyrir skatta]]/Launatafla[[#This Row],[Starfshlutfall fyrir]])*Launatafla[[#This Row],[Starfshlutfall fyrir]]-(Launatafla[[#This Row],[Laun frá launagreiðanda]]+Launatafla[[#This Row],[Atvinnuleysisbætur fyrir skerðingu]]+Launatafla[[#This Row],[Skerðing v/ samtals]]),0))","v":0},{"$f":"+Launatafla[[#This Row],[Atvinnuleysisbætur fyrir skerðingu]]+Launatafla[[#This Row],[Skerðing v/ samtals]]+Launatafla[[#This Row],[Viðbót v/ tryggðra lágmarkslauna]]","v":273842.39999999997},{"$f":"+Launatafla[[#This Row],[Laun frá launagreiðanda]]+Launatafla[[#This Row],[Laun frá ríkissjóði]]","v":553842.39999999991},{"$f":"IFERROR(Launatafla[[#This Row],[Heildarlaun]]/Launatafla[[#This Row],[Meðal heildarlaun sl. 3M fyrir skatta]],0)","v":0.79120342857142845}]
[null,null,null,null,"Starfsmaður 34",700000,1,0.7,{"$f":"+Launatafla[[#This Row],[Starfshlutfall fyrir]]-Launatafla[[#This Row],[Skerðing starfshlutfalls]]","v":0.30000000000000004},{"$f":"+IF(OR(Launatafla[[#This Row],[Skerðing starfshlutfalls]]>Hámarkslækkun_starfshl,Launatafla[[#This Row],[Skerðing starfshlutfalls]]<Lágmarkslækkun_starfshl),0,Atvinnuleysisbætur*Launatafla[[#This Row],[Skerðing starfshlutfalls]])","v":319482.8},{"$f":"IFERROR(Launatafla[[#This Row],[Meðal heildarlaun sl. 3M fyrir skatta]]/Launatafla[[#This Row],[Starfshlutfall fyrir]],0)*(Launatafla[[#This Row],[Starfshlutfall fyrir]]-Launatafla[[#This Row],[Skerðing starfshlutfalls]])","v":210000.00000000003},{"$f":"+Launatafla[[#This Row],[Atvinnuleysisbætur fyrir skerðingu]]+Launatafla[[#This Row],[Laun frá launagreiðanda]]","v":529482.80000000005},{"$f":"-MAX(Launatafla[[#This Row],[Laun með bótum án skerðingar]]-Launatafla[[#This Row],[Meðal heildarlaun sl. 3M fyrir skatta]]*Hámarkshlutfall_af_launum,0)","v":0},{"$f":"-MIN(MAX(Launatafla[[#This Row],[Laun með bótum án skerðingar]]-Hámarkslaun,0),Launatafla[[#This Row],[Atvinnuleysisbætur fyrir skerðingu]])","v":0},{"$f":"+MIN(Launatafla[[#This Row],[Skerðing v/ hámarkshlutfalls]:[Skerðing v/ hámarkslauna]])","v":0},{"$f":"+IF(Launatafla[[#This Row],[Atvinnuleysisbætur fyrir skerðingu]]=0,0,\nMAX(MIN(Lágmarkslaun_fullt_starf,Launatafla[[#This Row],[Meðal heildarlaun sl. 3M fyrir skatta]]/Launatafla[[#This Row],[Starfshlutfall fyrir]])*Launatafla[[#This Row],[Starfshlutfall fyrir]]-(Launatafla[[#This Row],[Laun frá launagreiðanda]]+Launatafla[[#This Row],[Atvinnuleysisbætur fyrir skerðingu]]+Launatafla[[#This Row],[Skerðing v/ samtals]]),0))","v":0},{"$f":"+Launatafla[[#This Row],[Atvinnuleysisbætur fyrir skerðingu]]+Launatafla[[#This Row],[Skerðing v/ samtals]]+Launatafla[[#This Row],[Viðbót v/ tryggðra lágmarkslauna]]","v":319482.8},{"$f":"+Launatafla[[#This Row],[Laun frá launagreiðanda]]+Launatafla[[#This Row],[Laun frá ríkissjóði]]","v":529482.80000000005},{"$f":"IFERROR(Launatafla[[#This Row],[Heildarlaun]]/Launatafla[[#This Row],[Meðal heildarlaun sl. 3M fyrir skatta]],0)","v":0.75640400000000008}]
[null,null,null,null,"Starfsmaður 35",700000,1,0.75,{"$f":"+Launatafla[[#This Row],[Starfshlutfall fyrir]]-Launatafla[[#This Row],[Skerðing starfshlutfalls]]","v":0.25},{"$f":"+IF(OR(Launatafla[[#This Row],[Skerðing starfshlutfalls]]>Hámarkslækkun_starfshl,Launatafla[[#This Row],[Skerðing starfshlutfalls]]<Lágmarkslækkun_starfshl),0,Atvinnuleysisbætur*Launatafla[[#This Row],[Skerðing starfshlutfalls]])","v":342303},{"$f":"IFERROR(Launatafla[[#This Row],[Meðal heildarlaun sl. 3M fyrir skatta]]/Launatafla[[#This Row],[Starfshlutfall fyrir]],0)*(Launatafla[[#This Row],[Starfshlutfall fyrir]]-Launatafla[[#This Row],[Skerðing starfshlutfalls]])","v":175000},{"$f":"+Launatafla[[#This Row],[Atvinnuleysisbætur fyrir skerðingu]]+Launatafla[[#This Row],[Laun frá launagreiðanda]]","v":517303},{"$f":"-MAX(Launatafla[[#This Row],[Laun með bótum án skerðingar]]-Launatafla[[#This Row],[Meðal heildarlaun sl. 3M fyrir skatta]]*Hámarkshlutfall_af_launum,0)","v":0},{"$f":"-MIN(MAX(Launatafla[[#This Row],[Laun með bótum án skerðingar]]-Hámarkslaun,0),Launatafla[[#This Row],[Atvinnuleysisbætur fyrir skerðingu]])","v":0},{"$f":"+MIN(Launatafla[[#This Row],[Skerðing v/ hámarkshlutfalls]:[Skerðing v/ hámarkslauna]])","v":0},{"$f":"+IF(Launatafla[[#This Row],[Atvinnuleysisbætur fyrir skerðingu]]=0,0,\nMAX(MIN(Lágmarkslaun_fullt_starf,Launatafla[[#This Row],[Meðal heildarlaun sl. 3M fyrir skatta]]/Launatafla[[#This Row],[Starfshlutfall fyrir]])*Launatafla[[#This Row],[Starfshlutfall fyrir]]-(Launatafla[[#This Row],[Laun frá launagreiðanda]]+Launatafla[[#This Row],[Atvinnuleysisbætur fyrir skerðingu]]+Launatafla[[#This Row],[Skerðing v/ samtals]]),0))","v":0},{"$f":"+Launatafla[[#This Row],[Atvinnuleysisbætur fyrir skerðingu]]+Launatafla[[#This Row],[Skerðing v/ samtals]]+Launatafla[[#This Row],[Viðbót v/ tryggðra lágmarkslauna]]","v":342303},{"$f":"+Launatafla[[#This Row],[Laun frá launagreiðanda]]+Launatafla[[#This Row],[Laun frá ríkissjóði]]","v":517303},{"$f":"IFERROR(Launatafla[[#This Row],[Heildarlaun]]/Launatafla[[#This Row],[Meðal heildarlaun sl. 3M fyrir skatta]],0)","v":0.73900428571428567}]
[null,null,null,null,"Starfsmaður 36",800000,1,0.2,{"$f":"+Launatafla[[#This Row],[Starfshlutfall fyrir]]-Launatafla[[#This Row],[Skerðing starfshlutfalls]]","v":0.8},{"$f":"+IF(OR(Launatafla[[#This Row],[Skerðing starfshlutfalls]]>Hámarkslækkun_starfshl,Launatafla[[#This Row],[Skerðing starfshlutfalls]]<Lágmarkslækkun_starfshl),0,Atvinnuleysisbætur*Launatafla[[#This Row],[Skerðing starfshlutfalls]])","v":91280.8},{"$f":"IFERROR(Launatafla[[#This Row],[Meðal heildarlaun sl. 3M fyrir skatta]]/Launatafla[[#This Row],[Starfshlutfall fyrir]],0)*(Launatafla[[#This Row],[Starfshlutfall fyrir]]-Launatafla[[#This Row],[Skerðing starfshlutfalls]])","v":640000},{"$f":"+Launatafla[[#This Row],[Atvinnuleysisbætur fyrir skerðingu]]+Launatafla[[#This Row],[Laun frá launagreiðanda]]","v":731280.8},{"$f":"-MAX(Launatafla[[#This Row],[Laun með bótum án skerðingar]]-Launatafla[[#This Row],[Meðal heildarlaun sl. 3M fyrir skatta]]*Hámarkshlutfall_af_launum,0)","v":-11280.800000000047},{"$f":"-MIN(MAX(Launatafla[[#This Row],[Laun með bótum án skerðingar]]-Hámarkslaun,0),Launatafla[[#This Row],[Atvinnuleysisbætur fyrir skerðingu]])","v":-31280.800000000047},{"$f":"+MIN(Launatafla[[#This Row],[Skerðing v/ hámarkshlutfalls]:[Skerðing v/ hámarkslauna]])","v":-31280.800000000047},{"$f":"+IF(Launatafla[[#This Row],[Atvinnuleysisbætur fyrir skerðingu]]=0,0,\nMAX(MIN(Lágmarkslaun_fullt_starf,Launatafla[[#This Row],[Meðal heildarlaun sl. 3M fyrir skatta]]/Launatafla[[#This Row],[Starfshlutfall fyrir]])*Launatafla[[#This Row],[Starfshlutfall fyrir]]-(Launatafla[[#This Row],[Laun frá launagreiðanda]]+Launatafla[[#This Row],[Atvinnuleysisbætur fyrir skerðingu]]+Launatafla[[#This Row],[Skerðing v/ samtals]]),0))","v":0},{"$f":"+Launatafla[[#This Row],[Atvinnuleysisbætur fyrir skerðingu]]+Launatafla[[#This Row],[Skerðing v/ samtals]]+Launatafla[[#This Row],[Viðbót v/ tryggðra lágmarkslauna]]","v":59999.999999999956},{"$f":"+Launatafla[[#This Row],[Laun frá launagreiðanda]]+Launatafla[[#This Row],[Laun frá ríkissjóði]]","v":700000},{"$f":"IFERROR(Launatafla[[#This Row],[Heildarlaun]]/Launatafla[[#This Row],[Meðal heildarlaun sl. 3M fyrir skatta]],0)","v":0.875}]
[null,null,null,null,"Starfsmaður 37",800000,1,0.3,{"$f":"+Launatafla[[#This Row],[Starfshlutfall fyrir]]-Launatafla[[#This Row],[Skerðing starfshlutfalls]]","v":0.7},{"$f":"+IF(OR(Launatafla[[#This Row],[Skerðing starfshlutfalls]]>Hámarkslækkun_starfshl,Launatafla[[#This Row],[Skerðing starfshlutfalls]]<Lágmarkslækkun_starfshl),0,Atvinnuleysisbætur*Launatafla[[#This Row],[Skerðing starfshlutfalls]])","v":136921.19999999998},{"$f":"IFERROR(Launatafla[[#This Row],[Meðal heildarlaun sl. 3M fyrir skatta]]/Launatafla[[#This Row],[Starfshlutfall fyrir]],0)*(Launatafla[[#This Row],[Starfshlutfall fyrir]]-Launatafla[[#This Row],[Skerðing starfshlutfalls]])","v":560000},{"$f":"+Launatafla[[#This Row],[Atvinnuleysisbætur fyrir skerðingu]]+Launatafla[[#This Row],[Laun frá launagreiðanda]]","v":696921.2},{"$f":"-MAX(Launatafla[[#This Row],[Laun með bótum án skerðingar]]-Launatafla[[#This Row],[Meðal heildarlaun sl. 3M fyrir skatta]]*Hámarkshlutfall_af_launum,0)","v":0},{"$f":"-MIN(MAX(Launatafla[[#This Row],[Laun með bótum án skerðingar]]-Hámarkslaun,0),Launatafla[[#This Row],[Atvinnuleysisbætur fyrir skerðingu]])","v":0},{"$f":"+MIN(Launatafla[[#This Row],[Skerðing v/ hámarkshlutfalls]:[Skerðing v/ hámarkslauna]])","v":0},{"$f":"+IF(Launatafla[[#This Row],[Atvinnuleysisbætur fyrir skerðingu]]=0,0,\nMAX(MIN(Lágmarkslaun_fullt_starf,Launatafla[[#This Row],[Meðal heildarlaun sl. 3M fyrir skatta]]/Launatafla[[#This Row],[Starfshlutfall fyrir]])*Launatafla[[#This Row],[Starfshlutfall fyrir]]-(Launatafla[[#This Row],[Laun frá launagreiðanda]]+Launatafla[[#This Row],[Atvinnuleysisbætur fyrir skerðingu]]+Launatafla[[#This Row],[Skerðing v/ samtals]]),0))","v":0},{"$f":"+Launatafla[[#This Row],[Atvinnuleysisbætur fyrir skerðingu]]+Launatafla[[#This Row],[Skerðing v/ samtals]]+Launatafla[[#This Row],[Viðbót v/ tryggðra lágmarkslauna]]","v":136921.19999999998},{"$f":"+Launatafla[[#This Row],[Laun frá launagreiðanda]]+Launatafla[[#This Row],[Laun frá ríkissjóði]]","v":696921.2},{"$f":"IFERROR(Launatafla[[#This Row],[Heildarlaun]]/Launatafla[[#This Row],[Meðal heildarlaun sl. 3M fyrir skatta]],0)","v":0.87115149999999997}]
[null,null,null,null,"Starfsmaður 38",800000,1,0.4,{"$f":"+Launatafla[[#This Row],[Starfshlutfall fyrir]]-Launatafla[[#This Row],[Skerðing starfshlutfalls]]","v":0.6},{"$f":"+IF(OR(Launatafla[[#This Row],[Skerðing starfshlutfalls]]>Hámarkslækkun_starfshl,Launatafla[[#This Row],[Skerðing starfshlutfalls]]<Lágmarkslækkun_starfshl),0,Atvinnuleysisbætur*Launatafla[[#This Row],[Skerðing starfshlutfalls]])","v":182561.6},{"$f":"IFERROR(Launatafla[[#This Row],[Meðal heildarlaun sl. 3M fyrir skatta]]/Launatafla[[#This Row],[Starfshlutfall fyrir]],0)*(Launatafla[[#This Row],[Starfshlutfall fyrir]]-Launatafla[[#This Row],[Skerðing starfshlutfalls]])","v":480000},{"$f":"+Launatafla[[#This Row],[Atvinnuleysisbætur fyrir skerðingu]]+Launatafla[[#This Row],[Laun frá launagreiðanda]]","v":662561.6},{"$f":"-MAX(Launatafla[[#This Row],[Laun með bótum án skerðingar]]-Launatafla[[#This Row],[Meðal heildarlaun sl. 3M fyrir skatta]]*Hámarkshlutfall_af_launum,0)","v":0},{"$f":"-MIN(MAX(Launatafla[[#This Row],[Laun með bótum án skerðingar]]-Hámarkslaun,0),Launatafla[[#This Row],[Atvinnuleysisbætur fyrir skerðingu]])","v":0},{"$f":"+MIN(Launatafla[[#This Row],[Skerðing v/ hámarkshlutfalls]:[Skerðing v/ hámarkslauna]])","v":0},{"$f":"+IF(Launatafla[[#This Row],[Atvinnuleysisbætur fyrir skerðingu]]=0,0,\nMAX(MIN(Lágmarkslaun_fullt_starf,Launatafla[[#This Row],[Meðal heildarlaun sl. 3M fyrir skatta]]/Launatafla[[#This Row],[Starfshlutfall fyrir]])*Launatafla[[#This Row],[Starfshlutfall fyrir]]-(Launatafla[[#This Row],[Laun frá launagreiðanda]]+Launatafla[[#This Row],[Atvinnuleysisbætur fyrir skerðingu]]+Launatafla[[#This Row],[Skerðing v/ samtals]]),0))","v":0},{"$f":"+Launatafla[[#This Row],[Atvinnuleysisbætur fyrir skerðingu]]+Launatafla[[#This Row],[Skerðing v/ samtals]]+Launatafla[[#This Row],[Viðbót v/ tryggðra lágmarkslauna]]","v":182561.6},{"$f":"+Launatafla[[#This Row],[Laun frá launagreiðanda]]+Launatafla[[#This Row],[Laun frá ríkissjóði]]","v":662561.6},{"$f":"IFERROR(Launatafla[[#This Row],[Heildarlaun]]/Launatafla[[#This Row],[Meðal heildarlaun sl. 3M fyrir skatta]],0)","v":0.82820199999999999}]
[null,null,null,null,"Starfsmaður 39",800000,1,0.5,{"$f":"+Launatafla[[#This Row],[Starfshlutfall fyrir]]-Launatafla[[#This Row],[Skerðing starfshlutfalls]]","v":0.5},{"$f":"+IF(OR(Launatafla[[#This Row],[Skerðing starfshlutfalls]]>Hámarkslækkun_starfshl,Launatafla[[#This Row],[Skerðing starfshlutfalls]]<Lágmarkslækkun_starfshl),0,Atvinnuleysisbætur*Launatafla[[#This Row],[Skerðing starfshlutfalls]])","v":228202},{"$f":"IFERROR(Launatafla[[#This Row],[Meðal heildarlaun sl. 3M fyrir skatta]]/Launatafla[[#This Row],[Starfshlutfall fyrir]],0)*(Launatafla[[#This Row],[Starfshlutfall fyrir]]-Launatafla[[#This Row],[Skerðing starfshlutfalls]])","v":400000},{"$f":"+Launatafla[[#This Row],[Atvinnuleysisbætur fyrir skerðingu]]+Launatafla[[#This Row],[Laun frá launagreiðanda]]","v":628202},{"$f":"-MAX(Launatafla[[#This Row],[Laun með bótum án skerðingar]]-Launatafla[[#This Row],[Meðal heildarlaun sl. 3M fyrir skatta]]*Hámarkshlutfall_af_launum,0)","v":0},{"$f":"-MIN(MAX(Launatafla[[#This Row],[Laun með bótum án skerðingar]]-Hámarkslaun,0),Launatafla[[#This Row],[Atvinnuleysisbætur fyrir skerðingu]])","v":0},{"$f":"+MIN(Launatafla[[#This Row],[Skerðing v/ hámarkshlutfalls]:[Skerðing v/ hámarkslauna]])","v":0},{"$f":"+IF(Launatafla[[#This Row],[Atvinnuleysisbætur fyrir skerðingu]]=0,0,\nMAX(MIN(Lágmarkslaun_fullt_starf,Launatafla[[#This Row],[Meðal heildarlaun sl. 3M fyrir skatta]]/Launatafla[[#This Row],[Starfshlutfall fyrir]])*Launatafla[[#This Row],[Starfshlutfall fyrir]]-(Launatafla[[#This Row],[Laun frá launagreiðanda]]+Launatafla[[#This Row],[Atvinnuleysisbætur fyrir skerðingu]]+Launatafla[[#This Row],[Skerðing v/ samtals]]),0))","v":0},{"$f":"+Launatafla[[#This Row],[Atvinnuleysisbætur fyrir skerðingu]]+Launatafla[[#This Row],[Skerðing v/ samtals]]+Launatafla[[#This Row],[Viðbót v/ tryggðra lágmarkslauna]]","v":228202},{"$f":"+Launatafla[[#This Row],[Laun frá launagreiðanda]]+Launatafla[[#This Row],[Laun frá ríkissjóði]]","v":628202},{"$f":"IFERROR(Launatafla[[#This Row],[Heildarlaun]]/Launatafla[[#This Row],[Meðal heildarlaun sl. 3M fyrir skatta]],0)","v":0.78525250000000002}]
[null,null,null,null,"Starfsmaður 40",800000,1,0.6,{"$f":"+Launatafla[[#This Row],[Starfshlutfall fyrir]]-Launatafla[[#This Row],[Skerðing starfshlutfalls]]","v":0.4},{"$f":"+IF(OR(Launatafla[[#This Row],[Skerðing starfshlutfalls]]>Hámarkslækkun_starfshl,Launatafla[[#This Row],[Skerðing starfshlutfalls]]<Lágmarkslækkun_starfshl),0,Atvinnuleysisbætur*Launatafla[[#This Row],[Skerðing starfshlutfalls]])","v":273842.39999999997},{"$f":"IFERROR(Launatafla[[#This Row],[Meðal heildarlaun sl. 3M fyrir skatta]]/Launatafla[[#This Row],[Starfshlutfall fyrir]],0)*(Launatafla[[#This Row],[Starfshlutfall fyrir]]-Launatafla[[#This Row],[Skerðing starfshlutfalls]])","v":320000},{"$f":"+Launatafla[[#This Row],[Atvinnuleysisbætur fyrir skerðingu]]+Launatafla[[#This Row],[Laun frá launagreiðanda]]","v":593842.39999999991},{"$f":"-MAX(Launatafla[[#This Row],[Laun með bótum án skerðingar]]-Launatafla[[#This Row],[Meðal heildarlaun sl. 3M fyrir skatta]]*Hámarkshlutfall_af_launum,0)","v":0},{"$f":"-MIN(MAX(Launatafla[[#This Row],[Laun með bótum án skerðingar]]-Hámarkslaun,0),Launatafla[[#This Row],[Atvinnuleysisbætur fyrir skerðingu]])","v":0},{"$f":"+MIN(Launatafla[[#This Row],[Skerðing v/ hámarkshlutfalls]:[Skerðing v/ hámarkslauna]])","v":0},{"$f":"+IF(Launatafla[[#This Row],[Atvinnuleysisbætur fyrir skerðingu]]=0,0,\nMAX(MIN(Lágmarkslaun_fullt_starf,Launatafla[[#This Row],[Meðal heildarlaun sl. 3M fyrir skatta]]/Launatafla[[#This Row],[Starfshlutfall fyrir]])*Launatafla[[#This Row],[Starfshlutfall fyrir]]-(Launatafla[[#This Row],[Laun frá launagreiðanda]]+Launatafla[[#This Row],[Atvinnuleysisbætur fyrir skerðingu]]+Launatafla[[#This Row],[Skerðing v/ samtals]]),0))","v":0},{"$f":"+Launatafla[[#This Row],[Atvinnuleysisbætur fyrir skerðingu]]+Launatafla[[#This Row],[Skerðing v/ samtals]]+Launatafla[[#This Row],[Viðbót v/ tryggðra lágmarkslauna]]","v":273842.39999999997},{"$f":"+Launatafla[[#This Row],[Laun frá launagreiðanda]]+Launatafla[[#This Row],[Laun frá ríkissjóði]]","v":593842.39999999991},{"$f":"IFERROR(Launatafla[[#This Row],[Heildarlaun]]/Launatafla[[#This Row],[Meðal heildarlaun sl. 3M fyrir skatta]],0)","v":0.74230299999999994}]
[null,null,null,null,"Starfsmaður 41",800000,1,0.7,{"$f":"+Launatafla[[#This Row],[Starfshlutfall fyrir]]-Launatafla[[#This Row],[Skerðing starfshlutfalls]]","v":0.30000000000000004},{"$f":"+IF(OR(Launatafla[[#This Row],[Skerðing starfshlutfalls]]>Hámarkslækkun_starfshl,Launatafla[[#This Row],[Skerðing starfshlutfalls]]<Lágmarkslækkun_starfshl),0,Atvinnuleysisbætur*Launatafla[[#This Row],[Skerðing starfshlutfalls]])","v":319482.8},{"$f":"IFERROR(Launatafla[[#This Row],[Meðal heildarlaun sl. 3M fyrir skatta]]/Launatafla[[#This Row],[Starfshlutfall fyrir]],0)*(Launatafla[[#This Row],[Starfshlutfall fyrir]]-Launatafla[[#This Row],[Skerðing starfshlutfalls]])","v":240000.00000000003},{"$f":"+Launatafla[[#This Row],[Atvinnuleysisbætur fyrir skerðingu]]+Launatafla[[#This Row],[Laun frá launagreiðanda]]","v":559482.80000000005},{"$f":"-MAX(Launatafla[[#This Row],[Laun með bótum án skerðingar]]-Launatafla[[#This Row],[Meðal heildarlaun sl. 3M fyrir skatta]]*Hámarkshlutfall_af_launum,0)","v":0},{"$f":"-MIN(MAX(Launatafla[[#This Row],[Laun með bótum án skerðingar]]-Hámarkslaun,0),Launatafla[[#This Row],[Atvinnuleysisbætur fyrir skerðingu]])","v":0},{"$f":"+MIN(Launatafla[[#This Row],[Skerðing v/ hámarkshlutfalls]:[Skerðing v/ hámarkslauna]])","v":0},{"$f":"+IF(Launatafla[[#This Row],[Atvinnuleysisbætur fyrir skerðingu]]=0,0,\nMAX(MIN(Lágmarkslaun_fullt_starf,Launatafla[[#This Row],[Meðal heildarlaun sl. 3M fyrir skatta]]/Launatafla[[#This Row],[Starfshlutfall fyrir]])*Launatafla[[#This Row],[Starfshlutfall fyrir]]-(Launatafla[[#This Row],[Laun frá launagreiðanda]]+Launatafla[[#This Row],[Atvinnuleysisbætur fyrir skerðingu]]+Launatafla[[#This Row],[Skerðing v/ samtals]]),0))","v":0},{"$f":"+Launatafla[[#This Row],[Atvinnuleysisbætur fyrir skerðingu]]+Launatafla[[#This Row],[Skerðing v/ samtals]]+Launatafla[[#This Row],[Viðbót v/ tryggðra lágmarkslauna]]","v":319482.8},{"$f":"+Launatafla[[#This Row],[Laun frá launagreiðanda]]+Launatafla[[#This Row],[Laun frá ríkissjóði]]","v":559482.80000000005},{"$f":"IFERROR(Launatafla[[#This Row],[Heildarlaun]]/Launatafla[[#This Row],[Meðal heildarlaun sl. 3M fyrir skatta]],0)","v":0.69935350000000007}]
[null,null,null,null,"Starfsmaður 42",800000,1,0.75,{"$f":"+Launatafla[[#This Row],[Starfshlutfall fyrir]]-Launatafla[[#This Row],[Skerðing starfshlutfalls]]","v":0.25},{"$f":"+IF(OR(Launatafla[[#This Row],[Skerðing starfshlutfalls]]>Hámarkslækkun_starfshl,Launatafla[[#This Row],[Skerðing starfshlutfalls]]<Lágmarkslækkun_starfshl),0,Atvinnuleysisbætur*Launatafla[[#This Row],[Skerðing starfshlutfalls]])","v":342303},{"$f":"IFERROR(Launatafla[[#This Row],[Meðal heildarlaun sl. 3M fyrir skatta]]/Launatafla[[#This Row],[Starfshlutfall fyrir]],0)*(Launatafla[[#This Row],[Starfshlutfall fyrir]]-Launatafla[[#This Row],[Skerðing starfshlutfalls]])","v":200000},{"$f":"+Launatafla[[#This Row],[Atvinnuleysisbætur fyrir skerðingu]]+Launatafla[[#This Row],[Laun frá launagreiðanda]]","v":542303},{"$f":"-MAX(Launatafla[[#This Row],[Laun með bótum án skerðingar]]-Launatafla[[#This Row],[Meðal heildarlaun sl. 3M fyrir skatta]]*Hámarkshlutfall_af_launum,0)","v":0},{"$f":"-MIN(MAX(Launatafla[[#This Row],[Laun með bótum án skerðingar]]-Hámarkslaun,0),Launatafla[[#This Row],[Atvinnuleysisbætur fyrir skerðingu]])","v":0},{"$f":"+MIN(Launatafla[[#This Row],[Skerðing v/ hámarkshlutfalls]:[Skerðing v/ hámarkslauna]])","v":0},{"$f":"+IF(Launatafla[[#This Row],[Atvinnuleysisbætur fyrir skerðingu]]=0,0,\nMAX(MIN(Lágmarkslaun_fullt_starf,Launatafla[[#This Row],[Meðal heildarlaun sl. 3M fyrir skatta]]/Launatafla[[#This Row],[Starfshlutfall fyrir]])*Launatafla[[#This Row],[Starfshlutfall fyrir]]-(Launatafla[[#This Row],[Laun frá launagreiðanda]]+Launatafla[[#This Row],[Atvinnuleysisbætur fyrir skerðingu]]+Launatafla[[#This Row],[Skerðing v/ samtals]]),0))","v":0},{"$f":"+Launatafla[[#This Row],[Atvinnuleysisbætur fyrir skerðingu]]+Launatafla[[#This Row],[Skerðing v/ samtals]]+Launatafla[[#This Row],[Viðbót v/ tryggðra lágmarkslauna]]","v":342303},{"$f":"+Launatafla[[#This Row],[Laun frá launagreiðanda]]+Launatafla[[#This Row],[Laun frá ríkissjóði]]","v":542303},{"$f":"IFERROR(Launatafla[[#This Row],[Heildarlaun]]/Launatafla[[#This Row],[Meðal heildarlaun sl. 3M fyrir skatta]],0)","v":0.67787874999999997}]
[null,null,null,null,"Starfsmaður 43",900000,1,0.2,{"$f":"+Launatafla[[#This Row],[Starfshlutfall fyrir]]-Launatafla[[#This Row],[Skerðing starfshlutfalls]]","v":0.8},{"$f":"+IF(OR(Launatafla[[#This Row],[Skerðing starfshlutfalls]]>Hámarkslækkun_starfshl,Launatafla[[#This Row],[Skerðing starfshlutfalls]]<Lágmarkslækkun_starfshl),0,Atvinnuleysisbætur*Launatafla[[#This Row],[Skerðing starfshlutfalls]])","v":91280.8},{"$f":"IFERROR(Launatafla[[#This Row],[Meðal heildarlaun sl. 3M fyrir skatta]]/Launatafla[[#This Row],[Starfshlutfall fyrir]],0)*(Launatafla[[#This Row],[Starfshlutfall fyrir]]-Launatafla[[#This Row],[Skerðing starfshlutfalls]])","v":720000},{"$f":"+Launatafla[[#This Row],[Atvinnuleysisbætur fyrir skerðingu]]+Launatafla[[#This Row],[Laun frá launagreiðanda]]","v":811280.8},{"$f":"-MAX(Launatafla[[#This Row],[Laun með bótum án skerðingar]]-Launatafla[[#This Row],[Meðal heildarlaun sl. 3M fyrir skatta]]*Hámarkshlutfall_af_launum,0)","v":-1280.8000000000466},{"$f":"-MIN(MAX(Launatafla[[#This Row],[Laun með bótum án skerðingar]]-Hámarkslaun,0),Launatafla[[#This Row],[Atvinnuleysisbætur fyrir skerðingu]])","v":-91280.8},{"$f":"+MIN(Launatafla[[#This Row],[Skerðing v/ hámarkshlutfalls]:[Skerðing v/ hámarkslauna]])","v":-91280.8},{"$f":"+IF(Launatafla[[#This Row],[Atvinnuleysisbætur fyrir skerðingu]]=0,0,\nMAX(MIN(Lágmarkslaun_fullt_starf,Launatafla[[#This Row],[Meðal heildarlaun sl. 3M fyrir skatta]]/Launatafla[[#This Row],[Starfshlutfall fyrir]])*Launatafla[[#This Row],[Starfshlutfall fyrir]]-(Launatafla[[#This Row],[Laun frá launagreiðanda]]+Launatafla[[#This Row],[Atvinnuleysisbætur fyrir skerðingu]]+Launatafla[[#This Row],[Skerðing v/ samtals]]),0))","v":0},{"$f":"+Launatafla[[#This Row],[Atvinnuleysisbætur fyrir skerðingu]]+Launatafla[[#This Row],[Skerðing v/ samtals]]+Launatafla[[#This Row],[Viðbót v/ tryggðra lágmarkslauna]]","v":0},{"$f":"+Launatafla[[#This Row],[Laun frá launagreiðanda]]+Launatafla[[#This Row],[Laun frá ríkissjóði]]","v":720000},{"$f":"IFERROR(Launatafla[[#This Row],[Heildarlaun]]/Launatafla[[#This Row],[Meðal heildarlaun sl. 3M fyrir skatta]],0)","v":0.8}]
[null,null,null,null,"Starfsmaður 44",900000,1,0.3,{"$f":"+Launatafla[[#This Row],[Starfshlutfall fyrir]]-Launatafla[[#This Row],[Skerðing starfshlutfalls]]","v":0.7},{"$f":"+IF(OR(Launatafla[[#This Row],[Skerðing starfshlutfalls]]>Hámarkslækkun_starfshl,Launatafla[[#This Row],[Skerðing starfshlutfalls]]<Lágmarkslækkun_starfshl),0,Atvinnuleysisbætur*Launatafla[[#This Row],[Skerðing starfshlutfalls]])","v":136921.19999999998},{"$f":"IFERROR(Launatafla[[#This Row],[Meðal heildarlaun sl. 3M fyrir skatta]]/Launatafla[[#This Row],[Starfshlutfall fyrir]],0)*(Launatafla[[#This Row],[Starfshlutfall fyrir]]-Launatafla[[#This Row],[Skerðing starfshlutfalls]])","v":630000},{"$f":"+Launatafla[[#This Row],[Atvinnuleysisbætur fyrir skerðingu]]+Launatafla[[#This Row],[Laun frá launagreiðanda]]","v":766921.2},{"$f":"-MAX(Launatafla[[#This Row],[Laun með bótum án skerðingar]]-Launatafla[[#This Row],[Meðal heildarlaun sl. 3M fyrir skatta]]*Hámarkshlutfall_af_launum,0)","v":0},{"$f":"-MIN(MAX(Launatafla[[#This Row],[Laun með bótum án skerðingar]]-Hámarkslaun,0),Launatafla[[#This Row],[Atvinnuleysisbætur fyrir skerðingu]])","v":-66921.199999999953},{"$f":"+MIN(Launatafla[[#This Row],[Skerðing v/ hámarkshlutfalls]:[Skerðing v/ hámarkslauna]])","v":-66921.199999999953},{"$f":"+IF(Launatafla[[#This Row],[Atvinnuleysisbætur fyrir skerðingu]]=0,0,\nMAX(MIN(Lágmarkslaun_fullt_starf,Launatafla[[#This Row],[Meðal heildarlaun sl. 3M fyrir skatta]]/Launatafla[[#This Row],[Starfshlutfall fyrir]])*Launatafla[[#This Row],[Starfshlutfall fyrir]]-(Launatafla[[#This Row],[Laun frá launagreiðanda]]+Launatafla[[#This Row],[Atvinnuleysisbætur fyrir skerðingu]]+Launatafla[[#This Row],[Skerðing v/ samtals]]),0))","v":0},{"$f":"+Launatafla[[#This Row],[Atvinnuleysisbætur fyrir skerðingu]]+Launatafla[[#This Row],[Skerðing v/ samtals]]+Launatafla[[#This Row],[Viðbót v/ tryggðra lágmarkslauna]]","v":70000.000000000029},{"$f":"+Launatafla[[#This Row],[Laun frá launagreiðanda]]+Launatafla[[#This Row],[Laun frá ríkissjóði]]","v":700000},{"$f":"IFERROR(Launatafla[[#This Row],[Heildarlaun]]/Launatafla[[#This Row],[Meðal heildarlaun sl. 3M fyrir skatta]],0)","v":0.77777777777777779}]
[null,null,null,null,"Starfsmaður 45",900000,1,0.4,{"$f":"+Launatafla[[#This Row],[Starfshlutfall fyrir]]-Launatafla[[#This Row],[Skerðing starfshlutfalls]]","v":0.6},{"$f":"+IF(OR(Launatafla[[#This Row],[Skerðing starfshlutfalls]]>Hámarkslækkun_starfshl,Launatafla[[#This Row],[Skerðing starfshlutfalls]]<Lágmarkslækkun_starfshl),0,Atvinnuleysisbætur*Launatafla[[#This Row],[Skerðing starfshlutfalls]])","v":182561.6},{"$f":"IFERROR(Launatafla[[#This Row],[Meðal heildarlaun sl. 3M fyrir skatta]]/Launatafla[[#This Row],[Starfshlutfall fyrir]],0)*(Launatafla[[#This Row],[Starfshlutfall fyrir]]-Launatafla[[#This Row],[Skerðing starfshlutfalls]])","v":540000},{"$f":"+Launatafla[[#This Row],[Atvinnuleysisbætur fyrir skerðingu]]+Launatafla[[#This Row],[Laun frá launagreiðanda]]","v":722561.6},{"$f":"-MAX(Launatafla[[#This Row],[Laun með bótum án skerðingar]]-Launatafla[[#This Row],[Meðal heildarlaun sl. 3M fyrir skatta]]*Hámarkshlutfall_af_launum,0)","v":0},{"$f":"-MIN(MAX(Launatafla[[#This Row],[Laun með bótum án skerðingar]]-Hámarkslaun,0),Launatafla[[#This Row],[Atvinnuleysisbætur fyrir skerðingu]])","v":-22561.599999999977},{"$f":"+MIN(Launatafla[[#This Row],[Skerðing v/ hámarkshlutfalls]:[Skerðing v/ hámarkslauna]])","v":-22561.599999999977},{"$f":"+IF(Launatafla[[#This Row],[Atvinnuleysisbætur fyrir skerðingu]]=0,0,\nMAX(MIN(Lágmarkslaun_fullt_starf,Launatafla[[#This Row],[Meðal heildarlaun sl. 3M fyrir skatta]]/Launatafla[[#This Row],[Starfshlutfall fyrir]])*Launatafla[[#This Row],[Starfshlutfall fyrir]]-(Launatafla[[#This Row],[Laun frá launagreiðanda]]+Launatafla[[#This Row],[Atvinnuleysisbætur fyrir skerðingu]]+Launatafla[[#This Row],[Skerðing v/ samtals]]),0))","v":0},{"$f":"+Launatafla[[#This Row],[Atvinnuleysisbætur fyrir skerðingu]]+Launatafla[[#This Row],[Skerðing v/ samtals]]+Launatafla[[#This Row],[Viðbót v/ tryggðra lágmarkslauna]]","v":160000.00000000003},{"$f":"+Launatafla[[#This Row],[Laun frá launagreiðanda]]+Launatafla[[#This Row],[Laun frá ríkissjóði]]","v":700000},{"$f":"IFERROR(Launatafla[[#This Row],[Heildarlaun]]/Launatafla[[#This Row],[Meðal heildarlaun sl. 3M fyrir skatta]],0)","v":0.77777777777777779}]
[null,null,null,null,"Starfsmaður 46",900000,1,0.5,{"$f":"+Launatafla[[#This Row],[Starfshlutfall fyrir]]-Launatafla[[#This Row],[Skerðing starfshlutfalls]]","v":0.5},{"$f":"+IF(OR(Launatafla[[#This Row],[Skerðing starfshlutfalls]]>Hámarkslækkun_starfshl,Launatafla[[#This Row],[Skerðing starfshlutfalls]]<Lágmarkslækkun_starfshl),0,Atvinnuleysisbætur*Launatafla[[#This Row],[Skerðing starfshlutfalls]])","v":228202},{"$f":"IFERROR(Launatafla[[#This Row],[Meðal heildarlaun sl. 3M fyrir skatta]]/Launatafla[[#This Row],[Starfshlutfall fyrir]],0)*(Launatafla[[#This Row],[Starfshlutfall fyrir]]-Launatafla[[#This Row],[Skerðing starfshlutfalls]])","v":450000},{"$f":"+Launatafla[[#This Row],[Atvinnuleysisbætur fyrir skerðingu]]+Launatafla[[#This Row],[Laun frá launagreiðanda]]","v":678202},{"$f":"-MAX(Launatafla[[#This Row],[Laun með bótum án skerðingar]]-Launatafla[[#This Row],[Meðal heildarlaun sl. 3M fyrir skatta]]*Hámarkshlutfall_af_launum,0)","v":0},{"$f":"-MIN(MAX(Launatafla[[#This Row],[Laun með bótum án skerðingar]]-Hámarkslaun,0),Launatafla[[#This Row],[Atvinnuleysisbætur fyrir skerðingu]])","v":0},{"$f":"+MIN(Launatafla[[#This Row],[Skerðing v/ hámarkshlutfalls]:[Skerðing v/ hámarkslauna]])","v":0},{"$f":"+IF(Launatafla[[#This Row],[Atvinnuleysisbætur fyrir skerðingu]]=0,0,\nMAX(MIN(Lágmarkslaun_fullt_starf,Launatafla[[#This Row],[Meðal heildarlaun sl. 3M fyrir skatta]]/Launatafla[[#This Row],[Starfshlutfall fyrir]])*Launatafla[[#This Row],[Starfshlutfall fyrir]]-(Launatafla[[#This Row],[Laun frá launagreiðanda]]+Launatafla[[#This Row],[Atvinnuleysisbætur fyrir skerðingu]]+Launatafla[[#This Row],[Skerðing v/ samtals]]),0))","v":0},{"$f":"+Launatafla[[#This Row],[Atvinnuleysisbætur fyrir skerðingu]]+Launatafla[[#This Row],[Skerðing v/ samtals]]+Launatafla[[#This Row],[Viðbót v/ tryggðra lágmarkslauna]]","v":228202},{"$f":"+Launatafla[[#This Row],[Laun frá launagreiðanda]]+Launatafla[[#This Row],[Laun frá ríkissjóði]]","v":678202},{"$f":"IFERROR(Launatafla[[#This Row],[Heildarlaun]]/Launatafla[[#This Row],[Meðal heildarlaun sl. 3M fyrir skatta]],0)","v":0.75355777777777777}]
[null,null,null,null,"Starfsmaður 47",900000,1,0.6,{"$f":"+Launatafla[[#This Row],[Starfshlutfall fyrir]]-Launatafla[[#This Row],[Skerðing starfshlutfalls]]","v":0.4},{"$f":"+IF(OR(Launatafla[[#This Row],[Skerðing starfshlutfalls]]>Hámarkslækkun_starfshl,Launatafla[[#This Row],[Skerðing starfshlutfalls]]<Lágmarkslækkun_starfshl),0,Atvinnuleysisbætur*Launatafla[[#This Row],[Skerðing starfshlutfalls]])","v":273842.39999999997},{"$f":"IFERROR(Launatafla[[#This Row],[Meðal heildarlaun sl. 3M fyrir skatta]]/Launatafla[[#This Row],[Starfshlutfall fyrir]],0)*(Launatafla[[#This Row],[Starfshlutfall fyrir]]-Launatafla[[#This Row],[Skerðing starfshlutfalls]])","v":360000},{"$f":"+Launatafla[[#This Row],[Atvinnuleysisbætur fyrir skerðingu]]+Launatafla[[#This Row],[Laun frá launagreiðanda]]","v":633842.39999999991},{"$f":"-MAX(Launatafla[[#This Row],[Laun með bótum án skerðingar]]-Launatafla[[#This Row],[Meðal heildarlaun sl. 3M fyrir skatta]]*Hámarkshlutfall_af_launum,0)","v":0},{"$f":"-MIN(MAX(Launatafla[[#This Row],[Laun með bótum án skerðingar]]-Hámarkslaun,0),Launatafla[[#This Row],[Atvinnuleysisbætur fyrir skerðingu]])","v":0},{"$f":"+MIN(Launatafla[[#This Row],[Skerðing v/ hámarkshlutfalls]:[Skerðing v/ hámarkslauna]])","v":0},{"$f":"+IF(Launatafla[[#This Row],[Atvinnuleysisbætur fyrir skerðingu]]=0,0,\nMAX(MIN(Lágmarkslaun_fullt_starf,Launatafla[[#This Row],[Meðal heildarlaun sl. 3M fyrir skatta]]/Launatafla[[#This Row],[Starfshlutfall fyrir]])*Launatafla[[#This Row],[Starfshlutfall fyrir]]-(Launatafla[[#This Row],[Laun frá launagreiðanda]]+Launatafla[[#This Row],[Atvinnuleysisbætur fyrir skerðingu]]+Launatafla[[#This Row],[Skerðing v/ samtals]]),0))","v":0},{"$f":"+Launatafla[[#This Row],[Atvinnuleysisbætur fyrir skerðingu]]+Launatafla[[#This Row],[Skerðing v/ samtals]]+Launatafla[[#This Row],[Viðbót v/ tryggðra lágmarkslauna]]","v":273842.39999999997},{"$f":"+Launatafla[[#This Row],[Laun frá launagreiðanda]]+Launatafla[[#This Row],[Laun frá ríkissjóði]]","v":633842.39999999991},{"$f":"IFERROR(Launatafla[[#This Row],[Heildarlaun]]/Launatafla[[#This Row],[Meðal heildarlaun sl. 3M fyrir skatta]],0)","v":0.70426933333333319}]
[null,null,null,null,"Starfsmaður 48",900000,1,0.7,{"$f":"+Launatafla[[#This Row],[Starfshlutfall fyrir]]-Launatafla[[#This Row],[Skerðing starfshlutfalls]]","v":0.30000000000000004},{"$f":"+IF(OR(Launatafla[[#This Row],[Skerðing starfshlutfalls]]>Hámarkslækkun_starfshl,Launatafla[[#This Row],[Skerðing starfshlutfalls]]<Lágmarkslækkun_starfshl),0,Atvinnuleysisbætur*Launatafla[[#This Row],[Skerðing starfshlutfalls]])","v":319482.8},{"$f":"IFERROR(Launatafla[[#This Row],[Meðal heildarlaun sl. 3M fyrir skatta]]/Launatafla[[#This Row],[Starfshlutfall fyrir]],0)*(Launatafla[[#This Row],[Starfshlutfall fyrir]]-Launatafla[[#This Row],[Skerðing starfshlutfalls]])","v":270000.00000000006},{"$f":"+Launatafla[[#This Row],[Atvinnuleysisbætur fyrir skerðingu]]+Launatafla[[#This Row],[Laun frá launagreiðanda]]","v":589482.80000000005},{"$f":"-MAX(Launatafla[[#This Row],[Laun með bótum án skerðingar]]-Launatafla[[#This Row],[Meðal heildarlaun sl. 3M fyrir skatta]]*Hámarkshlutfall_af_launum,0)","v":0},{"$f":"-MIN(MAX(Launatafla[[#This Row],[Laun með bótum án skerðingar]]-Hámarkslaun,0),Launatafla[[#This Row],[Atvinnuleysisbætur fyrir skerðingu]])","v":0},{"$f":"+MIN(Launatafla[[#This Row],[Skerðing v/ hámarkshlutfalls]:[Skerðing v/ hámarkslauna]])","v":0},{"$f":"+IF(Launatafla[[#This Row],[Atvinnuleysisbætur fyrir skerðingu]]=0,0,\nMAX(MIN(Lágmarkslaun_fullt_starf,Launatafla[[#This Row],[Meðal heildarlaun sl. 3M fyrir skatta]]/Launatafla[[#This Row],[Starfshlutfall fyrir]])*Launatafla[[#This Row],[Starfshlutfall fyrir]]-(Launatafla[[#This Row],[Laun frá launagreiðanda]]+Launatafla[[#This Row],[Atvinnuleysisbætur fyrir skerðingu]]+Launatafla[[#This Row],[Skerðing v/ samtals]]),0))","v":0},{"$f":"+Launatafla[[#This Row],[Atvinnuleysisbætur fyrir skerðingu]]+Launatafla[[#This Row],[Skerðing v/ samtals]]+Launatafla[[#This Row],[Viðbót v/ tryggðra lágmarkslauna]]","v":319482.8},{"$f":"+Launatafla[[#This Row],[Laun frá launagreiðanda]]+Launatafla[[#This Row],[Laun frá ríkissjóði]]","v":589482.80000000005},{"$f":"IFERROR(Launatafla[[#This Row],[Heildarlaun]]/Launatafla[[#This Row],[Meðal heildarlaun sl. 3M fyrir skatta]],0)","v":0.65498088888888895}]
[null,null,null,null,"Starfsmaður 49",900000,1,0.75,{"$f":"+Launatafla[[#This Row],[Starfshlutfall fyrir]]-Launatafla[[#This Row],[Skerðing starfshlutfalls]]","v":0.25},{"$f":"+IF(OR(Launatafla[[#This Row],[Skerðing starfshlutfalls]]>Hámarkslækkun_starfshl,Launatafla[[#This Row],[Skerðing starfshlutfalls]]<Lágmarkslækkun_starfshl),0,Atvinnuleysisbætur*Launatafla[[#This Row],[Skerðing starfshlutfalls]])","v":342303},{"$f":"IFERROR(Launatafla[[#This Row],[Meðal heildarlaun sl. 3M fyrir skatta]]/Launatafla[[#This Row],[Starfshlutfall fyrir]],0)*(Launatafla[[#This Row],[Starfshlutfall fyrir]]-Launatafla[[#This Row],[Skerðing starfshlutfalls]])","v":225000},{"$f":"+Launatafla[[#This Row],[Atvinnuleysisbætur fyrir skerðingu]]+Launatafla[[#This Row],[Laun frá launagreiðanda]]","v":567303},{"$f":"-MAX(Launatafla[[#This Row],[Laun með bótum án skerðingar]]-Launatafla[[#This Row],[Meðal heildarlaun sl. 3M fyrir skatta]]*Hámarkshlutfall_af_launum,0)","v":0},{"$f":"-MIN(MAX(Launatafla[[#This Row],[Laun með bótum án skerðingar]]-Hámarkslaun,0),Launatafla[[#This Row],[Atvinnuleysisbætur fyrir skerðingu]])","v":0},{"$f":"+MIN(Launatafla[[#This Row],[Skerðing v/ hámarkshlutfalls]:[Skerðing v/ hámarkslauna]])","v":0},{"$f":"+IF(Launatafla[[#This Row],[Atvinnuleysisbætur fyrir skerðingu]]=0,0,\nMAX(MIN(Lágmarkslaun_fullt_starf,Launatafla[[#This Row],[Meðal heildarlaun sl. 3M fyrir skatta]]/Launatafla[[#This Row],[Starfshlutfall fyrir]])*Launatafla[[#This Row],[Starfshlutfall fyrir]]-(Launatafla[[#This Row],[Laun frá launagreiðanda]]+Launatafla[[#This Row],[Atvinnuleysisbætur fyrir skerðingu]]+Launatafla[[#This Row],[Skerðing v/ samtals]]),0))","v":0},{"$f":"+Launatafla[[#This Row],[Atvinnuleysisbætur fyrir skerðingu]]+Launatafla[[#This Row],[Skerðing v/ samtals]]+Launatafla[[#This Row],[Viðbót v/ tryggðra lágmarkslauna]]","v":342303},{"$f":"+Launatafla[[#This Row],[Laun frá launagreiðanda]]+Launatafla[[#This Row],[Laun frá ríkissjóði]]","v":567303},{"$f":"IFERROR(Launatafla[[#This Row],[Heildarlaun]]/Launatafla[[#This Row],[Meðal heildarlaun sl. 3M fyrir skatta]],0)","v":0.63033666666666666}]
[null,null,null,null,"Starfsmaður 50",1000000,1,0.2,{"$f":"+Launatafla[[#This Row],[Starfshlutfall fyrir]]-Launatafla[[#This Row],[Skerðing starfshlutfalls]]","v":0.8},{"$f":"+IF(OR(Launatafla[[#This Row],[Skerðing starfshlutfalls]]>Hámarkslækkun_starfshl,Launatafla[[#This Row],[Skerðing starfshlutfalls]]<Lágmarkslækkun_starfshl),0,Atvinnuleysisbætur*Launatafla[[#This Row],[Skerðing starfshlutfalls]])","v":91280.8},{"$f":"IFERROR(Launatafla[[#This Row],[Meðal heildarlaun sl. 3M fyrir skatta]]/Launatafla[[#This Row],[Starfshlutfall fyrir]],0)*(Launatafla[[#This Row],[Starfshlutfall fyrir]]-Launatafla[[#This Row],[Skerðing starfshlutfalls]])","v":800000},{"$f":"+Launatafla[[#This Row],[Atvinnuleysisbætur fyrir skerðingu]]+Launatafla[[#This Row],[Laun frá launagreiðanda]]","v":891280.8},{"$f":"-MAX(Launatafla[[#This Row],[Laun með bótum án skerðingar]]-Launatafla[[#This Row],[Meðal heildarlaun sl. 3M fyrir skatta]]*Hámarkshlutfall_af_launum,0)","v":0},{"$f":"-MIN(MAX(Launatafla[[#This Row],[Laun með bótum án skerðingar]]-Hámarkslaun,0),Launatafla[[#This Row],[Atvinnuleysisbætur fyrir skerðingu]])","v":-91280.8},{"$f":"+MIN(Launatafla[[#This Row],[Skerðing v/ hámarkshlutfalls]:[Skerðing v/ hámarkslauna]])","v":-91280.8},{"$f":"+IF(Launatafla[[#This Row],[Atvinnuleysisbætur fyrir skerðingu]]=0,0,\nMAX(MIN(Lágmarkslaun_fullt_starf,Launatafla[[#This Row],[Meðal heildarlaun sl. 3M fyrir skatta]]/Launatafla[[#This Row],[Starfshlutfall fyrir]])*Launatafla[[#This Row],[Starfshlutfall fyrir]]-(Launatafla[[#This Row],[Laun frá launagreiðanda]]+Launatafla[[#This Row],[Atvinnuleysisbætur fyrir skerðingu]]+Launatafla[[#This Row],[Skerðing v/ samtals]]),0))","v":0},{"$f":"+Launatafla[[#This Row],[Atvinnuleysisbætur fyrir skerðingu]]+Launatafla[[#This Row],[Skerðing v/ samtals]]+Launatafla[[#This Row],[Viðbót v/ tryggðra lágmarkslauna]]","v":0},{"$f":"+Launatafla[[#This Row],[Laun frá launagreiðanda]]+Launatafla[[#This Row],[Laun frá ríkissjóði]]","v":800000},{"$f":"IFERROR(Launatafla[[#This Row],[Heildarlaun]]/Launatafla[[#This Row],[Meðal heildarlaun sl. 3M fyrir skatta]],0)","v":0.8}]
[null,null,null,null,"Starfsmaður 51",1000000,1,0.3,{"$f":"+Launatafla[[#This Row],[Starfshlutfall fyrir]]-Launatafla[[#This Row],[Skerðing starfshlutfalls]]","v":0.7},{"$f":"+IF(OR(Launatafla[[#This Row],[Skerðing starfshlutfalls]]>Hámarkslækkun_starfshl,Launatafla[[#This Row],[Skerðing starfshlutfalls]]<Lágmarkslækkun_starfshl),0,Atvinnuleysisbætur*Launatafla[[#This Row],[Skerðing starfshlutfalls]])","v":136921.19999999998},{"$f":"IFERROR(Launatafla[[#This Row],[Meðal heildarlaun sl. 3M fyrir skatta]]/Launatafla[[#This Row],[Starfshlutfall fyrir]],0)*(Launatafla[[#This Row],[Starfshlutfall fyrir]]-Launatafla[[#This Row],[Skerðing starfshlutfalls]])","v":700000},{"$f":"+Launatafla[[#This Row],[Atvinnuleysisbætur fyrir skerðingu]]+Launatafla[[#This Row],[Laun frá launagreiðanda]]","v":836921.2},{"$f":"-MAX(Launatafla[[#This Row],[Laun með bótum án skerðingar]]-Launatafla[[#This Row],[Meðal heildarlaun sl. 3M fyrir skatta]]*Hámarkshlutfall_af_launum,0)","v":0},{"$f":"-MIN(MAX(Launatafla[[#This Row],[Laun með bótum án skerðingar]]-Hámarkslaun,0),Launatafla[[#This Row],[Atvinnuleysisbætur fyrir skerðingu]])","v":-136921.19999999995},{"$f":"+MIN(Launatafla[[#This Row],[Skerðing v/ hámarkshlutfalls]:[Skerðing v/ hámarkslauna]])","v":-136921.19999999995},{"$f":"+IF(Launatafla[[#This Row],[Atvinnuleysisbætur fyrir skerðingu]]=0,0,\nMAX(MIN(Lágmarkslaun_fullt_starf,Launatafla[[#This Row],[Meðal heildarlaun sl. 3M fyrir skatta]]/Launatafla[[#This Row],[Starfshlutfall fyrir]])*Launatafla[[#This Row],[Starfshlutfall fyrir]]-(Launatafla[[#This Row],[Laun frá launagreiðanda]]+Launatafla[[#This Row],[Atvinnuleysisbætur fyrir skerðingu]]+Launatafla[[#This Row],[Skerðing v/ samtals]]),0))","v":0},{"$f":"+Launatafla[[#This Row],[Atvinnuleysisbætur fyrir skerðingu]]+Launatafla[[#This Row],[Skerðing v/ samtals]]+Launatafla[[#This Row],[Viðbót v/ tryggðra lágmarkslauna]]","v":2.9103830456733704E-11},{"$f":"+Launatafla[[#This Row],[Laun frá launagreiðanda]]+Launatafla[[#This Row],[Laun frá ríkissjóði]]","v":700000},{"$f":"IFERROR(Launatafla[[#This Row],[Heildarlaun]]/Launatafla[[#This Row],[Meðal heildarlaun sl. 3M fyrir skatta]],0)","v":0.7}]
[null,null,null,null,"Starfsmaður 52",1000000,1,0.4,{"$f":"+Launatafla[[#This Row],[Starfshlutfall fyrir]]-Launatafla[[#This Row],[Skerðing starfshlutfalls]]","v":0.6},{"$f":"+IF(OR(Launatafla[[#This Row],[Skerðing starfshlutfalls]]>Hámarkslækkun_starfshl,Launatafla[[#This Row],[Skerðing starfshlutfalls]]<Lágmarkslækkun_starfshl),0,Atvinnuleysisbætur*Launatafla[[#This Row],[Skerðing starfshlutfalls]])","v":182561.6},{"$f":"IFERROR(Launatafla[[#This Row],[Meðal heildarlaun sl. 3M fyrir skatta]]/Launatafla[[#This Row],[Starfshlutfall fyrir]],0)*(Launatafla[[#This Row],[Starfshlutfall fyrir]]-Launatafla[[#This Row],[Skerðing starfshlutfalls]])","v":600000},{"$f":"+Launatafla[[#This Row],[Atvinnuleysisbætur fyrir skerðingu]]+Launatafla[[#This Row],[Laun frá launagreiðanda]]","v":782561.6},{"$f":"-MAX(Launatafla[[#This Row],[Laun með bótum án skerðingar]]-Launatafla[[#This Row],[Meðal heildarlaun sl. 3M fyrir skatta]]*Hámarkshlutfall_af_launum,0)","v":0},{"$f":"-MIN(MAX(Launatafla[[#This Row],[Laun með bótum án skerðingar]]-Hámarkslaun,0),Launatafla[[#This Row],[Atvinnuleysisbætur fyrir skerðingu]])","v":-82561.599999999977},{"$f":"+MIN(Launatafla[[#This Row],[Skerðing v/ hámarkshlutfalls]:[Skerðing v/ hámarkslauna]])","v":-82561.599999999977},{"$f":"+IF(Launatafla[[#This Row],[Atvinnuleysisbætur fyrir skerðingu]]=0,0,\nMAX(MIN(Lágmarkslaun_fullt_starf,Launatafla[[#This Row],[Meðal heildarlaun sl. 3M fyrir skatta]]/Launatafla[[#This Row],[Starfshlutfall fyrir]])*Launatafla[[#This Row],[Starfshlutfall fyrir]]-(Launatafla[[#This Row],[Laun frá launagreiðanda]]+Launatafla[[#This Row],[Atvinnuleysisbætur fyrir skerðingu]]+Launatafla[[#This Row],[Skerðing v/ samtals]]),0))","v":0},{"$f":"+Launatafla[[#This Row],[Atvinnuleysisbætur fyrir skerðingu]]+Launatafla[[#This Row],[Skerðing v/ samtals]]+Launatafla[[#This Row],[Viðbót v/ tryggðra lágmarkslauna]]","v":100000.00000000003},{"$f":"+Launatafla[[#This Row],[Laun frá launagreiðanda]]+Launatafla[[#This Row],[Laun frá ríkissjóði]]","v":700000},{"$f":"IFERROR(Launatafla[[#This Row],[Heildarlaun]]/Launatafla[[#This Row],[Meðal heildarlaun sl. 3M fyrir skatta]],0)","v":0.7}]
[null,null,null,null,"Starfsmaður 53",1000000,1,0.5,{"$f":"+Launatafla[[#This Row],[Starfshlutfall fyrir]]-Launatafla[[#This Row],[Skerðing starfshlutfalls]]","v":0.5},{"$f":"+IF(OR(Launatafla[[#This Row],[Skerðing starfshlutfalls]]>Hámarkslækkun_starfshl,Launatafla[[#This Row],[Skerðing starfshlutfalls]]<Lágmarkslækkun_starfshl),0,Atvinnuleysisbætur*Launatafla[[#This Row],[Skerðing starfshlutfalls]])","v":228202},{"$f":"IFERROR(Launatafla[[#This Row],[Meðal heildarlaun sl. 3M fyrir skatta]]/Launatafla[[#This Row],[Starfshlutfall fyrir]],0)*(Launatafla[[#This Row],[Starfshlutfall fyrir]]-Launatafla[[#This Row],[Skerðing starfshlutfalls]])","v":500000},{"$f":"+Launatafla[[#This Row],[Atvinnuleysisbætur fyrir skerðingu]]+Launatafla[[#This Row],[Laun frá launagreiðanda]]","v":728202},{"$f":"-MAX(Launatafla[[#This Row],[Laun með bótum án skerðingar]]-Launatafla[[#This Row],[Meðal heildarlaun sl. 3M fyrir skatta]]*Hámarkshlutfall_af_launum,0)","v":0},{"$f":"-MIN(MAX(Launatafla[[#This Row],[Laun með bótum án skerðingar]]-Hámarkslaun,0),Launatafla[[#This Row],[Atvinnuleysisbætur fyrir skerðingu]])","v":-28202},{"$f":"+MIN(Launatafla[[#This Row],[Skerðing v/ hámarkshlutfalls]:[Skerðing v/ hámarkslauna]])","v":-28202},{"$f":"+IF(Launatafla[[#This Row],[Atvinnuleysisbætur fyrir skerðingu]]=0,0,\nMAX(MIN(Lágmarkslaun_fullt_starf,Launatafla[[#This Row],[Meðal heildarlaun sl. 3M fyrir skatta]]/Launatafla[[#This Row],[Starfshlutfall fyrir]])*Launatafla[[#This Row],[Starfshlutfall fyrir]]-(Launatafla[[#This Row],[Laun frá launagreiðanda]]+Launatafla[[#This Row],[Atvinnuleysisbætur fyrir skerðingu]]+Launatafla[[#This Row],[Skerðing v/ samtals]]),0))","v":0},{"$f":"+Launatafla[[#This Row],[Atvinnuleysisbætur fyrir skerðingu]]+Launatafla[[#This Row],[Skerðing v/ samtals]]+Launatafla[[#This Row],[Viðbót v/ tryggðra lágmarkslauna]]","v":200000},{"$f":"+Launatafla[[#This Row],[Laun frá launagreiðanda]]+Launatafla[[#This Row],[Laun frá ríkissjóði]]","v":700000},{"$f":"IFERROR(Launatafla[[#This Row],[Heildarlaun]]/Launatafla[[#This Row],[Meðal heildarlaun sl. 3M fyrir skatta]],0)","v":0.7}]
[null,null,null,null,"Starfsmaður 54",1000000,1,0.6,{"$f":"+Launatafla[[#This Row],[Starfshlutfall fyrir]]-Launatafla[[#This Row],[Skerðing starfshlutfalls]]","v":0.4},{"$f":"+IF(OR(Launatafla[[#This Row],[Skerðing starfshlutfalls]]>Hámarkslækkun_starfshl,Launatafla[[#This Row],[Skerðing starfshlutfalls]]<Lágmarkslækkun_starfshl),0,Atvinnuleysisbætur*Launatafla[[#This Row],[Skerðing starfshlutfalls]])","v":273842.39999999997},{"$f":"IFERROR(Launatafla[[#This Row],[Meðal heildarlaun sl. 3M fyrir skatta]]/Launatafla[[#This Row],[Starfshlutfall fyrir]],0)*(Launatafla[[#This Row],[Starfshlutfall fyrir]]-Launatafla[[#This Row],[Skerðing starfshlutfalls]])","v":400000},{"$f":"+Launatafla[[#This Row],[Atvinnuleysisbætur fyrir skerðingu]]+Launatafla[[#This Row],[Laun frá launagreiðanda]]","v":673842.39999999991},{"$f":"-MAX(Launatafla[[#This Row],[Laun með bótum án skerðingar]]-Launatafla[[#This Row],[Meðal heildarlaun sl. 3M fyrir skatta]]*Hámarkshlutfall_af_launum,0)","v":0},{"$f":"-MIN(MAX(Launatafla[[#This Row],[Laun með bótum án skerðingar]]-Hámarkslaun,0),Launatafla[[#This Row],[Atvinnuleysisbætur fyrir skerðingu]])","v":0},{"$f":"+MIN(Launatafla[[#This Row],[Skerðing v/ hámarkshlutfalls]:[Skerðing v/ hámarkslauna]])","v":0},{"$f":"+IF(Launatafla[[#This Row],[Atvinnuleysisbætur fyrir skerðingu]]=0,0,\nMAX(MIN(Lágmarkslaun_fullt_starf,Launatafla[[#This Row],[Meðal heildarlaun sl. 3M fyrir skatta]]/Launatafla[[#This Row],[Starfshlutfall fyrir]])*Launatafla[[#This Row],[Starfshlutfall fyrir]]-(Launatafla[[#This Row],[Laun frá launagreiðanda]]+Launatafla[[#This Row],[Atvinnuleysisbætur fyrir skerðingu]]+Launatafla[[#This Row],[Skerðing v/ samtals]]),0))","v":0},{"$f":"+Launatafla[[#This Row],[Atvinnuleysisbætur fyrir skerðingu]]+Launatafla[[#This Row],[Skerðing v/ samtals]]+Launatafla[[#This Row],[Viðbót v/ tryggðra lágmarkslauna]]","v":273842.39999999997},{"$f":"+Launatafla[[#This Row],[Laun frá launagreiðanda]]+Launatafla[[#This Row],[Laun frá ríkissjóði]]","v":673842.39999999991},{"$f":"IFERROR(Launatafla[[#This Row],[Heildarlaun]]/Launatafla[[#This Row],[Meðal heildarlaun sl. 3M fyrir skatta]],0)","v":0.67384239999999995}]
[null,null,null,null,"Starfsmaður 55",1000000,1,0.7,{"$f":"+Launatafla[[#This Row],[Starfshlutfall fyrir]]-Launatafla[[#This Row],[Skerðing starfshlutfalls]]","v":0.30000000000000004},{"$f":"+IF(OR(Launatafla[[#This Row],[Skerðing starfshlutfalls]]>Hámarkslækkun_starfshl,Launatafla[[#This Row],[Skerðing starfshlutfalls]]<Lágmarkslækkun_starfshl),0,Atvinnuleysisbætur*Launatafla[[#This Row],[Skerðing starfshlutfalls]])","v":319482.8},{"$f":"IFERROR(Launatafla[[#This Row],[Meðal heildarlaun sl. 3M fyrir skatta]]/Launatafla[[#This Row],[Starfshlutfall fyrir]],0)*(Launatafla[[#This Row],[Starfshlutfall fyrir]]-Launatafla[[#This Row],[Skerðing starfshlutfalls]])","v":300000.00000000006},{"$f":"+Launatafla[[#This Row],[Atvinnuleysisbætur fyrir skerðingu]]+Launatafla[[#This Row],[Laun frá launagreiðanda]]","v":619482.80000000005},{"$f":"-MAX(Launatafla[[#This Row],[Laun með bótum án skerðingar]]-Launatafla[[#This Row],[Meðal heildarlaun sl. 3M fyrir skatta]]*Hámarkshlutfall_af_launum,0)","v":0},{"$f":"-MIN(MAX(Launatafla[[#This Row],[Laun með bótum án skerðingar]]-Hámarkslaun,0),Launatafla[[#This Row],[Atvinnuleysisbætur fyrir skerðingu]])","v":0},{"$f":"+MIN(Launatafla[[#This Row],[Skerðing v/ hámarkshlutfalls]:[Skerðing v/ hámarkslauna]])","v":0},{"$f":"+IF(Launatafla[[#This Row],[Atvinnuleysisbætur fyrir skerðingu]]=0,0,\nMAX(MIN(Lágmarkslaun_fullt_starf,Launatafla[[#This Row],[Meðal heildarlaun sl. 3M fyrir skatta]]/Launatafla[[#This Row],[Starfshlutfall fyrir]])*Launatafla[[#This Row],[Starfshlutfall fyrir]]-(Launatafla[[#This Row],[Laun frá launagreiðanda]]+Launatafla[[#This Row],[Atvinnuleysisbætur fyrir skerðingu]]+Launatafla[[#This Row],[Skerðing v/ samtals]]),0))","v":0},{"$f":"+Launatafla[[#This Row],[Atvinnuleysisbætur fyrir skerðingu]]+Launatafla[[#This Row],[Skerðing v/ samtals]]+Launatafla[[#This Row],[Viðbót v/ tryggðra lágmarkslauna]]","v":319482.8},{"$f":"+Launatafla[[#This Row],[Laun frá launagreiðanda]]+Launatafla[[#This Row],[Laun frá ríkissjóði]]","v":619482.80000000005},{"$f":"IFERROR(Launatafla[[#This Row],[Heildarlaun]]/Launatafla[[#This Row],[Meðal heildarlaun sl. 3M fyrir skatta]],0)","v":0.6194828}]
[null,null,null,null,"Starfsmaður 56",1000000,1,0.75,{"$f":"+Launatafla[[#This Row],[Starfshlutfall fyrir]]-Launatafla[[#This Row],[Skerðing starfshlutfalls]]","v":0.25},{"$f":"+IF(OR(Launatafla[[#This Row],[Skerðing starfshlutfalls]]>Hámarkslækkun_starfshl,Launatafla[[#This Row],[Skerðing starfshlutfalls]]<Lágmarkslækkun_starfshl),0,Atvinnuleysisbætur*Launatafla[[#This Row],[Skerðing starfshlutfalls]])","v":342303},{"$f":"IFERROR(Launatafla[[#This Row],[Meðal heildarlaun sl. 3M fyrir skatta]]/Launatafla[[#This Row],[Starfshlutfall fyrir]],0)*(Launatafla[[#This Row],[Starfshlutfall fyrir]]-Launatafla[[#This Row],[Skerðing starfshlutfalls]])","v":250000},{"$f":"+Launatafla[[#This Row],[Atvinnuleysisbætur fyrir skerðingu]]+Launatafla[[#This Row],[Laun frá launagreiðanda]]","v":592303},{"$f":"-MAX(Launatafla[[#This Row],[Laun með bótum án skerðingar]]-Launatafla[[#This Row],[Meðal heildarlaun sl. 3M fyrir skatta]]*Hámarkshlutfall_af_launum,0)","v":0},{"$f":"-MIN(MAX(Launatafla[[#This Row],[Laun með bótum án skerðingar]]-Hámarkslaun,0),Launatafla[[#This Row],[Atvinnuleysisbætur fyrir skerðingu]])","v":0},{"$f":"+MIN(Launatafla[[#This Row],[Skerðing v/ hámarkshlutfalls]:[Skerðing v/ hámarkslauna]])","v":0},{"$f":"+IF(Launatafla[[#This Row],[Atvinnuleysisbætur fyrir skerðingu]]=0,0,\nMAX(MIN(Lágmarkslaun_fullt_starf,Launatafla[[#This Row],[Meðal heildarlaun sl. 3M fyrir skatta]]/Launatafla[[#This Row],[Starfshlutfall fyrir]])*Launatafla[[#This Row],[Starfshlutfall fyrir]]-(Launatafla[[#This Row],[Laun frá launagreiðanda]]+Launatafla[[#This Row],[Atvinnuleysisbætur fyrir skerðingu]]+Launatafla[[#This Row],[Skerðing v/ samtals]]),0))","v":0},{"$f":"+Launatafla[[#This Row],[Atvinnuleysisbætur fyrir skerðingu]]+Launatafla[[#This Row],[Skerðing v/ samtals]]+Launatafla[[#This Row],[Viðbót v/ tryggðra lágmarkslauna]]","v":342303},{"$f":"+Launatafla[[#This Row],[Laun frá launagreiðanda]]+Launatafla[[#This Row],[Laun frá ríkissjóði]]","v":592303},{"$f":"IFERROR(Launatafla[[#This Row],[Heildarlaun]]/Launatafla[[#This Row],[Meðal heildarlaun sl. 3M fyrir skatta]],0)","v":0.59230300000000002}]
[null,null,null,null,"Starfsmaður 57",1100000,1,0.2,{"$f":"+Launatafla[[#This Row],[Starfshlutfall fyrir]]-Launatafla[[#This Row],[Skerðing starfshlutfalls]]","v":0.8},{"$f":"+IF(OR(Launatafla[[#This Row],[Skerðing starfshlutfalls]]>Hámarkslækkun_starfshl,Launatafla[[#This Row],[Skerðing starfshlutfalls]]<Lágmarkslækkun_starfshl),0,Atvinnuleysisbætur*Launatafla[[#This Row],[Skerðing starfshlutfalls]])","v":91280.8},{"$f":"IFERROR(Launatafla[[#This Row],[Meðal heildarlaun sl. 3M fyrir skatta]]/Launatafla[[#This Row],[Starfshlutfall fyrir]],0)*(Launatafla[[#This Row],[Starfshlutfall fyrir]]-Launatafla[[#This Row],[Skerðing starfshlutfalls]])","v":880000},{"$f":"+Launatafla[[#This Row],[Atvinnuleysisbætur fyrir skerðingu]]+Launatafla[[#This Row],[Laun frá launagreiðanda]]","v":971280.8},{"$f":"-MAX(Launatafla[[#This Row],[Laun með bótum án skerðingar]]-Launatafla[[#This Row],[Meðal heildarlaun sl. 3M fyrir skatta]]*Hámarkshlutfall_af_launum,0)","v":0},{"$f":"-MIN(MAX(Launatafla[[#This Row],[Laun með bótum án skerðingar]]-Hámarkslaun,0),Launatafla[[#This Row],[Atvinnuleysisbætur fyrir skerðingu]])","v":-91280.8},{"$f":"+MIN(Launatafla[[#This Row],[Skerðing v/ hámarkshlutfalls]:[Skerðing v/ hámarkslauna]])","v":-91280.8},{"$f":"+IF(Launatafla[[#This Row],[Atvinnuleysisbætur fyrir skerðingu]]=0,0,\nMAX(MIN(Lágmarkslaun_fullt_starf,Launatafla[[#This Row],[Meðal heildarlaun sl. 3M fyrir skatta]]/Launatafla[[#This Row],[Starfshlutfall fyrir]])*Launatafla[[#This Row],[Starfshlutfall fyrir]]-(Launatafla[[#This Row],[Laun frá launagreiðanda]]+Launatafla[[#This Row],[Atvinnuleysisbætur fyrir skerðingu]]+Launatafla[[#This Row],[Skerðing v/ samtals]]),0))","v":0},{"$f":"+Launatafla[[#This Row],[Atvinnuleysisbætur fyrir skerðingu]]+Launatafla[[#This Row],[Skerðing v/ samtals]]+Launatafla[[#This Row],[Viðbót v/ tryggðra lágmarkslauna]]","v":0},{"$f":"+Launatafla[[#This Row],[Laun frá launagreiðanda]]+Launatafla[[#This Row],[Laun frá ríkissjóði]]","v":880000},{"$f":"IFERROR(Launatafla[[#This Row],[Heildarlaun]]/Launatafla[[#This Row],[Meðal heildarlaun sl. 3M fyrir skatta]],0)","v":0.8}]
[null,null,null,null,"Starfsmaður 58",1100000,1,0.3,{"$f":"+Launatafla[[#This Row],[Starfshlutfall fyrir]]-Launatafla[[#This Row],[Skerðing starfshlutfalls]]","v":0.7},{"$f":"+IF(OR(Launatafla[[#This Row],[Skerðing starfshlutfalls]]>Hámarkslækkun_starfshl,Launatafla[[#This Row],[Skerðing starfshlutfalls]]<Lágmarkslækkun_starfshl),0,Atvinnuleysisbætur*Launatafla[[#This Row],[Skerðing starfshlutfalls]])","v":136921.19999999998},{"$f":"IFERROR(Launatafla[[#This Row],[Meðal heildarlaun sl. 3M fyrir skatta]]/Launatafla[[#This Row],[Starfshlutfall fyrir]],0)*(Launatafla[[#This Row],[Starfshlutfall fyrir]]-Launatafla[[#This Row],[Skerðing starfshlutfalls]])","v":770000},{"$f":"+Launatafla[[#This Row],[Atvinnuleysisbætur fyrir skerðingu]]+Launatafla[[#This Row],[Laun frá launagreiðanda]]","v":906921.2},{"$f":"-MAX(Launatafla[[#This Row],[Laun með bótum án skerðingar]]-Launatafla[[#This Row],[Meðal heildarlaun sl. 3M fyrir skatta]]*Hámarkshlutfall_af_launum,0)","v":0},{"$f":"-MIN(MAX(Launatafla[[#This Row],[Laun með bótum án skerðingar]]-Hámarkslaun,0),Launatafla[[#This Row],[Atvinnuleysisbætur fyrir skerðingu]])","v":-136921.19999999998},{"$f":"+MIN(Launatafla[[#This Row],[Skerðing v/ hámarkshlutfalls]:[Skerðing v/ hámarkslauna]])","v":-136921.19999999998},{"$f":"+IF(Launatafla[[#This Row],[Atvinnuleysisbætur fyrir skerðingu]]=0,0,\nMAX(MIN(Lágmarkslaun_fullt_starf,Launatafla[[#This Row],[Meðal heildarlaun sl. 3M fyrir skatta]]/Launatafla[[#This Row],[Starfshlutfall fyrir]])*Launatafla[[#This Row],[Starfshlutfall fyrir]]-(Launatafla[[#This Row],[Laun frá launagreiðanda]]+Launatafla[[#This Row],[Atvinnuleysisbætur fyrir skerðingu]]+Launatafla[[#This Row],[Skerðing v/ samtals]]),0))","v":0},{"$f":"+Launatafla[[#This Row],[Atvinnuleysisbætur fyrir skerðingu]]+Launatafla[[#This Row],[Skerðing v/ samtals]]+Launatafla[[#This Row],[Viðbót v/ tryggðra lágmarkslauna]]","v":0},{"$f":"+Launatafla[[#This Row],[Laun frá launagreiðanda]]+Launatafla[[#This Row],[Laun frá ríkissjóði]]","v":770000},{"$f":"IFERROR(Launatafla[[#This Row],[Heildarlaun]]/Launatafla[[#This Row],[Meðal heildarlaun sl. 3M fyrir skatta]],0)","v":0.7}]
[null,null,null,null,"Starfsmaður 59",1100000,1,0.4,{"$f":"+Launatafla[[#This Row],[Starfshlutfall fyrir]]-Launatafla[[#This Row],[Skerðing starfshlutfalls]]","v":0.6},{"$f":"+IF(OR(Launatafla[[#This Row],[Skerðing starfshlutfalls]]>Hámarkslækkun_starfshl,Launatafla[[#This Row],[Skerðing starfshlutfalls]]<Lágmarkslækkun_starfshl),0,Atvinnuleysisbætur*Launatafla[[#This Row],[Skerðing starfshlutfalls]])","v":182561.6},{"$f":"IFERROR(Launatafla[[#This Row],[Meðal heildarlaun sl. 3M fyrir skatta]]/Launatafla[[#This Row],[Starfshlutfall fyrir]],0)*(Launatafla[[#This Row],[Starfshlutfall fyrir]]-Launatafla[[#This Row],[Skerðing starfshlutfalls]])","v":660000},{"$f":"+Launatafla[[#This Row],[Atvinnuleysisbætur fyrir skerðingu]]+Launatafla[[#This Row],[Laun frá launagreiðanda]]","v":842561.6},{"$f":"-MAX(Launatafla[[#This Row],[Laun með bótum án skerðingar]]-Launatafla[[#This Row],[Meðal heildarlaun sl. 3M fyrir skatta]]*Hámarkshlutfall_af_launum,0)","v":0},{"$f":"-MIN(MAX(Launatafla[[#This Row],[Laun með bótum án skerðingar]]-Hámarkslaun,0),Launatafla[[#This Row],[Atvinnuleysisbætur fyrir skerðingu]])","v":-142561.59999999998},{"$f":"+MIN(Launatafla[[#This Row],[Skerðing v/ hámarkshlutfalls]:[Skerðing v/ hámarkslauna]])","v":-142561.59999999998},{"$f":"+IF(Launatafla[[#This Row],[Atvinnuleysisbætur fyrir skerðingu]]=0,0,\nMAX(MIN(Lágmarkslaun_fullt_starf,Launatafla[[#This Row],[Meðal heildarlaun sl. 3M fyrir skatta]]/Launatafla[[#This Row],[Starfshlutfall fyrir]])*Launatafla[[#This Row],[Starfshlutfall fyrir]]-(Launatafla[[#This Row],[Laun frá launagreiðanda]]+Launatafla[[#This Row],[Atvinnuleysisbætur fyrir skerðingu]]+Launatafla[[#This Row],[Skerðing v/ samtals]]),0))","v":0},{"$f":"+Launatafla[[#This Row],[Atvinnuleysisbætur fyrir skerðingu]]+Launatafla[[#This Row],[Skerðing v/ samtals]]+Launatafla[[#This Row],[Viðbót v/ tryggðra lágmarkslauna]]","v":40000.000000000029},{"$f":"+Launatafla[[#This Row],[Laun frá launagreiðanda]]+Launatafla[[#This Row],[Laun frá ríkissjóði]]","v":700000},{"$f":"IFERROR(Launatafla[[#This Row],[Heildarlaun]]/Launatafla[[#This Row],[Meðal heildarlaun sl. 3M fyrir skatta]],0)","v":0.63636363636363635}]
[null,null,null,null,"Starfsmaður 60",1100000,1,0.5,{"$f":"+Launatafla[[#This Row],[Starfshlutfall fyrir]]-Launatafla[[#This Row],[Skerðing starfshlutfalls]]","v":0.5},{"$f":"+IF(OR(Launatafla[[#This Row],[Skerðing starfshlutfalls]]>Hámarkslækkun_starfshl,Launatafla[[#This Row],[Skerðing starfshlutfalls]]<Lágmarkslækkun_starfshl),0,Atvinnuleysisbætur*Launatafla[[#This Row],[Skerðing starfshlutfalls]])","v":228202},{"$f":"IFERROR(Launatafla[[#This Row],[Meðal heildarlaun sl. 3M fyrir skatta]]/Launatafla[[#This Row],[Starfshlutfall fyrir]],0)*(Launatafla[[#This Row],[Starfshlutfall fyrir]]-Launatafla[[#This Row],[Skerðing starfshlutfalls]])","v":550000},{"$f":"+Launatafla[[#This Row],[Atvinnuleysisbætur fyrir skerðingu]]+Launatafla[[#This Row],[Laun frá launagreiðanda]]","v":778202},{"$f":"-MAX(Launatafla[[#This Row],[Laun með bótum án skerðingar]]-Launatafla[[#This Row],[Meðal heildarlaun sl. 3M fyrir skatta]]*Hámarkshlutfall_af_launum,0)","v":0},{"$f":"-MIN(MAX(Launatafla[[#This Row],[Laun með bótum án skerðingar]]-Hámarkslaun,0),Launatafla[[#This Row],[Atvinnuleysisbætur fyrir skerðingu]])","v":-78202},{"$f":"+MIN(Launatafla[[#This Row],[Skerðing v/ hámarkshlutfalls]:[Skerðing v/ hámarkslauna]])","v":-78202},{"$f":"+IF(Launatafla[[#This Row],[Atvinnuleysisbætur fyrir skerðingu]]=0,0,\nMAX(MIN(Lágmarkslaun_fullt_starf,Launatafla[[#This Row],[Meðal heildarlaun sl. 3M fyrir skatta]]/Launatafla[[#This Row],[Starfshlutfall fyrir]])*Launatafla[[#This Row],[Starfshlutfall fyrir]]-(Launatafla[[#This Row],[Laun frá launagreiðanda]]+Launatafla[[#This Row],[Atvinnuleysisbætur fyrir skerðingu]]+Launatafla[[#This Row],[Skerðing v/ samtals]]),0))","v":0},{"$f":"+Launatafla[[#This Row],[Atvinnuleysisbætur fyrir skerðingu]]+Launatafla[[#This Row],[Skerðing v/ samtals]]+Launatafla[[#This Row],[Viðbót v/ tryggðra lágmarkslauna]]","v":150000},{"$f":"+Launatafla[[#This Row],[Laun frá launagreiðanda]]+Launatafla[[#This Row],[Laun frá ríkissjóði]]","v":700000},{"$f":"IFERROR(Launatafla[[#This Row],[Heildarlaun]]/Launatafla[[#This Row],[Meðal heildarlaun sl. 3M fyrir skatta]],0)","v":0.63636363636363635}]
[null,null,null,null,"Starfsmaður 61",1100000,1,0.6,{"$f":"+Launatafla[[#This Row],[Starfshlutfall fyrir]]-Launatafla[[#This Row],[Skerðing starfshlutfalls]]","v":0.4},{"$f":"+IF(OR(Launatafla[[#This Row],[Skerðing starfshlutfalls]]>Hámarkslækkun_starfshl,Launatafla[[#This Row],[Skerðing starfshlutfalls]]<Lágmarkslækkun_starfshl),0,Atvinnuleysisbætur*Launatafla[[#This Row],[Skerðing starfshlutfalls]])","v":273842.39999999997},{"$f":"IFERROR(Launatafla[[#This Row],[Meðal heildarlaun sl. 3M fyrir skatta]]/Launatafla[[#This Row],[Starfshlutfall fyrir]],0)*(Launatafla[[#This Row],[Starfshlutfall fyrir]]-Launatafla[[#This Row],[Skerðing starfshlutfalls]])","v":440000},{"$f":"+Launatafla[[#This Row],[Atvinnuleysisbætur fyrir skerðingu]]+Launatafla[[#This Row],[Laun frá launagreiðanda]]","v":713842.39999999991},{"$f":"-MAX(Launatafla[[#This Row],[Laun með bótum án skerðingar]]-Launatafla[[#This Row],[Meðal heildarlaun sl. 3M fyrir skatta]]*Hámarkshlutfall_af_launum,0)","v":0},{"$f":"-MIN(MAX(Launatafla[[#This Row],[Laun með bótum án skerðingar]]-Hámarkslaun,0),Launatafla[[#This Row],[Atvinnuleysisbætur fyrir skerðingu]])","v":-13842.399999999907},{"$f":"+MIN(Launatafla[[#This Row],[Skerðing v/ hámarkshlutfalls]:[Skerðing v/ hámarkslauna]])","v":-13842.399999999907},{"$f":"+IF(Launatafla[[#This Row],[Atvinnuleysisbætur fyrir skerðingu]]=0,0,\nMAX(MIN(Lágmarkslaun_fullt_starf,Launatafla[[#This Row],[Meðal heildarlaun sl. 3M fyrir skatta]]/Launatafla[[#This Row],[Starfshlutfall fyrir]])*Launatafla[[#This Row],[Starfshlutfall fyrir]]-(Launatafla[[#This Row],[Laun frá launagreiðanda]]+Launatafla[[#This Row],[Atvinnuleysisbætur fyrir skerðingu]]+Launatafla[[#This Row],[Skerðing v/ samtals]]),0))","v":0},{"$f":"+Launatafla[[#This Row],[Atvinnuleysisbætur fyrir skerðingu]]+Launatafla[[#This Row],[Skerðing v/ samtals]]+Launatafla[[#This Row],[Viðbót v/ tryggðra lágmarkslauna]]","v":260000.00000000006},{"$f":"+Launatafla[[#This Row],[Laun frá launagreiðanda]]+Launatafla[[#This Row],[Laun frá ríkissjóði]]","v":700000},{"$f":"IFERROR(Launatafla[[#This Row],[Heildarlaun]]/Launatafla[[#This Row],[Meðal heildarlaun sl. 3M fyrir skatta]],0)","v":0.63636363636363635}]
[null,null,null,null,"Starfsmaður 62",1100000,1,0.7,{"$f":"+Launatafla[[#This Row],[Starfshlutfall fyrir]]-Launatafla[[#This Row],[Skerðing starfshlutfalls]]","v":0.30000000000000004},{"$f":"+IF(OR(Launatafla[[#This Row],[Skerðing starfshlutfalls]]>Hámarkslækkun_starfshl,Launatafla[[#This Row],[Skerðing starfshlutfalls]]<Lágmarkslækkun_starfshl),0,Atvinnuleysisbætur*Launatafla[[#This Row],[Skerðing starfshlutfalls]])","v":319482.8},{"$f":"IFERROR(Launatafla[[#This Row],[Meðal heildarlaun sl. 3M fyrir skatta]]/Launatafla[[#This Row],[Starfshlutfall fyrir]],0)*(Launatafla[[#This Row],[Starfshlutfall fyrir]]-Launatafla[[#This Row],[Skerðing starfshlutfalls]])","v":330000.00000000006},{"$f":"+Launatafla[[#This Row],[Atvinnuleysisbætur fyrir skerðingu]]+Launatafla[[#This Row],[Laun frá launagreiðanda]]","v":649482.80000000005},{"$f":"-MAX(Launatafla[[#This Row],[Laun með bótum án skerðingar]]-Launatafla[[#This Row],[Meðal heildarlaun sl. 3M fyrir skatta]]*Hámarkshlutfall_af_launum,0)","v":0},{"$f":"-MIN(MAX(Launatafla[[#This Row],[Laun með bótum án skerðingar]]-Hámarkslaun,0),Launatafla[[#This Row],[Atvinnuleysisbætur fyrir skerðingu]])","v":0},{"$f":"+MIN(Launatafla[[#This Row],[Skerðing v/ hámarkshlutfalls]:[Skerðing v/ hámarkslauna]])","v":0},{"$f":"+IF(Launatafla[[#This Row],[Atvinnuleysisbætur fyrir skerðingu]]=0,0,\nMAX(MIN(Lágmarkslaun_fullt_starf,Launatafla[[#This Row],[Meðal heildarlaun sl. 3M fyrir skatta]]/Launatafla[[#This Row],[Starfshlutfall fyrir]])*Launatafla[[#This Row],[Starfshlutfall fyrir]]-(Launatafla[[#This Row],[Laun frá launagreiðanda]]+Launatafla[[#This Row],[Atvinnuleysisbætur fyrir skerðingu]]+Launatafla[[#This Row],[Skerðing v/ samtals]]),0))","v":0},{"$f":"+Launatafla[[#This Row],[Atvinnuleysisbætur fyrir skerðingu]]+Launatafla[[#This Row],[Skerðing v/ samtals]]+Launatafla[[#This Row],[Viðbót v/ tryggðra lágmarkslauna]]","v":319482.8},{"$f":"+Launatafla[[#This Row],[Laun frá launagreiðanda]]+Launatafla[[#This Row],[Laun frá ríkissjóði]]","v":649482.80000000005},{"$f":"IFERROR(Launatafla[[#This Row],[Heildarlaun]]/Launatafla[[#This Row],[Meðal heildarlaun sl. 3M fyrir skatta]],0)","v":0.59043890909090913}]
[null,null,null,null,"Starfsmaður 63",1100000,1,0.75,{"$f":"+Launatafla[[#This Row],[Starfshlutfall fyrir]]-Launatafla[[#This Row],[Skerðing starfshlutfalls]]","v":0.25},{"$f":"+IF(OR(Launatafla[[#This Row],[Skerðing starfshlutfalls]]>Hámarkslækkun_starfshl,Launatafla[[#This Row],[Skerðing starfshlutfalls]]<Lágmarkslækkun_starfshl),0,Atvinnuleysisbætur*Launatafla[[#This Row],[Skerðing starfshlutfalls]])","v":342303},{"$f":"IFERROR(Launatafla[[#This Row],[Meðal heildarlaun sl. 3M fyrir skatta]]/Launatafla[[#This Row],[Starfshlutfall fyrir]],0)*(Launatafla[[#This Row],[Starfshlutfall fyrir]]-Launatafla[[#This Row],[Skerðing starfshlutfalls]])","v":275000},{"$f":"+Launatafla[[#This Row],[Atvinnuleysisbætur fyrir skerðingu]]+Launatafla[[#This Row],[Laun frá launagreiðanda]]","v":617303},{"$f":"-MAX(Launatafla[[#This Row],[Laun með bótum án skerðingar]]-Launatafla[[#This Row],[Meðal heildarlaun sl. 3M fyrir skatta]]*Hámarkshlutfall_af_launum,0)","v":0},{"$f":"-MIN(MAX(Launatafla[[#This Row],[Laun með bótum án skerðingar]]-Hámarkslaun,0),Launatafla[[#This Row],[Atvinnuleysisbætur fyrir skerðingu]])","v":0},{"$f":"+MIN(Launatafla[[#This Row],[Skerðing v/ hámarkshlutfalls]:[Skerðing v/ hámarkslauna]])","v":0},{"$f":"+IF(Launatafla[[#This Row],[Atvinnuleysisbætur fyrir skerðingu]]=0,0,\nMAX(MIN(Lágmarkslaun_fullt_starf,Launatafla[[#This Row],[Meðal heildarlaun sl. 3M fyrir skatta]]/Launatafla[[#This Row],[Starfshlutfall fyrir]])*Launatafla[[#This Row],[Starfshlutfall fyrir]]-(Launatafla[[#This Row],[Laun frá launagreiðanda]]+Launatafla[[#This Row],[Atvinnuleysisbætur fyrir skerðingu]]+Launatafla[[#This Row],[Skerðing v/ samtals]]),0))","v":0},{"$f":"+Launatafla[[#This Row],[Atvinnuleysisbætur fyrir skerðingu]]+Launatafla[[#This Row],[Skerðing v/ samtals]]+Launatafla[[#This Row],[Viðbót v/ tryggðra lágmarkslauna]]","v":342303},{"$f":"+Launatafla[[#This Row],[Laun frá launagreiðanda]]+Launatafla[[#This Row],[Laun frá ríkissjóði]]","v":617303},{"$f":"IFERROR(Launatafla[[#This Row],[Heildarlaun]]/Launatafla[[#This Row],[Meðal heildarlaun sl. 3M fyrir skatta]],0)","v":0.56118454545454544}]
[null,null,null,null,"Starfsmaður 64",1200000,1,0.2,{"$f":"+Launatafla[[#This Row],[Starfshlutfall fyrir]]-Launatafla[[#This Row],[Skerðing starfshlutfalls]]","v":0.8},{"$f":"+IF(OR(Launatafla[[#This Row],[Skerðing starfshlutfalls]]>Hámarkslækkun_starfshl,Launatafla[[#This Row],[Skerðing starfshlutfalls]]<Lágmarkslækkun_starfshl),0,Atvinnuleysisbætur*Launatafla[[#This Row],[Skerðing starfshlutfalls]])","v":91280.8},{"$f":"IFERROR(Launatafla[[#This Row],[Meðal heildarlaun sl. 3M fyrir skatta]]/Launatafla[[#This Row],[Starfshlutfall fyrir]],0)*(Launatafla[[#This Row],[Starfshlutfall fyrir]]-Launatafla[[#This Row],[Skerðing starfshlutfalls]])","v":960000},{"$f":"+Launatafla[[#This Row],[Atvinnuleysisbætur fyrir skerðingu]]+Launatafla[[#This Row],[Laun frá launagreiðanda]]","v":1051280.8},{"$f":"-MAX(Launatafla[[#This Row],[Laun með bótum án skerðingar]]-Launatafla[[#This Row],[Meðal heildarlaun sl. 3M fyrir skatta]]*Hámarkshlutfall_af_launum,0)","v":0},{"$f":"-MIN(MAX(Launatafla[[#This Row],[Laun með bótum án skerðingar]]-Hámarkslaun,0),Launatafla[[#This Row],[Atvinnuleysisbætur fyrir skerðingu]])","v":-91280.8},{"$f":"+MIN(Launatafla[[#This Row],[Skerðing v/ hámarkshlutfalls]:[Skerðing v/ hámarkslauna]])","v":-91280.8},{"$f":"+IF(Launatafla[[#This Row],[Atvinnuleysisbætur fyrir skerðingu]]=0,0,\nMAX(MIN(Lágmarkslaun_fullt_starf,Launatafla[[#This Row],[Meðal heildarlaun sl. 3M fyrir skatta]]/Launatafla[[#This Row],[Starfshlutfall fyrir]])*Launatafla[[#This Row],[Starfshlutfall fyrir]]-(Launatafla[[#This Row],[Laun frá launagreiðanda]]+Launatafla[[#This Row],[Atvinnuleysisbætur fyrir skerðingu]]+Launatafla[[#This Row],[Skerðing v/ samtals]]),0))","v":0},{"$f":"+Launatafla[[#This Row],[Atvinnuleysisbætur fyrir skerðingu]]+Launatafla[[#This Row],[Skerðing v/ samtals]]+Launatafla[[#This Row],[Viðbót v/ tryggðra lágmarkslauna]]","v":0},{"$f":"+Launatafla[[#This Row],[Laun frá launagreiðanda]]+Launatafla[[#This Row],[Laun frá ríkissjóði]]","v":960000},{"$f":"IFERROR(Launatafla[[#This Row],[Heildarlaun]]/Launatafla[[#This Row],[Meðal heildarlaun sl. 3M fyrir skatta]],0)","v":0.8}]
[null,null,null,null,"Starfsmaður 65",1200000,1,0.3,{"$f":"+Launatafla[[#This Row],[Starfshlutfall fyrir]]-Launatafla[[#This Row],[Skerðing starfshlutfalls]]","v":0.7},{"$f":"+IF(OR(Launatafla[[#This Row],[Skerðing starfshlutfalls]]>Hámarkslækkun_starfshl,Launatafla[[#This Row],[Skerðing starfshlutfalls]]<Lágmarkslækkun_starfshl),0,Atvinnuleysisbætur*Launatafla[[#This Row],[Skerðing starfshlutfalls]])","v":136921.19999999998},{"$f":"IFERROR(Launatafla[[#This Row],[Meðal heildarlaun sl. 3M fyrir skatta]]/Launatafla[[#This Row],[Starfshlutfall fyrir]],0)*(Launatafla[[#This Row],[Starfshlutfall fyrir]]-Launatafla[[#This Row],[Skerðing starfshlutfalls]])","v":840000},{"$f":"+Launatafla[[#This Row],[Atvinnuleysisbætur fyrir skerðingu]]+Launatafla[[#This Row],[Laun frá launagreiðanda]]","v":976921.2},{"$f":"-MAX(Launatafla[[#This Row],[Laun með bótum án skerðingar]]-Launatafla[[#This Row],[Meðal heildarlaun sl. 3M fyrir skatta]]*Hámarkshlutfall_af_launum,0)","v":0},{"$f":"-MIN(MAX(Launatafla[[#This Row],[Laun með bótum án skerðingar]]-Hámarkslaun,0),Launatafla[[#This Row],[Atvinnuleysisbætur fyrir skerðingu]])","v":-136921.19999999998},{"$f":"+MIN(Launatafla[[#This Row],[Skerðing v/ hámarkshlutfalls]:[Skerðing v/ hámarkslauna]])","v":-136921.19999999998},{"$f":"+IF(Launatafla[[#This Row],[Atvinnuleysisbætur fyrir skerðingu]]=0,0,\nMAX(MIN(Lágmarkslaun_fullt_starf,Launatafla[[#This Row],[Meðal heildarlaun sl. 3M fyrir skatta]]/Launatafla[[#This Row],[Starfshlutfall fyrir]])*Launatafla[[#This Row],[Starfshlutfall fyrir]]-(Launatafla[[#This Row],[Laun frá launagreiðanda]]+Launatafla[[#This Row],[Atvinnuleysisbætur fyrir skerðingu]]+Launatafla[[#This Row],[Skerðing v/ samtals]]),0))","v":0},{"$f":"+Launatafla[[#This Row],[Atvinnuleysisbætur fyrir skerðingu]]+Launatafla[[#This Row],[Skerðing v/ samtals]]+Launatafla[[#This Row],[Viðbót v/ tryggðra lágmarkslauna]]","v":0},{"$f":"+Launatafla[[#This Row],[Laun frá launagreiðanda]]+Launatafla[[#This Row],[Laun frá ríkissjóði]]","v":840000},{"$f":"IFERROR(Launatafla[[#This Row],[Heildarlaun]]/Launatafla[[#This Row],[Meðal heildarlaun sl. 3M fyrir skatta]],0)","v":0.7}]
[null,null,null,null,"Starfsmaður 66",1200000,1,0.4,{"$f":"+Launatafla[[#This Row],[Starfshlutfall fyrir]]-Launatafla[[#This Row],[Skerðing starfshlutfalls]]","v":0.6},{"$f":"+IF(OR(Launatafla[[#This Row],[Skerðing starfshlutfalls]]>Hámarkslækkun_starfshl,Launatafla[[#This Row],[Skerðing starfshlutfalls]]<Lágmarkslækkun_starfshl),0,Atvinnuleysisbætur*Launatafla[[#This Row],[Skerðing starfshlutfalls]])","v":182561.6},{"$f":"IFERROR(Launatafla[[#This Row],[Meðal heildarlaun sl. 3M fyrir skatta]]/Launatafla[[#This Row],[Starfshlutfall fyrir]],0)*(Launatafla[[#This Row],[Starfshlutfall fyrir]]-Launatafla[[#This Row],[Skerðing starfshlutfalls]])","v":720000},{"$f":"+Launatafla[[#This Row],[Atvinnuleysisbætur fyrir skerðingu]]+Launatafla[[#This Row],[Laun frá launagreiðanda]]","v":902561.6},{"$f":"-MAX(Launatafla[[#This Row],[Laun með bótum án skerðingar]]-Launatafla[[#This Row],[Meðal heildarlaun sl. 3M fyrir skatta]]*Hámarkshlutfall_af_launum,0)","v":0},{"$f":"-MIN(MAX(Launatafla[[#This Row],[Laun með bótum án skerðingar]]-Hámarkslaun,0),Launatafla[[#This Row],[Atvinnuleysisbætur fyrir skerðingu]])","v":-182561.6},{"$f":"+MIN(Launatafla[[#This Row],[Skerðing v/ hámarkshlutfalls]:[Skerðing v/ hámarkslauna]])","v":-182561.6},{"$f":"+IF(Launatafla[[#This Row],[Atvinnuleysisbætur fyrir skerðingu]]=0,0,\nMAX(MIN(Lágmarkslaun_fullt_starf,Launatafla[[#This Row],[Meðal heildarlaun sl. 3M fyrir skatta]]/Launatafla[[#This Row],[Starfshlutfall fyrir]])*Launatafla[[#This Row],[Starfshlutfall fyrir]]-(Launatafla[[#This Row],[Laun frá launagreiðanda]]+Launatafla[[#This Row],[Atvinnuleysisbætur fyrir skerðingu]]+Launatafla[[#This Row],[Skerðing v/ samtals]]),0))","v":0},{"$f":"+Launatafla[[#This Row],[Atvinnuleysisbætur fyrir skerðingu]]+Launatafla[[#This Row],[Skerðing v/ samtals]]+Launatafla[[#This Row],[Viðbót v/ tryggðra lágmarkslauna]]","v":0},{"$f":"+Launatafla[[#This Row],[Laun frá launagreiðanda]]+Launatafla[[#This Row],[Laun frá ríkissjóði]]","v":720000},{"$f":"IFERROR(Launatafla[[#This Row],[Heildarlaun]]/Launatafla[[#This Row],[Meðal heildarlaun sl. 3M fyrir skatta]],0)","v":0.6}]
[null,null,null,null,"Starfsmaður 67",1200000,1,0.5,{"$f":"+Launatafla[[#This Row],[Starfshlutfall fyrir]]-Launatafla[[#This Row],[Skerðing starfshlutfalls]]","v":0.5},{"$f":"+IF(OR(Launatafla[[#This Row],[Skerðing starfshlutfalls]]>Hámarkslækkun_starfshl,Launatafla[[#This Row],[Skerðing starfshlutfalls]]<Lágmarkslækkun_starfshl),0,Atvinnuleysisbætur*Launatafla[[#This Row],[Skerðing starfshlutfalls]])","v":228202},{"$f":"IFERROR(Launatafla[[#This Row],[Meðal heildarlaun sl. 3M fyrir skatta]]/Launatafla[[#This Row],[Starfshlutfall fyrir]],0)*(Launatafla[[#This Row],[Starfshlutfall fyrir]]-Launatafla[[#This Row],[Skerðing starfshlutfalls]])","v":600000},{"$f":"+Launatafla[[#This Row],[Atvinnuleysisbætur fyrir skerðingu]]+Launatafla[[#This Row],[Laun frá launagreiðanda]]","v":828202},{"$f":"-MAX(Launatafla[[#This Row],[Laun með bótum án skerðingar]]-Launatafla[[#This Row],[Meðal heildarlaun sl. 3M fyrir skatta]]*Hámarkshlutfall_af_launum,0)","v":0},{"$f":"-MIN(MAX(Launatafla[[#This Row],[Laun með bótum án skerðingar]]-Hámarkslaun,0),Launatafla[[#This Row],[Atvinnuleysisbætur fyrir skerðingu]])","v":-128202},{"$f":"+MIN(Launatafla[[#This Row],[Skerðing v/ hámarkshlutfalls]:[Skerðing v/ hámarkslauna]])","v":-128202},{"$f":"+IF(Launatafla[[#This Row],[Atvinnuleysisbætur fyrir skerðingu]]=0,0,\nMAX(MIN(Lágmarkslaun_fullt_starf,Launatafla[[#This Row],[Meðal heildarlaun sl. 3M fyrir skatta]]/Launatafla[[#This Row],[Starfshlutfall fyrir]])*Launatafla[[#This Row],[Starfshlutfall fyrir]]-(Launatafla[[#This Row],[Laun frá launagreiðanda]]+Launatafla[[#This Row],[Atvinnuleysisbætur fyrir skerðingu]]+Launatafla[[#This Row],[Skerðing v/ samtals]]),0))","v":0},{"$f":"+Launatafla[[#This Row],[Atvinnuleysisbætur fyrir skerðingu]]+Launatafla[[#This Row],[Skerðing v/ samtals]]+Launatafla[[#This Row],[Viðbót v/ tryggðra lágmarkslauna]]","v":100000},{"$f":"+Launatafla[[#This Row],[Laun frá launagreiðanda]]+Launatafla[[#This Row],[Laun frá ríkissjóði]]","v":700000},{"$f":"IFERROR(Launatafla[[#This Row],[Heildarlaun]]/Launatafla[[#This Row],[Meðal heildarlaun sl. 3M fyrir skatta]],0)","v":0.58333333333333337}]
[null,null,null,null,"Starfsmaður 68",1200000,1,0.6,{"$f":"+Launatafla[[#This Row],[Starfshlutfall fyrir]]-Launatafla[[#This Row],[Skerðing starfshlutfalls]]","v":0.4},{"$f":"+IF(OR(Launatafla[[#This Row],[Skerðing starfshlutfalls]]>Hámarkslækkun_starfshl,Launatafla[[#This Row],[Skerðing starfshlutfalls]]<Lágmarkslækkun_starfshl),0,Atvinnuleysisbætur*Launatafla[[#This Row],[Skerðing starfshlutfalls]])","v":273842.39999999997},{"$f":"IFERROR(Launatafla[[#This Row],[Meðal heildarlaun sl. 3M fyrir skatta]]/Launatafla[[#This Row],[Starfshlutfall fyrir]],0)*(Launatafla[[#This Row],[Starfshlutfall fyrir]]-Launatafla[[#This Row],[Skerðing starfshlutfalls]])","v":480000},{"$f":"+Launatafla[[#This Row],[Atvinnuleysisbætur fyrir skerðingu]]+Launatafla[[#This Row],[Laun frá launagreiðanda]]","v":753842.39999999991},{"$f":"-MAX(Launatafla[[#This Row],[Laun með bótum án skerðingar]]-Launatafla[[#This Row],[Meðal heildarlaun sl. 3M fyrir skatta]]*Hámarkshlutfall_af_launum,0)","v":0},{"$f":"-MIN(MAX(Launatafla[[#This Row],[Laun með bótum án skerðingar]]-Hámarkslaun,0),Launatafla[[#This Row],[Atvinnuleysisbætur fyrir skerðingu]])","v":-53842.399999999907},{"$f":"+MIN(Launatafla[[#This Row],[Skerðing v/ hámarkshlutfalls]:[Skerðing v/ hámarkslauna]])","v":-53842.399999999907},{"$f":"+IF(Launatafla[[#This Row],[Atvinnuleysisbætur fyrir skerðingu]]=0,0,\nMAX(MIN(Lágmarkslaun_fullt_starf,Launatafla[[#This Row],[Meðal heildarlaun sl. 3M fyrir skatta]]/Launatafla[[#This Row],[Starfshlutfall fyrir]])*Launatafla[[#This Row],[Starfshlutfall fyrir]]-(Launatafla[[#This Row],[Laun frá launagreiðanda]]+Launatafla[[#This Row],[Atvinnuleysisbætur fyrir skerðingu]]+Launatafla[[#This Row],[Skerðing v/ samtals]]),0))","v":0},{"$f":"+Launatafla[[#This Row],[Atvinnuleysisbætur fyrir skerðingu]]+Launatafla[[#This Row],[Skerðing v/ samtals]]+Launatafla[[#This Row],[Viðbót v/ tryggðra lágmarkslauna]]","v":220000.00000000006},{"$f":"+Launatafla[[#This Row],[Laun frá launagreiðanda]]+Launatafla[[#This Row],[Laun frá ríkissjóði]]","v":700000},{"$f":"IFERROR(Launatafla[[#This Row],[Heildarlaun]]/Launatafla[[#This Row],[Meðal heildarlaun sl. 3M fyrir skatta]],0)","v":0.58333333333333337}]
[null,null,null,null,"Starfsmaður 69",1200000,1,0.7,{"$f":"+Launatafla[[#This Row],[Starfshlutfall fyrir]]-Launatafla[[#This Row],[Skerðing starfshlutfalls]]","v":0.30000000000000004},{"$f":"+IF(OR(Launatafla[[#This Row],[Skerðing starfshlutfalls]]>Hámarkslækkun_starfshl,Launatafla[[#This Row],[Skerðing starfshlutfalls]]<Lágmarkslækkun_starfshl),0,Atvinnuleysisbætur*Launatafla[[#This Row],[Skerðing starfshlutfalls]])","v":319482.8},{"$f":"IFERROR(Launatafla[[#This Row],[Meðal heildarlaun sl. 3M fyrir skatta]]/Launatafla[[#This Row],[Starfshlutfall fyrir]],0)*(Launatafla[[#This Row],[Starfshlutfall fyrir]]-Launatafla[[#This Row],[Skerðing starfshlutfalls]])","v":360000.00000000006},{"$f":"+Launatafla[[#This Row],[Atvinnuleysisbætur fyrir skerðingu]]+Launatafla[[#This Row],[Laun frá launagreiðanda]]","v":679482.8},{"$f":"-MAX(Launatafla[[#This Row],[Laun með bótum án skerðingar]]-Launatafla[[#This Row],[Meðal heildarlaun sl. 3M fyrir skatta]]*Hámarkshlutfall_af_launum,0)","v":0},{"$f":"-MIN(MAX(Launatafla[[#This Row],[Laun með bótum án skerðingar]]-Hámarkslaun,0),Launatafla[[#This Row],[Atvinnuleysisbætur fyrir skerðingu]])","v":0},{"$f":"+MIN(Launatafla[[#This Row],[Skerðing v/ hámarkshlutfalls]:[Skerðing v/ hámarkslauna]])","v":0},{"$f":"+IF(Launatafla[[#This Row],[Atvinnuleysisbætur fyrir skerðingu]]=0,0,\nMAX(MIN(Lágmarkslaun_fullt_starf,Launatafla[[#This Row],[Meðal heildarlaun sl. 3M fyrir skatta]]/Launatafla[[#This Row],[Starfshlutfall fyrir]])*Launatafla[[#This Row],[Starfshlutfall fyrir]]-(Launatafla[[#This Row],[Laun frá launagreiðanda]]+Launatafla[[#This Row],[Atvinnuleysisbætur fyrir skerðingu]]+Launatafla[[#This Row],[Skerðing v/ samtals]]),0))","v":0},{"$f":"+Launatafla[[#This Row],[Atvinnuleysisbætur fyrir skerðingu]]+Launatafla[[#This Row],[Skerðing v/ samtals]]+Launatafla[[#This Row],[Viðbót v/ tryggðra lágmarkslauna]]","v":319482.8},{"$f":"+Launatafla[[#This Row],[Laun frá launagreiðanda]]+Launatafla[[#This Row],[Laun frá ríkissjóði]]","v":679482.8},{"$f":"IFERROR(Launatafla[[#This Row],[Heildarlaun]]/Launatafla[[#This Row],[Meðal heildarlaun sl. 3M fyrir skatta]],0)","v":0.56623566666666669}]
[null,null,null,null,"Starfsmaður 70",1200000,1,0.75,{"$f":"+Launatafla[[#This Row],[Starfshlutfall fyrir]]-Launatafla[[#This Row],[Skerðing starfshlutfalls]]","v":0.25},{"$f":"+IF(OR(Launatafla[[#This Row],[Skerðing starfshlutfalls]]>Hámarkslækkun_starfshl,Launatafla[[#This Row],[Skerðing starfshlutfalls]]<Lágmarkslækkun_starfshl),0,Atvinnuleysisbætur*Launatafla[[#This Row],[Skerðing starfshlutfalls]])","v":342303},{"$f":"IFERROR(Launatafla[[#This Row],[Meðal heildarlaun sl. 3M fyrir skatta]]/Launatafla[[#This Row],[Starfshlutfall fyrir]],0)*(Launatafla[[#This Row],[Starfshlutfall fyrir]]-Launatafla[[#This Row],[Skerðing starfshlutfalls]])","v":300000},{"$f":"+Launatafla[[#This Row],[Atvinnuleysisbætur fyrir skerðingu]]+Launatafla[[#This Row],[Laun frá launagreiðanda]]","v":642303},{"$f":"-MAX(Launatafla[[#This Row],[Laun með bótum án skerðingar]]-Launatafla[[#This Row],[Meðal heildarlaun sl. 3M fyrir skatta]]*Hámarkshlutfall_af_launum,0)","v":0},{"$f":"-MIN(MAX(Launatafla[[#This Row],[Laun með bótum án skerðingar]]-Hámarkslaun,0),Launatafla[[#This Row],[Atvinnuleysisbætur fyrir skerðingu]])","v":0},{"$f":"+MIN(Launatafla[[#This Row],[Skerðing v/ hámarkshlutfalls]:[Skerðing v/ hámarkslauna]])","v":0},{"$f":"+IF(Launatafla[[#This Row],[Atvinnuleysisbætur fyrir skerðingu]]=0,0,\nMAX(MIN(Lágmarkslaun_fullt_starf,Launatafla[[#This Row],[Meðal heildarlaun sl. 3M fyrir skatta]]/Launatafla[[#This Row],[Starfshlutfall fyrir]])*Launatafla[[#This Row],[Starfshlutfall fyrir]]-(Launatafla[[#This Row],[Laun frá launagreiðanda]]+Launatafla[[#This Row],[Atvinnuleysisbætur fyrir skerðingu]]+Launatafla[[#This Row],[Skerðing v/ samtals]]),0))","v":0},{"$f":"+Launatafla[[#This Row],[Atvinnuleysisbætur fyrir skerðingu]]+Launatafla[[#This Row],[Skerðing v/ samtals]]+Launatafla[[#This Row],[Viðbót v/ tryggðra lágmarkslauna]]","v":342303},{"$f":"+Launatafla[[#This Row],[Laun frá launagreiðanda]]+Launatafla[[#This Row],[Laun frá ríkissjóði]]","v":642303},{"$f":"IFERROR(Launatafla[[#This Row],[Heildarlaun]]/Launatafla[[#This Row],[Meðal heildarlaun sl. 3M fyrir skatta]],0)","v":0.53525250000000002}]
[null,null,null,null,"Starfsmaður 71",1300000,1,0.2,{"$f":"+Launatafla[[#This Row],[Starfshlutfall fyrir]]-Launatafla[[#This Row],[Skerðing starfshlutfalls]]","v":0.8},{"$f":"+IF(OR(Launatafla[[#This Row],[Skerðing starfshlutfalls]]>Hámarkslækkun_starfshl,Launatafla[[#This Row],[Skerðing starfshlutfalls]]<Lágmarkslækkun_starfshl),0,Atvinnuleysisbætur*Launatafla[[#This Row],[Skerðing starfshlutfalls]])","v":91280.8},{"$f":"IFERROR(Launatafla[[#This Row],[Meðal heildarlaun sl. 3M fyrir skatta]]/Launatafla[[#This Row],[Starfshlutfall fyrir]],0)*(Launatafla[[#This Row],[Starfshlutfall fyrir]]-Launatafla[[#This Row],[Skerðing starfshlutfalls]])","v":1040000},{"$f":"+Launatafla[[#This Row],[Atvinnuleysisbætur fyrir skerðingu]]+Launatafla[[#This Row],[Laun frá launagreiðanda]]","v":1131280.8},{"$f":"-MAX(Launatafla[[#This Row],[Laun með bótum án skerðingar]]-Launatafla[[#This Row],[Meðal heildarlaun sl. 3M fyrir skatta]]*Hámarkshlutfall_af_launum,0)","v":0},{"$f":"-MIN(MAX(Launatafla[[#This Row],[Laun með bótum án skerðingar]]-Hámarkslaun,0),Launatafla[[#This Row],[Atvinnuleysisbætur fyrir skerðingu]])","v":-91280.8},{"$f":"+MIN(Launatafla[[#This Row],[Skerðing v/ hámarkshlutfalls]:[Skerðing v/ hámarkslauna]])","v":-91280.8},{"$f":"+IF(Launatafla[[#This Row],[Atvinnuleysisbætur fyrir skerðingu]]=0,0,\nMAX(MIN(Lágmarkslaun_fullt_starf,Launatafla[[#This Row],[Meðal heildarlaun sl. 3M fyrir skatta]]/Launatafla[[#This Row],[Starfshlutfall fyrir]])*Launatafla[[#This Row],[Starfshlutfall fyrir]]-(Launatafla[[#This Row],[Laun frá launagreiðanda]]+Launatafla[[#This Row],[Atvinnuleysisbætur fyrir skerðingu]]+Launatafla[[#This Row],[Skerðing v/ samtals]]),0))","v":0},{"$f":"+Launatafla[[#This Row],[Atvinnuleysisbætur fyrir skerðingu]]+Launatafla[[#This Row],[Skerðing v/ samtals]]+Launatafla[[#This Row],[Viðbót v/ tryggðra lágmarkslauna]]","v":0},{"$f":"+Launatafla[[#This Row],[Laun frá launagreiðanda]]+Launatafla[[#This Row],[Laun frá ríkissjóði]]","v":1040000},{"$f":"IFERROR(Launatafla[[#This Row],[Heildarlaun]]/Launatafla[[#This Row],[Meðal heildarlaun sl. 3M fyrir skatta]],0)","v":0.8}]
[null,null,null,null,"Starfsmaður 72",1300000,1,0.3,{"$f":"+Launatafla[[#This Row],[Starfshlutfall fyrir]]-Launatafla[[#This Row],[Skerðing starfshlutfalls]]","v":0.7},{"$f":"+IF(OR(Launatafla[[#This Row],[Skerðing starfshlutfalls]]>Hámarkslækkun_starfshl,Launatafla[[#This Row],[Skerðing starfshlutfalls]]<Lágmarkslækkun_starfshl),0,Atvinnuleysisbætur*Launatafla[[#This Row],[Skerðing starfshlutfalls]])","v":136921.19999999998},{"$f":"IFERROR(Launatafla[[#This Row],[Meðal heildarlaun sl. 3M fyrir skatta]]/Launatafla[[#This Row],[Starfshlutfall fyrir]],0)*(Launatafla[[#This Row],[Starfshlutfall fyrir]]-Launatafla[[#This Row],[Skerðing starfshlutfalls]])","v":910000},{"$f":"+Launatafla[[#This Row],[Atvinnuleysisbætur fyrir skerðingu]]+Launatafla[[#This Row],[Laun frá launagreiðanda]]","v":1046921.2},{"$f":"-MAX(Launatafla[[#This Row],[Laun með bótum án skerðingar]]-Launatafla[[#This Row],[Meðal heildarlaun sl. 3M fyrir skatta]]*Hámarkshlutfall_af_launum,0)","v":0},{"$f":"-MIN(MAX(Launatafla[[#This Row],[Laun með bótum án skerðingar]]-Hámarkslaun,0),Launatafla[[#This Row],[Atvinnuleysisbætur fyrir skerðingu]])","v":-136921.19999999998},{"$f":"+MIN(Launatafla[[#This Row],[Skerðing v/ hámarkshlutfalls]:[Skerðing v/ hámarkslauna]])","v":-136921.19999999998},{"$f":"+IF(Launatafla[[#This Row],[Atvinnuleysisbætur fyrir skerðingu]]=0,0,\nMAX(MIN(Lágmarkslaun_fullt_starf,Launatafla[[#This Row],[Meðal heildarlaun sl. 3M fyrir skatta]]/Launatafla[[#This Row],[Starfshlutfall fyrir]])*Launatafla[[#This Row],[Starfshlutfall fyrir]]-(Launatafla[[#This Row],[Laun frá launagreiðanda]]+Launatafla[[#This Row],[Atvinnuleysisbætur fyrir skerðingu]]+Launatafla[[#This Row],[Skerðing v/ samtals]]),0))","v":0},{"$f":"+Launatafla[[#This Row],[Atvinnuleysisbætur fyrir skerðingu]]+Launatafla[[#This Row],[Skerðing v/ samtals]]+Launatafla[[#This Row],[Viðbót v/ tryggðra lágmarkslauna]]","v":0},{"$f":"+Launatafla[[#This Row],[Laun frá launagreiðanda]]+Launatafla[[#This Row],[Laun frá ríkissjóði]]","v":910000},{"$f":"IFERROR(Launatafla[[#This Row],[Heildarlaun]]/Launatafla[[#This Row],[Meðal heildarlaun sl. 3M fyrir skatta]],0)","v":0.7}]
[null,null,null,null,"Starfsmaður 73",1300000,1,0.4,{"$f":"+Launatafla[[#This Row],[Starfshlutfall fyrir]]-Launatafla[[#This Row],[Skerðing starfshlutfalls]]","v":0.6},{"$f":"+IF(OR(Launatafla[[#This Row],[Skerðing starfshlutfalls]]>Hámarkslækkun_starfshl,Launatafla[[#This Row],[Skerðing starfshlutfalls]]<Lágmarkslækkun_starfshl),0,Atvinnuleysisbætur*Launatafla[[#This Row],[Skerðing starfshlutfalls]])","v":182561.6},{"$f":"IFERROR(Launatafla[[#This Row],[Meðal heildarlaun sl. 3M fyrir skatta]]/Launatafla[[#This Row],[Starfshlutfall fyrir]],0)*(Launatafla[[#This Row],[Starfshlutfall fyrir]]-Launatafla[[#This Row],[Skerðing starfshlutfalls]])","v":780000},{"$f":"+Launatafla[[#This Row],[Atvinnuleysisbætur fyrir skerðingu]]+Launatafla[[#This Row],[Laun frá launagreiðanda]]","v":962561.6},{"$f":"-MAX(Launatafla[[#This Row],[Laun með bótum án skerðingar]]-Launatafla[[#This Row],[Meðal heildarlaun sl. 3M fyrir skatta]]*Hámarkshlutfall_af_launum,0)","v":0},{"$f":"-MIN(MAX(Launatafla[[#This Row],[Laun með bótum án skerðingar]]-Hámarkslaun,0),Launatafla[[#This Row],[Atvinnuleysisbætur fyrir skerðingu]])","v":-182561.6},{"$f":"+MIN(Launatafla[[#This Row],[Skerðing v/ hámarkshlutfalls]:[Skerðing v/ hámarkslauna]])","v":-182561.6},{"$f":"+IF(Launatafla[[#This Row],[Atvinnuleysisbætur fyrir skerðingu]]=0,0,\nMAX(MIN(Lágmarkslaun_fullt_starf,Launatafla[[#This Row],[Meðal heildarlaun sl. 3M fyrir skatta]]/Launatafla[[#This Row],[Starfshlutfall fyrir]])*Launatafla[[#This Row],[Starfshlutfall fyrir]]-(Launatafla[[#This Row],[Laun frá launagreiðanda]]+Launatafla[[#This Row],[Atvinnuleysisbætur fyrir skerðingu]]+Launatafla[[#This Row],[Skerðing v/ samtals]]),0))","v":0},{"$f":"+Launatafla[[#This Row],[Atvinnuleysisbætur fyrir skerðingu]]+Launatafla[[#This Row],[Skerðing v/ samtals]]+Launatafla[[#This Row],[Viðbót v/ tryggðra lágmarkslauna]]","v":0},{"$f":"+Launatafla[[#This Row],[Laun frá launagreiðanda]]+Launatafla[[#This Row],[Laun frá ríkissjóði]]","v":780000},{"$f":"IFERROR(Launatafla[[#This Row],[Heildarlaun]]/Launatafla[[#This Row],[Meðal heildarlaun sl. 3M fyrir skatta]],0)","v":0.6}]
[null,null,null,null,"Starfsmaður 74",1300000,1,0.5,{"$f":"+Launatafla[[#This Row],[Starfshlutfall fyrir]]-Launatafla[[#This Row],[Skerðing starfshlutfalls]]","v":0.5},{"$f":"+IF(OR(Launatafla[[#This Row],[Skerðing starfshlutfalls]]>Hámarkslækkun_starfshl,Launatafla[[#This Row],[Skerðing starfshlutfalls]]<Lágmarkslækkun_starfshl),0,Atvinnuleysisbætur*Launatafla[[#This Row],[Skerðing starfshlutfalls]])","v":228202},{"$f":"IFERROR(Launatafla[[#This Row],[Meðal heildarlaun sl. 3M fyrir skatta]]/Launatafla[[#This Row],[Starfshlutfall fyrir]],0)*(Launatafla[[#This Row],[Starfshlutfall fyrir]]-Launatafla[[#This Row],[Skerðing starfshlutfalls]])","v":650000},{"$f":"+Launatafla[[#This Row],[Atvinnuleysisbætur fyrir skerðingu]]+Launatafla[[#This Row],[Laun frá launagreiðanda]]","v":878202},{"$f":"-MAX(Launatafla[[#This Row],[Laun með bótum án skerðingar]]-Launatafla[[#This Row],[Meðal heildarlaun sl. 3M fyrir skatta]]*Hámarkshlutfall_af_launum,0)","v":0},{"$f":"-MIN(MAX(Launatafla[[#This Row],[Laun með bótum án skerðingar]]-Hámarkslaun,0),Launatafla[[#This Row],[Atvinnuleysisbætur fyrir skerðingu]])","v":-178202},{"$f":"+MIN(Launatafla[[#This Row],[Skerðing v/ hámarkshlutfalls]:[Skerðing v/ hámarkslauna]])","v":-178202},{"$f":"+IF(Launatafla[[#This Row],[Atvinnuleysisbætur fyrir skerðingu]]=0,0,\nMAX(MIN(Lágmarkslaun_fullt_starf,Launatafla[[#This Row],[Meðal heildarlaun sl. 3M fyrir skatta]]/Launatafla[[#This Row],[Starfshlutfall fyrir]])*Launatafla[[#This Row],[Starfshlutfall fyrir]]-(Launatafla[[#This Row],[Laun frá launagreiðanda]]+Launatafla[[#This Row],[Atvinnuleysisbætur fyrir skerðingu]]+Launatafla[[#This Row],[Skerðing v/ samtals]]),0))","v":0},{"$f":"+Launatafla[[#This Row],[Atvinnuleysisbætur fyrir skerðingu]]+Launatafla[[#This Row],[Skerðing v/ samtals]]+Launatafla[[#This Row],[Viðbót v/ tryggðra lágmarkslauna]]","v":50000},{"$f":"+Launatafla[[#This Row],[Laun frá launagreiðanda]]+Launatafla[[#This Row],[Laun frá ríkissjóði]]","v":700000},{"$f":"IFERROR(Launatafla[[#This Row],[Heildarlaun]]/Launatafla[[#This Row],[Meðal heildarlaun sl. 3M fyrir skatta]],0)","v":0.53846153846153844}]
[null,null,null,null,"Starfsmaður 75",1300000,1,0.6,{"$f":"+Launatafla[[#This Row],[Starfshlutfall fyrir]]-Launatafla[[#This Row],[Skerðing starfshlutfalls]]","v":0.4},{"$f":"+IF(OR(Launatafla[[#This Row],[Skerðing starfshlutfalls]]>Hámarkslækkun_starfshl,Launatafla[[#This Row],[Skerðing starfshlutfalls]]<Lágmarkslækkun_starfshl),0,Atvinnuleysisbætur*Launatafla[[#This Row],[Skerðing starfshlutfalls]])","v":273842.39999999997},{"$f":"IFERROR(Launatafla[[#This Row],[Meðal heildarlaun sl. 3M fyrir skatta]]/Launatafla[[#This Row],[Starfshlutfall fyrir]],0)*(Launatafla[[#This Row],[Starfshlutfall fyrir]]-Launatafla[[#This Row],[Skerðing starfshlutfalls]])","v":520000},{"$f":"+Launatafla[[#This Row],[Atvinnuleysisbætur fyrir skerðingu]]+Launatafla[[#This Row],[Laun frá launagreiðanda]]","v":793842.39999999991},{"$f":"-MAX(Launatafla[[#This Row],[Laun með bótum án skerðingar]]-Launatafla[[#This Row],[Meðal heildarlaun sl. 3M fyrir skatta]]*Hámarkshlutfall_af_launum,0)","v":0},{"$f":"-MIN(MAX(Launatafla[[#This Row],[Laun með bótum án skerðingar]]-Hámarkslaun,0),Launatafla[[#This Row],[Atvinnuleysisbætur fyrir skerðingu]])","v":-93842.399999999907},{"$f":"+MIN(Launatafla[[#This Row],[Skerðing v/ hámarkshlutfalls]:[Skerðing v/ hámarkslauna]])","v":-93842.399999999907},{"$f":"+IF(Launatafla[[#This Row],[Atvinnuleysisbætur fyrir skerðingu]]=0,0,\nMAX(MIN(Lágmarkslaun_fullt_starf,Launatafla[[#This Row],[Meðal heildarlaun sl. 3M fyrir skatta]]/Launatafla[[#This Row],[Starfshlutfall fyrir]])*Launatafla[[#This Row],[Starfshlutfall fyrir]]-(Launatafla[[#This Row],[Laun frá launagreiðanda]]+Launatafla[[#This Row],[Atvinnuleysisbætur fyrir skerðingu]]+Launatafla[[#This Row],[Skerðing v/ samtals]]),0))","v":0},{"$f":"+Launatafla[[#This Row],[Atvinnuleysisbætur fyrir skerðingu]]+Launatafla[[#This Row],[Skerðing v/ samtals]]+Launatafla[[#This Row],[Viðbót v/ tryggðra lágmarkslauna]]","v":180000.00000000006},{"$f":"+Launatafla[[#This Row],[Laun frá launagreiðanda]]+Launatafla[[#This Row],[Laun frá ríkissjóði]]","v":700000},{"$f":"IFERROR(Launatafla[[#This Row],[Heildarlaun]]/Launatafla[[#This Row],[Meðal heildarlaun sl. 3M fyrir skatta]],0)","v":0.53846153846153844}]
[null,null,null,null,"Starfsmaður 76",1300000,1,0.7,{"$f":"+Launatafla[[#This Row],[Starfshlutfall fyrir]]-Launatafla[[#This Row],[Skerðing starfshlutfalls]]","v":0.30000000000000004},{"$f":"+IF(OR(Launatafla[[#This Row],[Skerðing starfshlutfalls]]>Hámarkslækkun_starfshl,Launatafla[[#This Row],[Skerðing starfshlutfalls]]<Lágmarkslækkun_starfshl),0,Atvinnuleysisbætur*Launatafla[[#This Row],[Skerðing starfshlutfalls]])","v":319482.8},{"$f":"IFERROR(Launatafla[[#This Row],[Meðal heildarlaun sl. 3M fyrir skatta]]/Launatafla[[#This Row],[Starfshlutfall fyrir]],0)*(Launatafla[[#This Row],[Starfshlutfall fyrir]]-Launatafla[[#This Row],[Skerðing starfshlutfalls]])","v":390000.00000000006},{"$f":"+Launatafla[[#This Row],[Atvinnuleysisbætur fyrir skerðingu]]+Launatafla[[#This Row],[Laun frá launagreiðanda]]","v":709482.8},{"$f":"-MAX(Launatafla[[#This Row],[Laun með bótum án skerðingar]]-Launatafla[[#This Row],[Meðal heildarlaun sl. 3M fyrir skatta]]*Hámarkshlutfall_af_launum,0)","v":0},{"$f":"-MIN(MAX(Launatafla[[#This Row],[Laun með bótum án skerðingar]]-Hámarkslaun,0),Launatafla[[#This Row],[Atvinnuleysisbætur fyrir skerðingu]])","v":-9482.8000000000466},{"$f":"+MIN(Launatafla[[#This Row],[Skerðing v/ hámarkshlutfalls]:[Skerðing v/ hámarkslauna]])","v":-9482.8000000000466},{"$f":"+IF(Launatafla[[#This Row],[Atvinnuleysisbætur fyrir skerðingu]]=0,0,\nMAX(MIN(Lágmarkslaun_fullt_starf,Launatafla[[#This Row],[Meðal heildarlaun sl. 3M fyrir skatta]]/Launatafla[[#This Row],[Starfshlutfall fyrir]])*Launatafla[[#This Row],[Starfshlutfall fyrir]]-(Launatafla[[#This Row],[Laun frá launagreiðanda]]+Launatafla[[#This Row],[Atvinnuleysisbætur fyrir skerðingu]]+Launatafla[[#This Row],[Skerðing v/ samtals]]),0))","v":0},{"$f":"+Launatafla[[#This Row],[Atvinnuleysisbætur fyrir skerðingu]]+Launatafla[[#This Row],[Skerðing v/ samtals]]+Launatafla[[#This Row],[Viðbót v/ tryggðra lágmarkslauna]]","v":309999.99999999994},{"$f":"+Launatafla[[#This Row],[Laun frá launagreiðanda]]+Launatafla[[#This Row],[Laun frá ríkissjóði]]","v":700000},{"$f":"IFERROR(Launatafla[[#This Row],[Heildarlaun]]/Launatafla[[#This Row],[Meðal heildarlaun sl. 3M fyrir skatta]],0)","v":0.53846153846153844}]
[null,null,null,null,"Starfsmaður 77",1300000,1,0.75,{"$f":"+Launatafla[[#This Row],[Starfshlutfall fyrir]]-Launatafla[[#This Row],[Skerðing starfshlutfalls]]","v":0.25},{"$f":"+IF(OR(Launatafla[[#This Row],[Skerðing starfshlutfalls]]>Hámarkslækkun_starfshl,Launatafla[[#This Row],[Skerðing starfshlutfalls]]<Lágmarkslækkun_starfshl),0,Atvinnuleysisbætur*Launatafla[[#This Row],[Skerðing starfshlutfalls]])","v":342303},{"$f":"IFERROR(Launatafla[[#This Row],[Meðal heildarlaun sl. 3M fyrir skatta]]/Launatafla[[#This Row],[Starfshlutfall fyrir]],0)*(Launatafla[[#This Row],[Starfshlutfall fyrir]]-Launatafla[[#This Row],[Skerðing starfshlutfalls]])","v":325000},{"$f":"+Launatafla[[#This Row],[Atvinnuleysisbætur fyrir skerðingu]]+Launatafla[[#This Row],[Laun frá launagreiðanda]]","v":667303},{"$f":"-MAX(Launatafla[[#This Row],[Laun með bótum án skerðingar]]-Launatafla[[#This Row],[Meðal heildarlaun sl. 3M fyrir skatta]]*Hámarkshlutfall_af_launum,0)","v":0},{"$f":"-MIN(MAX(Launatafla[[#This Row],[Laun með bótum án skerðingar]]-Hámarkslaun,0),Launatafla[[#This Row],[Atvinnuleysisbætur fyrir skerðingu]])","v":0},{"$f":"+MIN(Launatafla[[#This Row],[Skerðing v/ hámarkshlutfalls]:[Skerðing v/ hámarkslauna]])","v":0},{"$f":"+IF(Launatafla[[#This Row],[Atvinnuleysisbætur fyrir skerðingu]]=0,0,\nMAX(MIN(Lágmarkslaun_fullt_starf,Launatafla[[#This Row],[Meðal heildarlaun sl. 3M fyrir skatta]]/Launatafla[[#This Row],[Starfshlutfall fyrir]])*Launatafla[[#This Row],[Starfshlutfall fyrir]]-(Launatafla[[#This Row],[Laun frá launagreiðanda]]+Launatafla[[#This Row],[Atvinnuleysisbætur fyrir skerðingu]]+Launatafla[[#This Row],[Skerðing v/ samtals]]),0))","v":0},{"$f":"+Launatafla[[#This Row],[Atvinnuleysisbætur fyrir skerðingu]]+Launatafla[[#This Row],[Skerðing v/ samtals]]+Launatafla[[#This Row],[Viðbót v/ tryggðra lágmarkslauna]]","v":342303},{"$f":"+Launatafla[[#This Row],[Laun frá launagreiðanda]]+Launatafla[[#This Row],[Laun frá ríkissjóði]]","v":667303},{"$f":"IFERROR(Launatafla[[#This Row],[Heildarlaun]]/Launatafla[[#This Row],[Meðal heildarlaun sl. 3M fyrir skatta]],0)","v":0.51331000000000004}]
[null,null,null,null,"Starfsmaður 78",1400000,1,0.2,{"$f":"+Launatafla[[#This Row],[Starfshlutfall fyrir]]-Launatafla[[#This Row],[Skerðing starfshlutfalls]]","v":0.8},{"$f":"+IF(OR(Launatafla[[#This Row],[Skerðing starfshlutfalls]]>Hámarkslækkun_starfshl,Launatafla[[#This Row],[Skerðing starfshlutfalls]]<Lágmarkslækkun_starfshl),0,Atvinnuleysisbætur*Launatafla[[#This Row],[Skerðing starfshlutfalls]])","v":91280.8},{"$f":"IFERROR(Launatafla[[#This Row],[Meðal heildarlaun sl. 3M fyrir skatta]]/Launatafla[[#This Row],[Starfshlutfall fyrir]],0)*(Launatafla[[#This Row],[Starfshlutfall fyrir]]-Launatafla[[#This Row],[Skerðing starfshlutfalls]])","v":1120000},{"$f":"+Launatafla[[#This Row],[Atvinnuleysisbætur fyrir skerðingu]]+Launatafla[[#This Row],[Laun frá launagreiðanda]]","v":1211280.8},{"$f":"-MAX(Launatafla[[#This Row],[Laun með bótum án skerðingar]]-Launatafla[[#This Row],[Meðal heildarlaun sl. 3M fyrir skatta]]*Hámarkshlutfall_af_launum,0)","v":0},{"$f":"-MIN(MAX(Launatafla[[#This Row],[Laun með bótum án skerðingar]]-Hámarkslaun,0),Launatafla[[#This Row],[Atvinnuleysisbætur fyrir skerðingu]])","v":-91280.8},{"$f":"+MIN(Launatafla[[#This Row],[Skerðing v/ hámarkshlutfalls]:[Skerðing v/ hámarkslauna]])","v":-91280.8},{"$f":"+IF(Launatafla[[#This Row],[Atvinnuleysisbætur fyrir skerðingu]]=0,0,\nMAX(MIN(Lágmarkslaun_fullt_starf,Launatafla[[#This Row],[Meðal heildarlaun sl. 3M fyrir skatta]]/Launatafla[[#This Row],[Starfshlutfall fyrir]])*Launatafla[[#This Row],[Starfshlutfall fyrir]]-(Launatafla[[#This Row],[Laun frá launagreiðanda]]+Launatafla[[#This Row],[Atvinnuleysisbætur fyrir skerðingu]]+Launatafla[[#This Row],[Skerðing v/ samtals]]),0))","v":0},{"$f":"+Launatafla[[#This Row],[Atvinnuleysisbætur fyrir skerðingu]]+Launatafla[[#This Row],[Skerðing v/ samtals]]+Launatafla[[#This Row],[Viðbót v/ tryggðra lágmarkslauna]]","v":0},{"$f":"+Launatafla[[#This Row],[Laun frá launagreiðanda]]+Launatafla[[#This Row],[Laun frá ríkissjóði]]","v":1120000},{"$f":"IFERROR(Launatafla[[#This Row],[Heildarlaun]]/Launatafla[[#This Row],[Meðal heildarlaun sl. 3M fyrir skatta]],0)","v":0.8}]
[null,null,null,null,"Starfsmaður 79",1400000,1,0.3,{"$f":"+Launatafla[[#This Row],[Starfshlutfall fyrir]]-Launatafla[[#This Row],[Skerðing starfshlutfalls]]","v":0.7},{"$f":"+IF(OR(Launatafla[[#This Row],[Skerðing starfshlutfalls]]>Hámarkslækkun_starfshl,Launatafla[[#This Row],[Skerðing starfshlutfalls]]<Lágmarkslækkun_starfshl),0,Atvinnuleysisbætur*Launatafla[[#This Row],[Skerðing starfshlutfalls]])","v":136921.19999999998},{"$f":"IFERROR(Launatafla[[#This Row],[Meðal heildarlaun sl. 3M fyrir skatta]]/Launatafla[[#This Row],[Starfshlutfall fyrir]],0)*(Launatafla[[#This Row],[Starfshlutfall fyrir]]-Launatafla[[#This Row],[Skerðing starfshlutfalls]])","v":979999.99999999988},{"$f":"+Launatafla[[#This Row],[Atvinnuleysisbætur fyrir skerðingu]]+Launatafla[[#This Row],[Laun frá launagreiðanda]]","v":1116921.2},{"$f":"-MAX(Launatafla[[#This Row],[Laun með bótum án skerðingar]]-Launatafla[[#This Row],[Meðal heildarlaun sl. 3M fyrir skatta]]*Hámarkshlutfall_af_launum,0)","v":0},{"$f":"-MIN(MAX(Launatafla[[#This Row],[Laun með bótum án skerðingar]]-Hámarkslaun,0),Launatafla[[#This Row],[Atvinnuleysisbætur fyrir skerðingu]])","v":-136921.19999999998},{"$f":"+MIN(Launatafla[[#This Row],[Skerðing v/ hámarkshlutfalls]:[Skerðing v/ hámarkslauna]])","v":-136921.19999999998},{"$f":"+IF(Launatafla[[#This Row],[Atvinnuleysisbætur fyrir skerðingu]]=0,0,\nMAX(MIN(Lágmarkslaun_fullt_starf,Launatafla[[#This Row],[Meðal heildarlaun sl. 3M fyrir skatta]]/Launatafla[[#This Row],[Starfshlutfall fyrir]])*Launatafla[[#This Row],[Starfshlutfall fyrir]]-(Launatafla[[#This Row],[Laun frá launagreiðanda]]+Launatafla[[#This Row],[Atvinnuleysisbætur fyrir skerðingu]]+Launatafla[[#This Row],[Skerðing v/ samtals]]),0))","v":0},{"$f":"+Launatafla[[#This Row],[Atvinnuleysisbætur fyrir skerðingu]]+Launatafla[[#This Row],[Skerðing v/ samtals]]+Launatafla[[#This Row],[Viðbót v/ tryggðra lágmarkslauna]]","v":0},{"$f":"+Launatafla[[#This Row],[Laun frá launagreiðanda]]+Launatafla[[#This Row],[Laun frá ríkissjóði]]","v":979999.99999999988},{"$f":"IFERROR(Launatafla[[#This Row],[Heildarlaun]]/Launatafla[[#This Row],[Meðal heildarlaun sl. 3M fyrir skatta]],0)","v":0.7}]
[null,null,null,null,"Starfsmaður 80",1400000,1,0.4,{"$f":"+Launatafla[[#This Row],[Starfshlutfall fyrir]]-Launatafla[[#This Row],[Skerðing starfshlutfalls]]","v":0.6},{"$f":"+IF(OR(Launatafla[[#This Row],[Skerðing starfshlutfalls]]>Hámarkslækkun_starfshl,Launatafla[[#This Row],[Skerðing starfshlutfalls]]<Lágmarkslækkun_starfshl),0,Atvinnuleysisbætur*Launatafla[[#This Row],[Skerðing starfshlutfalls]])","v":182561.6},{"$f":"IFERROR(Launatafla[[#This Row],[Meðal heildarlaun sl. 3M fyrir skatta]]/Launatafla[[#This Row],[Starfshlutfall fyrir]],0)*(Launatafla[[#This Row],[Starfshlutfall fyrir]]-Launatafla[[#This Row],[Skerðing starfshlutfalls]])","v":840000},{"$f":"+Launatafla[[#This Row],[Atvinnuleysisbætur fyrir skerðingu]]+Launatafla[[#This Row],[Laun frá launagreiðanda]]","v":1022561.6},{"$f":"-MAX(Launatafla[[#This Row],[Laun með bótum án skerðingar]]-Launatafla[[#This Row],[Meðal heildarlaun sl. 3M fyrir skatta]]*Hámarkshlutfall_af_launum,0)","v":0},{"$f":"-MIN(MAX(Launatafla[[#This Row],[Laun með bótum án skerðingar]]-Hámarkslaun,0),Launatafla[[#This Row],[Atvinnuleysisbætur fyrir skerðingu]])","v":-182561.6},{"$f":"+MIN(Launatafla[[#This Row],[Skerðing v/ hámarkshlutfalls]:[Skerðing v/ hámarkslauna]])","v":-182561.6},{"$f":"+IF(Launatafla[[#This Row],[Atvinnuleysisbætur fyrir skerðingu]]=0,0,\nMAX(MIN(Lágmarkslaun_fullt_starf,Launatafla[[#This Row],[Meðal heildarlaun sl. 3M fyrir skatta]]/Launatafla[[#This Row],[Starfshlutfall fyrir]])*Launatafla[[#This Row],[Starfshlutfall fyrir]]-(Launatafla[[#This Row],[Laun frá launagreiðanda]]+Launatafla[[#This Row],[Atvinnuleysisbætur fyrir skerðingu]]+Launatafla[[#This Row],[Skerðing v/ samtals]]),0))","v":0},{"$f":"+Launatafla[[#This Row],[Atvinnuleysisbætur fyrir skerðingu]]+Launatafla[[#This Row],[Skerðing v/ samtals]]+Launatafla[[#This Row],[Viðbót v/ tryggðra lágmarkslauna]]","v":0},{"$f":"+Launatafla[[#This Row],[Laun frá launagreiðanda]]+Launatafla[[#This Row],[Laun frá ríkissjóði]]","v":840000},{"$f":"IFERROR(Launatafla[[#This Row],[Heildarlaun]]/Launatafla[[#This Row],[Meðal heildarlaun sl. 3M fyrir skatta]],0)","v":0.6}]
[null,null,null,null,"Starfsmaður 81",1400000,1,0.5,{"$f":"+Launatafla[[#This Row],[Starfshlutfall fyrir]]-Launatafla[[#This Row],[Skerðing starfshlutfalls]]","v":0.5},{"$f":"+IF(OR(Launatafla[[#This Row],[Skerðing starfshlutfalls]]>Hámarkslækkun_starfshl,Launatafla[[#This Row],[Skerðing starfshlutfalls]]<Lágmarkslækkun_starfshl),0,Atvinnuleysisbætur*Launatafla[[#This Row],[Skerðing starfshlutfalls]])","v":228202},{"$f":"IFERROR(Launatafla[[#This Row],[Meðal heildarlaun sl. 3M fyrir skatta]]/Launatafla[[#This Row],[Starfshlutfall fyrir]],0)*(Launatafla[[#This Row],[Starfshlutfall fyrir]]-Launatafla[[#This Row],[Skerðing starfshlutfalls]])","v":700000},{"$f":"+Launatafla[[#This Row],[Atvinnuleysisbætur fyrir skerðingu]]+Launatafla[[#This Row],[Laun frá launagreiðanda]]","v":928202},{"$f":"-MAX(Launatafla[[#This Row],[Laun með bótum án skerðingar]]-Launatafla[[#This Row],[Meðal heildarlaun sl. 3M fyrir skatta]]*Hámarkshlutfall_af_launum,0)","v":0},{"$f":"-MIN(MAX(Launatafla[[#This Row],[Laun með bótum án skerðingar]]-Hámarkslaun,0),Launatafla[[#This Row],[Atvinnuleysisbætur fyrir skerðingu]])","v":-228202},{"$f":"+MIN(Launatafla[[#This Row],[Skerðing v/ hámarkshlutfalls]:[Skerðing v/ hámarkslauna]])","v":-228202},{"$f":"+IF(Launatafla[[#This Row],[Atvinnuleysisbætur fyrir skerðingu]]=0,0,\nMAX(MIN(Lágmarkslaun_fullt_starf,Launatafla[[#This Row],[Meðal heildarlaun sl. 3M fyrir skatta]]/Launatafla[[#This Row],[Starfshlutfall fyrir]])*Launatafla[[#This Row],[Starfshlutfall fyrir]]-(Launatafla[[#This Row],[Laun frá launagreiðanda]]+Launatafla[[#This Row],[Atvinnuleysisbætur fyrir skerðingu]]+Launatafla[[#This Row],[Skerðing v/ samtals]]),0))","v":0},{"$f":"+Launatafla[[#This Row],[Atvinnuleysisbætur fyrir skerðingu]]+Launatafla[[#This Row],[Skerðing v/ samtals]]+Launatafla[[#This Row],[Viðbót v/ tryggðra lágmarkslauna]]","v":0},{"$f":"+Launatafla[[#This Row],[Laun frá launagreiðanda]]+Launatafla[[#This Row],[Laun frá ríkissjóði]]","v":700000},{"$f":"IFERROR(Launatafla[[#This Row],[Heildarlaun]]/Launatafla[[#This Row],[Meðal heildarlaun sl. 3M fyrir skatta]],0)","v":0.5}]
[null,null,null,null,"Starfsmaður 82",1400000,1,0.6,{"$f":"+Launatafla[[#This Row],[Starfshlutfall fyrir]]-Launatafla[[#This Row],[Skerðing starfshlutfalls]]","v":0.4},{"$f":"+IF(OR(Launatafla[[#This Row],[Skerðing starfshlutfalls]]>Hámarkslækkun_starfshl,Launatafla[[#This Row],[Skerðing starfshlutfalls]]<Lágmarkslækkun_starfshl),0,Atvinnuleysisbætur*Launatafla[[#This Row],[Skerðing starfshlutfalls]])","v":273842.39999999997},{"$f":"IFERROR(Launatafla[[#This Row],[Meðal heildarlaun sl. 3M fyrir skatta]]/Launatafla[[#This Row],[Starfshlutfall fyrir]],0)*(Launatafla[[#This Row],[Starfshlutfall fyrir]]-Launatafla[[#This Row],[Skerðing starfshlutfalls]])","v":560000},{"$f":"+Launatafla[[#This Row],[Atvinnuleysisbætur fyrir skerðingu]]+Launatafla[[#This Row],[Laun frá launagreiðanda]]","v":833842.39999999991},{"$f":"-MAX(Launatafla[[#This Row],[Laun með bótum án skerðingar]]-Launatafla[[#This Row],[Meðal heildarlaun sl. 3M fyrir skatta]]*Hámarkshlutfall_af_launum,0)","v":0},{"$f":"-MIN(MAX(Launatafla[[#This Row],[Laun með bótum án skerðingar]]-Hámarkslaun,0),Launatafla[[#This Row],[Atvinnuleysisbætur fyrir skerðingu]])","v":-133842.39999999991},{"$f":"+MIN(Launatafla[[#This Row],[Skerðing v/ hámarkshlutfalls]:[Skerðing v/ hámarkslauna]])","v":-133842.39999999991},{"$f":"+IF(Launatafla[[#This Row],[Atvinnuleysisbætur fyrir skerðingu]]=0,0,\nMAX(MIN(Lágmarkslaun_fullt_starf,Launatafla[[#This Row],[Meðal heildarlaun sl. 3M fyrir skatta]]/Launatafla[[#This Row],[Starfshlutfall fyrir]])*Launatafla[[#This Row],[Starfshlutfall fyrir]]-(Launatafla[[#This Row],[Laun frá launagreiðanda]]+Launatafla[[#This Row],[Atvinnuleysisbætur fyrir skerðingu]]+Launatafla[[#This Row],[Skerðing v/ samtals]]),0))","v":0},{"$f":"+Launatafla[[#This Row],[Atvinnuleysisbætur fyrir skerðingu]]+Launatafla[[#This Row],[Skerðing v/ samtals]]+Launatafla[[#This Row],[Viðbót v/ tryggðra lágmarkslauna]]","v":140000.00000000006},{"$f":"+Launatafla[[#This Row],[Laun frá launagreiðanda]]+Launatafla[[#This Row],[Laun frá ríkissjóði]]","v":700000},{"$f":"IFERROR(Launatafla[[#This Row],[Heildarlaun]]/Launatafla[[#This Row],[Meðal heildarlaun sl. 3M fyrir skatta]],0)","v":0.5}]
[null,null,null,null,"Starfsmaður 83",1400000,1,0.7,{"$f":"+Launatafla[[#This Row],[Starfshlutfall fyrir]]-Launatafla[[#This Row],[Skerðing starfshlutfalls]]","v":0.30000000000000004},{"$f":"+IF(OR(Launatafla[[#This Row],[Skerðing starfshlutfalls]]>Hámarkslækkun_starfshl,Launatafla[[#This Row],[Skerðing starfshlutfalls]]<Lágmarkslækkun_starfshl),0,Atvinnuleysisbætur*Launatafla[[#This Row],[Skerðing starfshlutfalls]])","v":319482.8},{"$f":"IFERROR(Launatafla[[#This Row],[Meðal heildarlaun sl. 3M fyrir skatta]]/Launatafla[[#This Row],[Starfshlutfall fyrir]],0)*(Launatafla[[#This Row],[Starfshlutfall fyrir]]-Launatafla[[#This Row],[Skerðing starfshlutfalls]])","v":420000.00000000006},{"$f":"+Launatafla[[#This Row],[Atvinnuleysisbætur fyrir skerðingu]]+Launatafla[[#This Row],[Laun frá launagreiðanda]]","v":739482.8},{"$f":"-MAX(Launatafla[[#This Row],[Laun með bótum án skerðingar]]-Launatafla[[#This Row],[Meðal heildarlaun sl. 3M fyrir skatta]]*Hámarkshlutfall_af_launum,0)","v":0},{"$f":"-MIN(MAX(Launatafla[[#This Row],[Laun með bótum án skerðingar]]-Hámarkslaun,0),Launatafla[[#This Row],[Atvinnuleysisbætur fyrir skerðingu]])","v":-39482.800000000047},{"$f":"+MIN(Launatafla[[#This Row],[Skerðing v/ hámarkshlutfalls]:[Skerðing v/ hámarkslauna]])","v":-39482.800000000047},{"$f":"+IF(Launatafla[[#This Row],[Atvinnuleysisbætur fyrir skerðingu]]=0,0,\nMAX(MIN(Lágmarkslaun_fullt_starf,Launatafla[[#This Row],[Meðal heildarlaun sl. 3M fyrir skatta]]/Launatafla[[#This Row],[Starfshlutfall fyrir]])*Launatafla[[#This Row],[Starfshlutfall fyrir]]-(Launatafla[[#This Row],[Laun frá launagreiðanda]]+Launatafla[[#This Row],[Atvinnuleysisbætur fyrir skerðingu]]+Launatafla[[#This Row],[Skerðing v/ samtals]]),0))","v":0},{"$f":"+Launatafla[[#This Row],[Atvinnuleysisbætur fyrir skerðingu]]+Launatafla[[#This Row],[Skerðing v/ samtals]]+Launatafla[[#This Row],[Viðbót v/ tryggðra lágmarkslauna]]","v":279999.99999999994},{"$f":"+Launatafla[[#This Row],[Laun frá launagreiðanda]]+Launatafla[[#This Row],[Laun frá ríkissjóði]]","v":700000},{"$f":"IFERROR(Launatafla[[#This Row],[Heildarlaun]]/Launatafla[[#This Row],[Meðal heildarlaun sl. 3M fyrir skatta]],0)","v":0.5}]
[null,null,null,null,"Starfsmaður 84",1400000,1,0.75,{"$f":"+Launatafla[[#This Row],[Starfshlutfall fyrir]]-Launatafla[[#This Row],[Skerðing starfshlutfalls]]","v":0.25},{"$f":"+IF(OR(Launatafla[[#This Row],[Skerðing starfshlutfalls]]>Hámarkslækkun_starfshl,Launatafla[[#This Row],[Skerðing starfshlutfalls]]<Lágmarkslækkun_starfshl),0,Atvinnuleysisbætur*Launatafla[[#This Row],[Skerðing starfshlutfalls]])","v":342303},{"$f":"IFERROR(Launatafla[[#This Row],[Meðal heildarlaun sl. 3M fyrir skatta]]/Launatafla[[#This Row],[Starfshlutfall fyrir]],0)*(Launatafla[[#This Row],[Starfshlutfall fyrir]]-Launatafla[[#This Row],[Skerðing starfshlutfalls]])","v":350000},{"$f":"+Launatafla[[#This Row],[Atvinnuleysisbætur fyrir skerðingu]]+Launatafla[[#This Row],[Laun frá launagreiðanda]]","v":692303},{"$f":"-MAX(Launatafla[[#This Row],[Laun með bótum án skerðingar]]-Launatafla[[#This Row],[Meðal heildarlaun sl. 3M fyrir skatta]]*Hámarkshlutfall_af_launum,0)","v":0},{"$f":"-MIN(MAX(Launatafla[[#This Row],[Laun með bótum án skerðingar]]-Hámarkslaun,0),Launatafla[[#This Row],[Atvinnuleysisbætur fyrir skerðingu]])","v":0},{"$f":"+MIN(Launatafla[[#This Row],[Skerðing v/ hámarkshlutfalls]:[Skerðing v/ hámarkslauna]])","v":0},{"$f":"+IF(Launatafla[[#This Row],[Atvinnuleysisbætur fyrir skerðingu]]=0,0,\nMAX(MIN(Lágmarkslaun_fullt_starf,Launatafla[[#This Row],[Meðal heildarlaun sl. 3M fyrir skatta]]/Launatafla[[#This Row],[Starfshlutfall fyrir]])*Launatafla[[#This Row],[Starfshlutfall fyrir]]-(Launatafla[[#This Row],[Laun frá launagreiðanda]]+Launatafla[[#This Row],[Atvinnuleysisbætur fyrir skerðingu]]+Launatafla[[#This Row],[Skerðing v/ samtals]]),0))","v":0},{"$f":"+Launatafla[[#This Row],[Atvinnuleysisbætur fyrir skerðingu]]+Launatafla[[#This Row],[Skerðing v/ samtals]]+Launatafla[[#This Row],[Viðbót v/ tryggðra lágmarkslauna]]","v":342303},{"$f":"+Launatafla[[#This Row],[Laun frá launagreiðanda]]+Launatafla[[#This Row],[Laun frá ríkissjóði]]","v":692303},{"$f":"IFERROR(Launatafla[[#This Row],[Heildarlaun]]/Launatafla[[#This Row],[Meðal heildarlaun sl. 3M fyrir skatta]],0)","v":0.49450214285714283}]
[null,null,null,null,null,null,null,null,{"$f":"+Launatafla[[#This Row],[Starfshlutfall fyrir]]-Launatafla[[#This Row],[Skerðing starfshlutfalls]]","v":0},{"$f":"+IF(OR(Launatafla[[#This Row],[Skerðing starfshlutfalls]]>Hámarkslækkun_starfshl,Launatafla[[#This Row],[Skerðing starfshlutfalls]]<Lágmarkslækkun_starfshl),0,Atvinnuleysisbætur*Launatafla[[#This Row],[Skerðing starfshlutfalls]])","v":0},{"$f":"IFERROR(Launatafla[[#This Row],[Meðal heildarlaun sl. 3M fyrir skatta]]/Launatafla[[#This Row],[Starfshlutfall fyrir]],0)*(Launatafla[[#This Row],[Starfshlutfall fyrir]]-Launatafla[[#This Row],[Skerðing starfshlutfalls]])","v":0},{"$f":"+Launatafla[[#This Row],[Atvinnuleysisbætur fyrir skerðingu]]+Launatafla[[#This Row],[Laun frá launagreiðanda]]","v":0},{"$f":"-MAX(Launatafla[[#This Row],[Laun með bótum án skerðingar]]-Launatafla[[#This Row],[Meðal heildarlaun sl. 3M fyrir skatta]]*Hámarkshlutfall_af_launum,0)","v":0},{"$f":"-MIN(MAX(Launatafla[[#This Row],[Laun með bótum án skerðingar]]-Hámarkslaun,0),Launatafla[[#This Row],[Atvinnuleysisbætur fyrir skerðingu]])","v":0},{"$f":"+MIN(Launatafla[[#This Row],[Skerðing v/ hámarkshlutfalls]:[Skerðing v/ hámarkslauna]])","v":0},{"$f":"+IF(Launatafla[[#This Row],[Atvinnuleysisbætur fyrir skerðingu]]=0,0,\nMAX(MIN(Lágmarkslaun_fullt_starf,Launatafla[[#This Row],[Meðal heildarlaun sl. 3M fyrir skatta]]/Launatafla[[#This Row],[Starfshlutfall fyrir]])*Launatafla[[#This Row],[Starfshlutfall fyrir]]-(Launatafla[[#This Row],[Laun frá launagreiðanda]]+Launatafla[[#This Row],[Atvinnuleysisbætur fyrir skerðingu]]+Launatafla[[#This Row],[Skerðing v/ samtals]]),0))","v":0},{"$f":"+Launatafla[[#This Row],[Atvinnuleysisbætur fyrir skerðingu]]+Launatafla[[#This Row],[Skerðing v/ samtals]]+Launatafla[[#This Row],[Viðbót v/ tryggðra lágmarkslauna]]","v":0},{"$f":"+Launatafla[[#This Row],[Laun frá launagreiðanda]]+Launatafla[[#This Row],[Laun frá ríkissjóði]]","v":0},{"$f":"IFERROR(Launatafla[[#This Row],[Heildarlaun]]/Launatafla[[#This Row],[Meðal heildarlaun sl. 3M fyrir skatta]],0)","v":0}]
[null,null,null,null,null,null,null,null,{"$f":"+Launatafla[[#This Row],[Starfshlutfall fyrir]]-Launatafla[[#This Row],[Skerðing starfshlutfalls]]","v":0},{"$f":"+IF(OR(Launatafla[[#This Row],[Skerðing starfshlutfalls]]>Hámarkslækkun_starfshl,Launatafla[[#This Row],[Skerðing starfshlutfalls]]<Lágmarkslækkun_starfshl),0,Atvinnuleysisbætur*Launatafla[[#This Row],[Skerðing starfshlutfalls]])","v":0},{"$f":"IFERROR(Launatafla[[#This Row],[Meðal heildarlaun sl. 3M fyrir skatta]]/Launatafla[[#This Row],[Starfshlutfall fyrir]],0)*(Launatafla[[#This Row],[Starfshlutfall fyrir]]-Launatafla[[#This Row],[Skerðing starfshlutfalls]])","v":0},{"$f":"+Launatafla[[#This Row],[Atvinnuleysisbætur fyrir skerðingu]]+Launatafla[[#This Row],[Laun frá launagreiðanda]]","v":0},{"$f":"-MAX(Launatafla[[#This Row],[Laun með bótum án skerðingar]]-Launatafla[[#This Row],[Meðal heildarlaun sl. 3M fyrir skatta]]*Hámarkshlutfall_af_launum,0)","v":0},{"$f":"-MIN(MAX(Launatafla[[#This Row],[Laun með bótum án skerðingar]]-Hámarkslaun,0),Launatafla[[#This Row],[Atvinnuleysisbætur fyrir skerðingu]])","v":0},{"$f":"+MIN(Launatafla[[#This Row],[Skerðing v/ hámarkshlutfalls]:[Skerðing v/ hámarkslauna]])","v":0},{"$f":"+IF(Launatafla[[#This Row],[Atvinnuleysisbætur fyrir skerðingu]]=0,0,\nMAX(MIN(Lágmarkslaun_fullt_starf,Launatafla[[#This Row],[Meðal heildarlaun sl. 3M fyrir skatta]]/Launatafla[[#This Row],[Starfshlutfall fyrir]])*Launatafla[[#This Row],[Starfshlutfall fyrir]]-(Launatafla[[#This Row],[Laun frá launagreiðanda]]+Launatafla[[#This Row],[Atvinnuleysisbætur fyrir skerðingu]]+Launatafla[[#This Row],[Skerðing v/ samtals]]),0))","v":0},{"$f":"+Launatafla[[#This Row],[Atvinnuleysisbætur fyrir skerðingu]]+Launatafla[[#This Row],[Skerðing v/ samtals]]+Launatafla[[#This Row],[Viðbót v/ tryggðra lágmarkslauna]]","v":0},{"$f":"+Launatafla[[#This Row],[Laun frá launagreiðanda]]+Launatafla[[#This Row],[Laun frá ríkissjóði]]","v":0},{"$f":"IFERROR(Launatafla[[#This Row],[Heildarlaun]]/Launatafla[[#This Row],[Meðal heildarlaun sl. 3M fyrir skatta]],0)","v":0}]
[null,null,null,null,null,null,null,null,{"$f":"+Launatafla[[#This Row],[Starfshlutfall fyrir]]-Launatafla[[#This Row],[Skerðing starfshlutfalls]]","v":0},{"$f":"+IF(OR(Launatafla[[#This Row],[Skerðing starfshlutfalls]]>Hámarkslækkun_starfshl,Launatafla[[#This Row],[Skerðing starfshlutfalls]]<Lágmarkslækkun_starfshl),0,Atvinnuleysisbætur*Launatafla[[#This Row],[Skerðing starfshlutfalls]])","v":0},{"$f":"IFERROR(Launatafla[[#This Row],[Meðal heildarlaun sl. 3M fyrir skatta]]/Launatafla[[#This Row],[Starfshlutfall fyrir]],0)*(Launatafla[[#This Row],[Starfshlutfall fyrir]]-Launatafla[[#This Row],[Skerðing starfshlutfalls]])","v":0},{"$f":"+Launatafla[[#This Row],[Atvinnuleysisbætur fyrir skerðingu]]+Launatafla[[#This Row],[Laun frá launagreiðanda]]","v":0},{"$f":"-MAX(Launatafla[[#This Row],[Laun með bótum án skerðingar]]-Launatafla[[#This Row],[Meðal heildarlaun sl. 3M fyrir skatta]]*Hámarkshlutfall_af_launum,0)","v":0},{"$f":"-MIN(MAX(Launatafla[[#This Row],[Laun með bótum án skerðingar]]-Hámarkslaun,0),Launatafla[[#This Row],[Atvinnuleysisbætur fyrir skerðingu]])","v":0},{"$f":"+MIN(Launatafla[[#This Row],[Skerðing v/ hámarkshlutfalls]:[Skerðing v/ hámarkslauna]])","v":0},{"$f":"+IF(Launatafla[[#This Row],[Atvinnuleysisbætur fyrir skerðingu]]=0,0,\nMAX(MIN(Lágmarkslaun_fullt_starf,Launatafla[[#This Row],[Meðal heildarlaun sl. 3M fyrir skatta]]/Launatafla[[#This Row],[Starfshlutfall fyrir]])*Launatafla[[#This Row],[Starfshlutfall fyrir]]-(Launatafla[[#This Row],[Laun frá launagreiðanda]]+Launatafla[[#This Row],[Atvinnuleysisbætur fyrir skerðingu]]+Launatafla[[#This Row],[Skerðing v/ samtals]]),0))","v":0},{"$f":"+Launatafla[[#This Row],[Atvinnuleysisbætur fyrir skerðingu]]+Launatafla[[#This Row],[Skerðing v/ samtals]]+Launatafla[[#This Row],[Viðbót v/ tryggðra lágmarkslauna]]","v":0},{"$f":"+Launatafla[[#This Row],[Laun frá launagreiðanda]]+Launatafla[[#This Row],[Laun frá ríkissjóði]]","v":0},{"$f":"IFERROR(Launatafla[[#This Row],[Heildarlaun]]/Launatafla[[#This Row],[Meðal heildarlaun sl. 3M fyrir skatta]],0)","v":0}]
[null,null,null,null,null,null,null,null,{"$f":"+Launatafla[[#This Row],[Starfshlutfall fyrir]]-Launatafla[[#This Row],[Skerðing starfshlutfalls]]","v":0},{"$f":"+IF(OR(Launatafla[[#This Row],[Skerðing starfshlutfalls]]>Hámarkslækkun_starfshl,Launatafla[[#This Row],[Skerðing starfshlutfalls]]<Lágmarkslækkun_starfshl),0,Atvinnuleysisbætur*Launatafla[[#This Row],[Skerðing starfshlutfalls]])","v":0},{"$f":"IFERROR(Launatafla[[#This Row],[Meðal heildarlaun sl. 3M fyrir skatta]]/Launatafla[[#This Row],[Starfshlutfall fyrir]],0)*(Launatafla[[#This Row],[Starfshlutfall fyrir]]-Launatafla[[#This Row],[Skerðing starfshlutfalls]])","v":0},{"$f":"+Launatafla[[#This Row],[Atvinnuleysisbætur fyrir skerðingu]]+Launatafla[[#This Row],[Laun frá launagreiðanda]]","v":0},{"$f":"-MAX(Launatafla[[#This Row],[Laun með bótum án skerðingar]]-Launatafla[[#This Row],[Meðal heildarlaun sl. 3M fyrir skatta]]*Hámarkshlutfall_af_launum,0)","v":0},{"$f":"-MIN(MAX(Launatafla[[#This Row],[Laun með bótum án skerðingar]]-Hámarkslaun,0),Launatafla[[#This Row],[Atvinnuleysisbætur fyrir skerðingu]])","v":0},{"$f":"+MIN(Launatafla[[#This Row],[Skerðing v/ hámarkshlutfalls]:[Skerðing v/ hámarkslauna]])","v":0},{"$f":"+IF(Launatafla[[#This Row],[Atvinnuleysisbætur fyrir skerðingu]]=0,0,\nMAX(MIN(Lágmarkslaun_fullt_starf,Launatafla[[#This Row],[Meðal heildarlaun sl. 3M fyrir skatta]]/Launatafla[[#This Row],[Starfshlutfall fyrir]])*Launatafla[[#This Row],[Starfshlutfall fyrir]]-(Launatafla[[#This Row],[Laun frá launagreiðanda]]+Launatafla[[#This Row],[Atvinnuleysisbætur fyrir skerðingu]]+Launatafla[[#This Row],[Skerðing v/ samtals]]),0))","v":0},{"$f":"+Launatafla[[#This Row],[Atvinnuleysisbætur fyrir skerðingu]]+Launatafla[[#This Row],[Skerðing v/ samtals]]+Launatafla[[#This Row],[Viðbót v/ tryggðra lágmarkslauna]]","v":0},{"$f":"+Launatafla[[#This Row],[Laun frá launagreiðanda]]+Launatafla[[#This Row],[Laun frá ríkissjóði]]","v":0},{"$f":"IFERROR(Launatafla[[#This Row],[Heildarlaun]]/Launatafla[[#This Row],[Meðal heildarlaun sl. 3M fyrir skatta]],0)","v":0}]
[null,null,null,null,null,null,null,null,{"$f":"+Launatafla[[#This Row],[Starfshlutfall fyrir]]-Launatafla[[#This Row],[Skerðing starfshlutfalls]]","v":0},{"$f":"+IF(OR(Launatafla[[#This Row],[Skerðing starfshlutfalls]]>Hámarkslækkun_starfshl,Launatafla[[#This Row],[Skerðing starfshlutfalls]]<Lágmarkslækkun_starfshl),0,Atvinnuleysisbætur*Launatafla[[#This Row],[Skerðing starfshlutfalls]])","v":0},{"$f":"IFERROR(Launatafla[[#This Row],[Meðal heildarlaun sl. 3M fyrir skatta]]/Launatafla[[#This Row],[Starfshlutfall fyrir]],0)*(Launatafla[[#This Row],[Starfshlutfall fyrir]]-Launatafla[[#This Row],[Skerðing starfshlutfalls]])","v":0},{"$f":"+Launatafla[[#This Row],[Atvinnuleysisbætur fyrir skerðingu]]+Launatafla[[#This Row],[Laun frá launagreiðanda]]","v":0},{"$f":"-MAX(Launatafla[[#This Row],[Laun með bótum án skerðingar]]-Launatafla[[#This Row],[Meðal heildarlaun sl. 3M fyrir skatta]]*Hámarkshlutfall_af_launum,0)","v":0},{"$f":"-MIN(MAX(Launatafla[[#This Row],[Laun með bótum án skerðingar]]-Hámarkslaun,0),Launatafla[[#This Row],[Atvinnuleysisbætur fyrir skerðingu]])","v":0},{"$f":"+MIN(Launatafla[[#This Row],[Skerðing v/ hámarkshlutfalls]:[Skerðing v/ hámarkslauna]])","v":0},{"$f":"+IF(Launatafla[[#This Row],[Atvinnuleysisbætur fyrir skerðingu]]=0,0,\nMAX(MIN(Lágmarkslaun_fullt_starf,Launatafla[[#This Row],[Meðal heildarlaun sl. 3M fyrir skatta]]/Launatafla[[#This Row],[Starfshlutfall fyrir]])*Launatafla[[#This Row],[Starfshlutfall fyrir]]-(Launatafla[[#This Row],[Laun frá launagreiðanda]]+Launatafla[[#This Row],[Atvinnuleysisbætur fyrir skerðingu]]+Launatafla[[#This Row],[Skerðing v/ samtals]]),0))","v":0},{"$f":"+Launatafla[[#This Row],[Atvinnuleysisbætur fyrir skerðingu]]+Launatafla[[#This Row],[Skerðing v/ samtals]]+Launatafla[[#This Row],[Viðbót v/ tryggðra lágmarkslauna]]","v":0},{"$f":"+Launatafla[[#This Row],[Laun frá launagreiðanda]]+Launatafla[[#This Row],[Laun frá ríkissjóði]]","v":0},{"$f":"IFERROR(Launatafla[[#This Row],[Heildarlaun]]/Launatafla[[#This Row],[Meðal heildarlaun sl. 3M fyrir skatta]],0)","v":0}]
[null,null,null,null,null,null,null,null,{"$f":"+Launatafla[[#This Row],[Starfshlutfall fyrir]]-Launatafla[[#This Row],[Skerðing starfshlutfalls]]","v":0},{"$f":"+IF(OR(Launatafla[[#This Row],[Skerðing starfshlutfalls]]>Hámarkslækkun_starfshl,Launatafla[[#This Row],[Skerðing starfshlutfalls]]<Lágmarkslækkun_starfshl),0,Atvinnuleysisbætur*Launatafla[[#This Row],[Skerðing starfshlutfalls]])","v":0},{"$f":"IFERROR(Launatafla[[#This Row],[Meðal heildarlaun sl. 3M fyrir skatta]]/Launatafla[[#This Row],[Starfshlutfall fyrir]],0)*(Launatafla[[#This Row],[Starfshlutfall fyrir]]-Launatafla[[#This Row],[Skerðing starfshlutfalls]])","v":0},{"$f":"+Launatafla[[#This Row],[Atvinnuleysisbætur fyrir skerðingu]]+Launatafla[[#This Row],[Laun frá launagreiðanda]]","v":0},{"$f":"-MAX(Launatafla[[#This Row],[Laun með bótum án skerðingar]]-Launatafla[[#This Row],[Meðal heildarlaun sl. 3M fyrir skatta]]*Hámarkshlutfall_af_launum,0)","v":0},{"$f":"-MIN(MAX(Launatafla[[#This Row],[Laun með bótum án skerðingar]]-Hámarkslaun,0),Launatafla[[#This Row],[Atvinnuleysisbætur fyrir skerðingu]])","v":0},{"$f":"+MIN(Launatafla[[#This Row],[Skerðing v/ hámarkshlutfalls]:[Skerðing v/ hámarkslauna]])","v":0},{"$f":"+IF(Launatafla[[#This Row],[Atvinnuleysisbætur fyrir skerðingu]]=0,0,\nMAX(MIN(Lágmarkslaun_fullt_starf,Launatafla[[#This Row],[Meðal heildarlaun sl. 3M fyrir skatta]]/Launatafla[[#This Row],[Starfshlutfall fyrir]])*Launatafla[[#This Row],[Starfshlutfall fyrir]]-(Launatafla[[#This Row],[Laun frá launagreiðanda]]+Launatafla[[#This Row],[Atvinnuleysisbætur fyrir skerðingu]]+Launatafla[[#This Row],[Skerðing v/ samtals]]),0))","v":0},{"$f":"+Launatafla[[#This Row],[Atvinnuleysisbætur fyrir skerðingu]]+Launatafla[[#This Row],[Skerðing v/ samtals]]+Launatafla[[#This Row],[Viðbót v/ tryggðra lágmarkslauna]]","v":0},{"$f":"+Launatafla[[#This Row],[Laun frá launagreiðanda]]+Launatafla[[#This Row],[Laun frá ríkissjóði]]","v":0},{"$f":"IFERROR(Launatafla[[#This Row],[Heildarlaun]]/Launatafla[[#This Row],[Meðal heildarlaun sl. 3M fyrir skatta]],0)","v":0}]
[null,null,null,null,null,null,null,null,{"$f":"+Launatafla[[#This Row],[Starfshlutfall fyrir]]-Launatafla[[#This Row],[Skerðing starfshlutfalls]]","v":0},{"$f":"+IF(OR(Launatafla[[#This Row],[Skerðing starfshlutfalls]]>Hámarkslækkun_starfshl,Launatafla[[#This Row],[Skerðing starfshlutfalls]]<Lágmarkslækkun_starfshl),0,Atvinnuleysisbætur*Launatafla[[#This Row],[Skerðing starfshlutfalls]])","v":0},{"$f":"IFERROR(Launatafla[[#This Row],[Meðal heildarlaun sl. 3M fyrir skatta]]/Launatafla[[#This Row],[Starfshlutfall fyrir]],0)*(Launatafla[[#This Row],[Starfshlutfall fyrir]]-Launatafla[[#This Row],[Skerðing starfshlutfalls]])","v":0},{"$f":"+Launatafla[[#This Row],[Atvinnuleysisbætur fyrir skerðingu]]+Launatafla[[#This Row],[Laun frá launagreiðanda]]","v":0},{"$f":"-MAX(Launatafla[[#This Row],[Laun með bótum án skerðingar]]-Launatafla[[#This Row],[Meðal heildarlaun sl. 3M fyrir skatta]]*Hámarkshlutfall_af_launum,0)","v":0},{"$f":"-MIN(MAX(Launatafla[[#This Row],[Laun með bótum án skerðingar]]-Hámarkslaun,0),Launatafla[[#This Row],[Atvinnuleysisbætur fyrir skerðingu]])","v":0},{"$f":"+MIN(Launatafla[[#This Row],[Skerðing v/ hámarkshlutfalls]:[Skerðing v/ hámarkslauna]])","v":0},{"$f":"+IF(Launatafla[[#This Row],[Atvinnuleysisbætur fyrir skerðingu]]=0,0,\nMAX(MIN(Lágmarkslaun_fullt_starf,Launatafla[[#This Row],[Meðal heildarlaun sl. 3M fyrir skatta]]/Launatafla[[#This Row],[Starfshlutfall fyrir]])*Launatafla[[#This Row],[Starfshlutfall fyrir]]-(Launatafla[[#This Row],[Laun frá launagreiðanda]]+Launatafla[[#This Row],[Atvinnuleysisbætur fyrir skerðingu]]+Launatafla[[#This Row],[Skerðing v/ samtals]]),0))","v":0},{"$f":"+Launatafla[[#This Row],[Atvinnuleysisbætur fyrir skerðingu]]+Launatafla[[#This Row],[Skerðing v/ samtals]]+Launatafla[[#This Row],[Viðbót v/ tryggðra lágmarkslauna]]","v":0},{"$f":"+Launatafla[[#This Row],[Laun frá launagreiðanda]]+Launatafla[[#This Row],[Laun frá ríkissjóði]]","v":0},{"$f":"IFERROR(Launatafla[[#This Row],[Heildarlaun]]/Launatafla[[#This Row],[Meðal heildarlaun sl. 3M fyrir skatta]],0)","v":0}]
[null,null,null,null,null,null,null,null,{"$f":"+Launatafla[[#This Row],[Starfshlutfall fyrir]]-Launatafla[[#This Row],[Skerðing starfshlutfalls]]","v":0},{"$f":"+IF(OR(Launatafla[[#This Row],[Skerðing starfshlutfalls]]>Hámarkslækkun_starfshl,Launatafla[[#This Row],[Skerðing starfshlutfalls]]<Lágmarkslækkun_starfshl),0,Atvinnuleysisbætur*Launatafla[[#This Row],[Skerðing starfshlutfalls]])","v":0},{"$f":"IFERROR(Launatafla[[#This Row],[Meðal heildarlaun sl. 3M fyrir skatta]]/Launatafla[[#This Row],[Starfshlutfall fyrir]],0)*(Launatafla[[#This Row],[Starfshlutfall fyrir]]-Launatafla[[#This Row],[Skerðing starfshlutfalls]])","v":0},{"$f":"+Launatafla[[#This Row],[Atvinnuleysisbætur fyrir skerðingu]]+Launatafla[[#This Row],[Laun frá launagreiðanda]]","v":0},{"$f":"-MAX(Launatafla[[#This Row],[Laun með bótum án skerðingar]]-Launatafla[[#This Row],[Meðal heildarlaun sl. 3M fyrir skatta]]*Hámarkshlutfall_af_launum,0)","v":0},{"$f":"-MIN(MAX(Launatafla[[#This Row],[Laun með bótum án skerðingar]]-Hámarkslaun,0),Launatafla[[#This Row],[Atvinnuleysisbætur fyrir skerðingu]])","v":0},{"$f":"+MIN(Launatafla[[#This Row],[Skerðing v/ hámarkshlutfalls]:[Skerðing v/ hámarkslauna]])","v":0},{"$f":"+IF(Launatafla[[#This Row],[Atvinnuleysisbætur fyrir skerðingu]]=0,0,\nMAX(MIN(Lágmarkslaun_fullt_starf,Launatafla[[#This Row],[Meðal heildarlaun sl. 3M fyrir skatta]]/Launatafla[[#This Row],[Starfshlutfall fyrir]])*Launatafla[[#This Row],[Starfshlutfall fyrir]]-(Launatafla[[#This Row],[Laun frá launagreiðanda]]+Launatafla[[#This Row],[Atvinnuleysisbætur fyrir skerðingu]]+Launatafla[[#This Row],[Skerðing v/ samtals]]),0))","v":0},{"$f":"+Launatafla[[#This Row],[Atvinnuleysisbætur fyrir skerðingu]]+Launatafla[[#This Row],[Skerðing v/ samtals]]+Launatafla[[#This Row],[Viðbót v/ tryggðra lágmarkslauna]]","v":0},{"$f":"+Launatafla[[#This Row],[Laun frá launagreiðanda]]+Launatafla[[#This Row],[Laun frá ríkissjóði]]","v":0},{"$f":"IFERROR(Launatafla[[#This Row],[Heildarlaun]]/Launatafla[[#This Row],[Meðal heildarlaun sl. 3M fyrir skatta]],0)","v":0}]
[null,null,null,null,null,null,null,null,{"$f":"+Launatafla[[#This Row],[Starfshlutfall fyrir]]-Launatafla[[#This Row],[Skerðing starfshlutfalls]]","v":0},{"$f":"+IF(OR(Launatafla[[#This Row],[Skerðing starfshlutfalls]]>Hámarkslækkun_starfshl,Launatafla[[#This Row],[Skerðing starfshlutfalls]]<Lágmarkslækkun_starfshl),0,Atvinnuleysisbætur*Launatafla[[#This Row],[Skerðing starfshlutfalls]])","v":0},{"$f":"IFERROR(Launatafla[[#This Row],[Meðal heildarlaun sl. 3M fyrir skatta]]/Launatafla[[#This Row],[Starfshlutfall fyrir]],0)*(Launatafla[[#This Row],[Starfshlutfall fyrir]]-Launatafla[[#This Row],[Skerðing starfshlutfalls]])","v":0},{"$f":"+Launatafla[[#This Row],[Atvinnuleysisbætur fyrir skerðingu]]+Launatafla[[#This Row],[Laun frá launagreiðanda]]","v":0},{"$f":"-MAX(Launatafla[[#This Row],[Laun með bótum án skerðingar]]-Launatafla[[#This Row],[Meðal heildarlaun sl. 3M fyrir skatta]]*Hámarkshlutfall_af_launum,0)","v":0},{"$f":"-MIN(MAX(Launatafla[[#This Row],[Laun með bótum án skerðingar]]-Hámarkslaun,0),Launatafla[[#This Row],[Atvinnuleysisbætur fyrir skerðingu]])","v":0},{"$f":"+MIN(Launatafla[[#This Row],[Skerðing v/ hámarkshlutfalls]:[Skerðing v/ hámarkslauna]])","v":0},{"$f":"+IF(Launatafla[[#This Row],[Atvinnuleysisbætur fyrir skerðingu]]=0,0,\nMAX(MIN(Lágmarkslaun_fullt_starf,Launatafla[[#This Row],[Meðal heildarlaun sl. 3M fyrir skatta]]/Launatafla[[#This Row],[Starfshlutfall fyrir]])*Launatafla[[#This Row],[Starfshlutfall fyrir]]-(Launatafla[[#This Row],[Laun frá launagreiðanda]]+Launatafla[[#This Row],[Atvinnuleysisbætur fyrir skerðingu]]+Launatafla[[#This Row],[Skerðing v/ samtals]]),0))","v":0},{"$f":"+Launatafla[[#This Row],[Atvinnuleysisbætur fyrir skerðingu]]+Launatafla[[#This Row],[Skerðing v/ samtals]]+Launatafla[[#This Row],[Viðbót v/ tryggðra lágmarkslauna]]","v":0},{"$f":"+Launatafla[[#This Row],[Laun frá launagreiðanda]]+Launatafla[[#This Row],[Laun frá ríkissjóði]]","v":0},{"$f":"IFERROR(Launatafla[[#This Row],[Heildarlaun]]/Launatafla[[#This Row],[Meðal heildarlaun sl. 3M fyrir skatta]],0)","v":0}]
[null,null,null,null,null,null,null,null,{"$f":"+Launatafla[[#This Row],[Starfshlutfall fyrir]]-Launatafla[[#This Row],[Skerðing starfshlutfalls]]","v":0},{"$f":"+IF(OR(Launatafla[[#This Row],[Skerðing starfshlutfalls]]>Hámarkslækkun_starfshl,Launatafla[[#This Row],[Skerðing starfshlutfalls]]<Lágmarkslækkun_starfshl),0,Atvinnuleysisbætur*Launatafla[[#This Row],[Skerðing starfshlutfalls]])","v":0},{"$f":"IFERROR(Launatafla[[#This Row],[Meðal heildarlaun sl. 3M fyrir skatta]]/Launatafla[[#This Row],[Starfshlutfall fyrir]],0)*(Launatafla[[#This Row],[Starfshlutfall fyrir]]-Launatafla[[#This Row],[Skerðing starfshlutfalls]])","v":0},{"$f":"+Launatafla[[#This Row],[Atvinnuleysisbætur fyrir skerðingu]]+Launatafla[[#This Row],[Laun frá launagreiðanda]]","v":0},{"$f":"-MAX(Launatafla[[#This Row],[Laun með bótum án skerðingar]]-Launatafla[[#This Row],[Meðal heildarlaun sl. 3M fyrir skatta]]*Hámarkshlutfall_af_launum,0)","v":0},{"$f":"-MIN(MAX(Launatafla[[#This Row],[Laun með bótum án skerðingar]]-Hámarkslaun,0),Launatafla[[#This Row],[Atvinnuleysisbætur fyrir skerðingu]])","v":0},{"$f":"+MIN(Launatafla[[#This Row],[Skerðing v/ hámarkshlutfalls]:[Skerðing v/ hámarkslauna]])","v":0},{"$f":"+IF(Launatafla[[#This Row],[Atvinnuleysisbætur fyrir skerðingu]]=0,0,\nMAX(MIN(Lágmarkslaun_fullt_starf,Launatafla[[#This Row],[Meðal heildarlaun sl. 3M fyrir skatta]]/Launatafla[[#This Row],[Starfshlutfall fyrir]])*Launatafla[[#This Row],[Starfshlutfall fyrir]]-(Launatafla[[#This Row],[Laun frá launagreiðanda]]+Launatafla[[#This Row],[Atvinnuleysisbætur fyrir skerðingu]]+Launatafla[[#This Row],[Skerðing v/ samtals]]),0))","v":0},{"$f":"+Launatafla[[#This Row],[Atvinnuleysisbætur fyrir skerðingu]]+Launatafla[[#This Row],[Skerðing v/ samtals]]+Launatafla[[#This Row],[Viðbót v/ tryggðra lágmarkslauna]]","v":0},{"$f":"+Launatafla[[#This Row],[Laun frá launagreiðanda]]+Launatafla[[#This Row],[Laun frá ríkissjóði]]","v":0},{"$f":"IFERROR(Launatafla[[#This Row],[Heildarlaun]]/Launatafla[[#This Row],[Meðal heildarlaun sl. 3M fyrir skatta]],0)","v":0}]
[null,null,null,null,null,null,null,null,{"$f":"+Launatafla[[#This Row],[Starfshlutfall fyrir]]-Launatafla[[#This Row],[Skerðing starfshlutfalls]]","v":0},{"$f":"+IF(OR(Launatafla[[#This Row],[Skerðing starfshlutfalls]]>Hámarkslækkun_starfshl,Launatafla[[#This Row],[Skerðing starfshlutfalls]]<Lágmarkslækkun_starfshl),0,Atvinnuleysisbætur*Launatafla[[#This Row],[Skerðing starfshlutfalls]])","v":0},{"$f":"IFERROR(Launatafla[[#This Row],[Meðal heildarlaun sl. 3M fyrir skatta]]/Launatafla[[#This Row],[Starfshlutfall fyrir]],0)*(Launatafla[[#This Row],[Starfshlutfall fyrir]]-Launatafla[[#This Row],[Skerðing starfshlutfalls]])","v":0},{"$f":"+Launatafla[[#This Row],[Atvinnuleysisbætur fyrir skerðingu]]+Launatafla[[#This Row],[Laun frá launagreiðanda]]","v":0},{"$f":"-MAX(Launatafla[[#This Row],[Laun með bótum án skerðingar]]-Launatafla[[#This Row],[Meðal heildarlaun sl. 3M fyrir skatta]]*Hámarkshlutfall_af_launum,0)","v":0},{"$f":"-MIN(MAX(Launatafla[[#This Row],[Laun með bótum án skerðingar]]-Hámarkslaun,0),Launatafla[[#This Row],[Atvinnuleysisbætur fyrir skerðingu]])","v":0},{"$f":"+MIN(Launatafla[[#This Row],[Skerðing v/ hámarkshlutfalls]:[Skerðing v/ hámarkslauna]])","v":0},{"$f":"+IF(Launatafla[[#This Row],[Atvinnuleysisbætur fyrir skerðingu]]=0,0,\nMAX(MIN(Lágmarkslaun_fullt_starf,Launatafla[[#This Row],[Meðal heildarlaun sl. 3M fyrir skatta]]/Launatafla[[#This Row],[Starfshlutfall fyrir]])*Launatafla[[#This Row],[Starfshlutfall fyrir]]-(Launatafla[[#This Row],[Laun frá launagreiðanda]]+Launatafla[[#This Row],[Atvinnuleysisbætur fyrir skerðingu]]+Launatafla[[#This Row],[Skerðing v/ samtals]]),0))","v":0},{"$f":"+Launatafla[[#This Row],[Atvinnuleysisbætur fyrir skerðingu]]+Launatafla[[#This Row],[Skerðing v/ samtals]]+Launatafla[[#This Row],[Viðbót v/ tryggðra lágmarkslauna]]","v":0},{"$f":"+Launatafla[[#This Row],[Laun frá launagreiðanda]]+Launatafla[[#This Row],[Laun frá ríkissjóði]]","v":0},{"$f":"IFERROR(Launatafla[[#This Row],[Heildarlaun]]/Launatafla[[#This Row],[Meðal heildarlaun sl. 3M fyrir skatta]],0)","v":0}]
[null,null,null,null,null,null,null,null,{"$f":"+Launatafla[[#This Row],[Starfshlutfall fyrir]]-Launatafla[[#This Row],[Skerðing starfshlutfalls]]","v":0},{"$f":"+IF(OR(Launatafla[[#This Row],[Skerðing starfshlutfalls]]>Hámarkslækkun_starfshl,Launatafla[[#This Row],[Skerðing starfshlutfalls]]<Lágmarkslækkun_starfshl),0,Atvinnuleysisbætur*Launatafla[[#This Row],[Skerðing starfshlutfalls]])","v":0},{"$f":"IFERROR(Launatafla[[#This Row],[Meðal heildarlaun sl. 3M fyrir skatta]]/Launatafla[[#This Row],[Starfshlutfall fyrir]],0)*(Launatafla[[#This Row],[Starfshlutfall fyrir]]-Launatafla[[#This Row],[Skerðing starfshlutfalls]])","v":0},{"$f":"+Launatafla[[#This Row],[Atvinnuleysisbætur fyrir skerðingu]]+Launatafla[[#This Row],[Laun frá launagreiðanda]]","v":0},{"$f":"-MAX(Launatafla[[#This Row],[Laun með bótum án skerðingar]]-Launatafla[[#This Row],[Meðal heildarlaun sl. 3M fyrir skatta]]*Hámarkshlutfall_af_launum,0)","v":0},{"$f":"-MIN(MAX(Launatafla[[#This Row],[Laun með bótum án skerðingar]]-Hámarkslaun,0),Launatafla[[#This Row],[Atvinnuleysisbætur fyrir skerðingu]])","v":0},{"$f":"+MIN(Launatafla[[#This Row],[Skerðing v/ hámarkshlutfalls]:[Skerðing v/ hámarkslauna]])","v":0},{"$f":"+IF(Launatafla[[#This Row],[Atvinnuleysisbætur fyrir skerðingu]]=0,0,\nMAX(MIN(Lágmarkslaun_fullt_starf,Launatafla[[#This Row],[Meðal heildarlaun sl. 3M fyrir skatta]]/Launatafla[[#This Row],[Starfshlutfall fyrir]])*Launatafla[[#This Row],[Starfshlutfall fyrir]]-(Launatafla[[#This Row],[Laun frá launagreiðanda]]+Launatafla[[#This Row],[Atvinnuleysisbætur fyrir skerðingu]]+Launatafla[[#This Row],[Skerðing v/ samtals]]),0))","v":0},{"$f":"+Launatafla[[#This Row],[Atvinnuleysisbætur fyrir skerðingu]]+Launatafla[[#This Row],[Skerðing v/ samtals]]+Launatafla[[#This Row],[Viðbót v/ tryggðra lágmarkslauna]]","v":0},{"$f":"+Launatafla[[#This Row],[Laun frá launagreiðanda]]+Launatafla[[#This Row],[Laun frá ríkissjóði]]","v":0},{"$f":"IFERROR(Launatafla[[#This Row],[Heildarlaun]]/Launatafla[[#This Row],[Meðal heildarlaun sl. 3M fyrir skatta]],0)","v":0}]
[null,null,null,null,null,null,null,null,{"$f":"+Launatafla[[#This Row],[Starfshlutfall fyrir]]-Launatafla[[#This Row],[Skerðing starfshlutfalls]]","v":0},{"$f":"+IF(OR(Launatafla[[#This Row],[Skerðing starfshlutfalls]]>Hámarkslækkun_starfshl,Launatafla[[#This Row],[Skerðing starfshlutfalls]]<Lágmarkslækkun_starfshl),0,Atvinnuleysisbætur*Launatafla[[#This Row],[Skerðing starfshlutfalls]])","v":0},{"$f":"IFERROR(Launatafla[[#This Row],[Meðal heildarlaun sl. 3M fyrir skatta]]/Launatafla[[#This Row],[Starfshlutfall fyrir]],0)*(Launatafla[[#This Row],[Starfshlutfall fyrir]]-Launatafla[[#This Row],[Skerðing starfshlutfalls]])","v":0},{"$f":"+Launatafla[[#This Row],[Atvinnuleysisbætur fyrir skerðingu]]+Launatafla[[#This Row],[Laun frá launagreiðanda]]","v":0},{"$f":"-MAX(Launatafla[[#This Row],[Laun með bótum án skerðingar]]-Launatafla[[#This Row],[Meðal heildarlaun sl. 3M fyrir skatta]]*Hámarkshlutfall_af_launum,0)","v":0},{"$f":"-MIN(MAX(Launatafla[[#This Row],[Laun með bótum án skerðingar]]-Hámarkslaun,0),Launatafla[[#This Row],[Atvinnuleysisbætur fyrir skerðingu]])","v":0},{"$f":"+MIN(Launatafla[[#This Row],[Skerðing v/ hámarkshlutfalls]:[Skerðing v/ hámarkslauna]])","v":0},{"$f":"+IF(Launatafla[[#This Row],[Atvinnuleysisbætur fyrir skerðingu]]=0,0,\nMAX(MIN(Lágmarkslaun_fullt_starf,Launatafla[[#This Row],[Meðal heildarlaun sl. 3M fyrir skatta]]/Launatafla[[#This Row],[Starfshlutfall fyrir]])*Launatafla[[#This Row],[Starfshlutfall fyrir]]-(Launatafla[[#This Row],[Laun frá launagreiðanda]]+Launatafla[[#This Row],[Atvinnuleysisbætur fyrir skerðingu]]+Launatafla[[#This Row],[Skerðing v/ samtals]]),0))","v":0},{"$f":"+Launatafla[[#This Row],[Atvinnuleysisbætur fyrir skerðingu]]+Launatafla[[#This Row],[Skerðing v/ samtals]]+Launatafla[[#This Row],[Viðbót v/ tryggðra lágmarkslauna]]","v":0},{"$f":"+Launatafla[[#This Row],[Laun frá launagreiðanda]]+Launatafla[[#This Row],[Laun frá ríkissjóði]]","v":0},{"$f":"IFERROR(Launatafla[[#This Row],[Heildarlaun]]/Launatafla[[#This Row],[Meðal heildarlaun sl. 3M fyrir skatta]],0)","v":0}]
[null,null,null,null,null,null,null,null,{"$f":"+Launatafla[[#This Row],[Starfshlutfall fyrir]]-Launatafla[[#This Row],[Skerðing starfshlutfalls]]","v":0},{"$f":"+IF(OR(Launatafla[[#This Row],[Skerðing starfshlutfalls]]>Hámarkslækkun_starfshl,Launatafla[[#This Row],[Skerðing starfshlutfalls]]<Lágmarkslækkun_starfshl),0,Atvinnuleysisbætur*Launatafla[[#This Row],[Skerðing starfshlutfalls]])","v":0},{"$f":"IFERROR(Launatafla[[#This Row],[Meðal heildarlaun sl. 3M fyrir skatta]]/Launatafla[[#This Row],[Starfshlutfall fyrir]],0)*(Launatafla[[#This Row],[Starfshlutfall fyrir]]-Launatafla[[#This Row],[Skerðing starfshlutfalls]])","v":0},{"$f":"+Launatafla[[#This Row],[Atvinnuleysisbætur fyrir skerðingu]]+Launatafla[[#This Row],[Laun frá launagreiðanda]]","v":0},{"$f":"-MAX(Launatafla[[#This Row],[Laun með bótum án skerðingar]]-Launatafla[[#This Row],[Meðal heildarlaun sl. 3M fyrir skatta]]*Hámarkshlutfall_af_launum,0)","v":0},{"$f":"-MIN(MAX(Launatafla[[#This Row],[Laun með bótum án skerðingar]]-Hámarkslaun,0),Launatafla[[#This Row],[Atvinnuleysisbætur fyrir skerðingu]])","v":0},{"$f":"+MIN(Launatafla[[#This Row],[Skerðing v/ hámarkshlutfalls]:[Skerðing v/ hámarkslauna]])","v":0},{"$f":"+IF(Launatafla[[#This Row],[Atvinnuleysisbætur fyrir skerðingu]]=0,0,\nMAX(MIN(Lágmarkslaun_fullt_starf,Launatafla[[#This Row],[Meðal heildarlaun sl. 3M fyrir skatta]]/Launatafla[[#This Row],[Starfshlutfall fyrir]])*Launatafla[[#This Row],[Starfshlutfall fyrir]]-(Launatafla[[#This Row],[Laun frá launagreiðanda]]+Launatafla[[#This Row],[Atvinnuleysisbætur fyrir skerðingu]]+Launatafla[[#This Row],[Skerðing v/ samtals]]),0))","v":0},{"$f":"+Launatafla[[#This Row],[Atvinnuleysisbætur fyrir skerðingu]]+Launatafla[[#This Row],[Skerðing v/ samtals]]+Launatafla[[#This Row],[Viðbót v/ tryggðra lágmarkslauna]]","v":0},{"$f":"+Launatafla[[#This Row],[Laun frá launagreiðanda]]+Launatafla[[#This Row],[Laun frá ríkissjóði]]","v":0},{"$f":"IFERROR(Launatafla[[#This Row],[Heildarlaun]]/Launatafla[[#This Row],[Meðal heildarlaun sl. 3M fyrir skatta]],0)","v":0}]
[null,null,null,null,null,null,null,null,{"$f":"+Launatafla[[#This Row],[Starfshlutfall fyrir]]-Launatafla[[#This Row],[Skerðing starfshlutfalls]]","v":0},{"$f":"+IF(OR(Launatafla[[#This Row],[Skerðing starfshlutfalls]]>Hámarkslækkun_starfshl,Launatafla[[#This Row],[Skerðing starfshlutfalls]]<Lágmarkslækkun_starfshl),0,Atvinnuleysisbætur*Launatafla[[#This Row],[Skerðing starfshlutfalls]])","v":0},{"$f":"IFERROR(Launatafla[[#This Row],[Meðal heildarlaun sl. 3M fyrir skatta]]/Launatafla[[#This Row],[Starfshlutfall fyrir]],0)*(Launatafla[[#This Row],[Starfshlutfall fyrir]]-Launatafla[[#This Row],[Skerðing starfshlutfalls]])","v":0},{"$f":"+Launatafla[[#This Row],[Atvinnuleysisbætur fyrir skerðingu]]+Launatafla[[#This Row],[Laun frá launagreiðanda]]","v":0},{"$f":"-MAX(Launatafla[[#This Row],[Laun með bótum án skerðingar]]-Launatafla[[#This Row],[Meðal heildarlaun sl. 3M fyrir skatta]]*Hámarkshlutfall_af_launum,0)","v":0},{"$f":"-MIN(MAX(Launatafla[[#This Row],[Laun með bótum án skerðingar]]-Hámarkslaun,0),Launatafla[[#This Row],[Atvinnuleysisbætur fyrir skerðingu]])","v":0},{"$f":"+MIN(Launatafla[[#This Row],[Skerðing v/ hámarkshlutfalls]:[Skerðing v/ hámarkslauna]])","v":0},{"$f":"+IF(Launatafla[[#This Row],[Atvinnuleysisbætur fyrir skerðingu]]=0,0,\nMAX(MIN(Lágmarkslaun_fullt_starf,Launatafla[[#This Row],[Meðal heildarlaun sl. 3M fyrir skatta]]/Launatafla[[#This Row],[Starfshlutfall fyrir]])*Launatafla[[#This Row],[Starfshlutfall fyrir]]-(Launatafla[[#This Row],[Laun frá launagreiðanda]]+Launatafla[[#This Row],[Atvinnuleysisbætur fyrir skerðingu]]+Launatafla[[#This Row],[Skerðing v/ samtals]]),0))","v":0},{"$f":"+Launatafla[[#This Row],[Atvinnuleysisbætur fyrir skerðingu]]+Launatafla[[#This Row],[Skerðing v/ samtals]]+Launatafla[[#This Row],[Viðbót v/ tryggðra lágmarkslauna]]","v":0},{"$f":"+Launatafla[[#This Row],[Laun frá launagreiðanda]]+Launatafla[[#This Row],[Laun frá ríkissjóði]]","v":0},{"$f":"IFERROR(Launatafla[[#This Row],[Heildarlaun]]/Launatafla[[#This Row],[Meðal heildarlaun sl. 3M fyrir skatta]],0)","v":0}]
[null,null,null,null,null,null,null,null,{"$f":"+Launatafla[[#This Row],[Starfshlutfall fyrir]]-Launatafla[[#This Row],[Skerðing starfshlutfalls]]","v":0},{"$f":"+IF(OR(Launatafla[[#This Row],[Skerðing starfshlutfalls]]>Hámarkslækkun_starfshl,Launatafla[[#This Row],[Skerðing starfshlutfalls]]<Lágmarkslækkun_starfshl),0,Atvinnuleysisbætur*Launatafla[[#This Row],[Skerðing starfshlutfalls]])","v":0},{"$f":"IFERROR(Launatafla[[#This Row],[Meðal heildarlaun sl. 3M fyrir skatta]]/Launatafla[[#This Row],[Starfshlutfall fyrir]],0)*(Launatafla[[#This Row],[Starfshlutfall fyrir]]-Launatafla[[#This Row],[Skerðing starfshlutfalls]])","v":0},{"$f":"+Launatafla[[#This Row],[Atvinnuleysisbætur fyrir skerðingu]]+Launatafla[[#This Row],[Laun frá launagreiðanda]]","v":0},{"$f":"-MAX(Launatafla[[#This Row],[Laun með bótum án skerðingar]]-Launatafla[[#This Row],[Meðal heildarlaun sl. 3M fyrir skatta]]*Hámarkshlutfall_af_launum,0)","v":0},{"$f":"-MIN(MAX(Launatafla[[#This Row],[Laun með bótum án skerðingar]]-Hámarkslaun,0),Launatafla[[#This Row],[Atvinnuleysisbætur fyrir skerðingu]])","v":0},{"$f":"+MIN(Launatafla[[#This Row],[Skerðing v/ hámarkshlutfalls]:[Skerðing v/ hámarkslauna]])","v":0},{"$f":"+IF(Launatafla[[#This Row],[Atvinnuleysisbætur fyrir skerðingu]]=0,0,\nMAX(MIN(Lágmarkslaun_fullt_starf,Launatafla[[#This Row],[Meðal heildarlaun sl. 3M fyrir skatta]]/Launatafla[[#This Row],[Starfshlutfall fyrir]])*Launatafla[[#This Row],[Starfshlutfall fyrir]]-(Launatafla[[#This Row],[Laun frá launagreiðanda]]+Launatafla[[#This Row],[Atvinnuleysisbætur fyrir skerðingu]]+Launatafla[[#This Row],[Skerðing v/ samtals]]),0))","v":0},{"$f":"+Launatafla[[#This Row],[Atvinnuleysisbætur fyrir skerðingu]]+Launatafla[[#This Row],[Skerðing v/ samtals]]+Launatafla[[#This Row],[Viðbót v/ tryggðra lágmarkslauna]]","v":0},{"$f":"+Launatafla[[#This Row],[Laun frá launagreiðanda]]+Launatafla[[#This Row],[Laun frá ríkissjóði]]","v":0},{"$f":"IFERROR(Launatafla[[#This Row],[Heildarlaun]]/Launatafla[[#This Row],[Meðal heildarlaun sl. 3M fyrir skatta]],0)","v":0}]
[null,null,null,null,null,null,null,null,{"$f":"+Launatafla[[#This Row],[Starfshlutfall fyrir]]-Launatafla[[#This Row],[Skerðing starfshlutfalls]]","v":0},{"$f":"+IF(OR(Launatafla[[#This Row],[Skerðing starfshlutfalls]]>Hámarkslækkun_starfshl,Launatafla[[#This Row],[Skerðing starfshlutfalls]]<Lágmarkslækkun_starfshl),0,Atvinnuleysisbætur*Launatafla[[#This Row],[Skerðing starfshlutfalls]])","v":0},{"$f":"IFERROR(Launatafla[[#This Row],[Meðal heildarlaun sl. 3M fyrir skatta]]/Launatafla[[#This Row],[Starfshlutfall fyrir]],0)*(Launatafla[[#This Row],[Starfshlutfall fyrir]]-Launatafla[[#This Row],[Skerðing starfshlutfalls]])","v":0},{"$f":"+Launatafla[[#This Row],[Atvinnuleysisbætur fyrir skerðingu]]+Launatafla[[#This Row],[Laun frá launagreiðanda]]","v":0},{"$f":"-MAX(Launatafla[[#This Row],[Laun með bótum án skerðingar]]-Launatafla[[#This Row],[Meðal heildarlaun sl. 3M fyrir skatta]]*Hámarkshlutfall_af_launum,0)","v":0},{"$f":"-MIN(MAX(Launatafla[[#This Row],[Laun með bótum án skerðingar]]-Hámarkslaun,0),Launatafla[[#This Row],[Atvinnuleysisbætur fyrir skerðingu]])","v":0},{"$f":"+MIN(Launatafla[[#This Row],[Skerðing v/ hámarkshlutfalls]:[Skerðing v/ hámarkslauna]])","v":0},{"$f":"+IF(Launatafla[[#This Row],[Atvinnuleysisbætur fyrir skerðingu]]=0,0,\nMAX(MIN(Lágmarkslaun_fullt_starf,Launatafla[[#This Row],[Meðal heildarlaun sl. 3M fyrir skatta]]/Launatafla[[#This Row],[Starfshlutfall fyrir]])*Launatafla[[#This Row],[Starfshlutfall fyrir]]-(Launatafla[[#This Row],[Laun frá launagreiðanda]]+Launatafla[[#This Row],[Atvinnuleysisbætur fyrir skerðingu]]+Launatafla[[#This Row],[Skerðing v/ samtals]]),0))","v":0},{"$f":"+Launatafla[[#This Row],[Atvinnuleysisbætur fyrir skerðingu]]+Launatafla[[#This Row],[Skerðing v/ samtals]]+Launatafla[[#This Row],[Viðbót v/ tryggðra lágmarkslauna]]","v":0},{"$f":"+Launatafla[[#This Row],[Laun frá launagreiðanda]]+Launatafla[[#This Row],[Laun frá ríkissjóði]]","v":0},{"$f":"IFERROR(Launatafla[[#This Row],[Heildarlaun]]/Launatafla[[#This Row],[Meðal heildarlaun sl. 3M fyrir skatta]],0)","v":0}]
[null,null,null,null,null,null,null,null,{"$f":"+Launatafla[[#This Row],[Starfshlutfall fyrir]]-Launatafla[[#This Row],[Skerðing starfshlutfalls]]","v":0},{"$f":"+IF(OR(Launatafla[[#This Row],[Skerðing starfshlutfalls]]>Hámarkslækkun_starfshl,Launatafla[[#This Row],[Skerðing starfshlutfalls]]<Lágmarkslækkun_starfshl),0,Atvinnuleysisbætur*Launatafla[[#This Row],[Skerðing starfshlutfalls]])","v":0},{"$f":"IFERROR(Launatafla[[#This Row],[Meðal heildarlaun sl. 3M fyrir skatta]]/Launatafla[[#This Row],[Starfshlutfall fyrir]],0)*(Launatafla[[#This Row],[Starfshlutfall fyrir]]-Launatafla[[#This Row],[Skerðing starfshlutfalls]])","v":0},{"$f":"+Launatafla[[#This Row],[Atvinnuleysisbætur fyrir skerðingu]]+Launatafla[[#This Row],[Laun frá launagreiðanda]]","v":0},{"$f":"-MAX(Launatafla[[#This Row],[Laun með bótum án skerðingar]]-Launatafla[[#This Row],[Meðal heildarlaun sl. 3M fyrir skatta]]*Hámarkshlutfall_af_launum,0)","v":0},{"$f":"-MIN(MAX(Launatafla[[#This Row],[Laun með bótum án skerðingar]]-Hámarkslaun,0),Launatafla[[#This Row],[Atvinnuleysisbætur fyrir skerðingu]])","v":0},{"$f":"+MIN(Launatafla[[#This Row],[Skerðing v/ hámarkshlutfalls]:[Skerðing v/ hámarkslauna]])","v":0},{"$f":"+IF(Launatafla[[#This Row],[Atvinnuleysisbætur fyrir skerðingu]]=0,0,\nMAX(MIN(Lágmarkslaun_fullt_starf,Launatafla[[#This Row],[Meðal heildarlaun sl. 3M fyrir skatta]]/Launatafla[[#This Row],[Starfshlutfall fyrir]])*Launatafla[[#This Row],[Starfshlutfall fyrir]]-(Launatafla[[#This Row],[Laun frá launagreiðanda]]+Launatafla[[#This Row],[Atvinnuleysisbætur fyrir skerðingu]]+Launatafla[[#This Row],[Skerðing v/ samtals]]),0))","v":0},{"$f":"+Launatafla[[#This Row],[Atvinnuleysisbætur fyrir skerðingu]]+Launatafla[[#This Row],[Skerðing v/ samtals]]+Launatafla[[#This Row],[Viðbót v/ tryggðra lágmarkslauna]]","v":0},{"$f":"+Launatafla[[#This Row],[Laun frá launagreiðanda]]+Launatafla[[#This Row],[Laun frá ríkissjóði]]","v":0},{"$f":"IFERROR(Launatafla[[#This Row],[Heildarlaun]]/Launatafla[[#This Row],[Meðal heildarlaun sl. 3M fyrir skatta]],0)","v":0}]
[null,null,null,null,null,null,null,null,{"$f":"+Launatafla[[#This Row],[Starfshlutfall fyrir]]-Launatafla[[#This Row],[Skerðing starfshlutfalls]]","v":0},{"$f":"+IF(OR(Launatafla[[#This Row],[Skerðing starfshlutfalls]]>Hámarkslækkun_starfshl,Launatafla[[#This Row],[Skerðing starfshlutfalls]]<Lágmarkslækkun_starfshl),0,Atvinnuleysisbætur*Launatafla[[#This Row],[Skerðing starfshlutfalls]])","v":0},{"$f":"IFERROR(Launatafla[[#This Row],[Meðal heildarlaun sl. 3M fyrir skatta]]/Launatafla[[#This Row],[Starfshlutfall fyrir]],0)*(Launatafla[[#This Row],[Starfshlutfall fyrir]]-Launatafla[[#This Row],[Skerðing starfshlutfalls]])","v":0},{"$f":"+Launatafla[[#This Row],[Atvinnuleysisbætur fyrir skerðingu]]+Launatafla[[#This Row],[Laun frá launagreiðanda]]","v":0},{"$f":"-MAX(Launatafla[[#This Row],[Laun með bótum án skerðingar]]-Launatafla[[#This Row],[Meðal heildarlaun sl. 3M fyrir skatta]]*Hámarkshlutfall_af_launum,0)","v":0},{"$f":"-MIN(MAX(Launatafla[[#This Row],[Laun með bótum án skerðingar]]-Hámarkslaun,0),Launatafla[[#This Row],[Atvinnuleysisbætur fyrir skerðingu]])","v":0},{"$f":"+MIN(Launatafla[[#This Row],[Skerðing v/ hámarkshlutfalls]:[Skerðing v/ hámarkslauna]])","v":0},{"$f":"+IF(Launatafla[[#This Row],[Atvinnuleysisbætur fyrir skerðingu]]=0,0,\nMAX(MIN(Lágmarkslaun_fullt_starf,Launatafla[[#This Row],[Meðal heildarlaun sl. 3M fyrir skatta]]/Launatafla[[#This Row],[Starfshlutfall fyrir]])*Launatafla[[#This Row],[Starfshlutfall fyrir]]-(Launatafla[[#This Row],[Laun frá launagreiðanda]]+Launatafla[[#This Row],[Atvinnuleysisbætur fyrir skerðingu]]+Launatafla[[#This Row],[Skerðing v/ samtals]]),0))","v":0},{"$f":"+Launatafla[[#This Row],[Atvinnuleysisbætur fyrir skerðingu]]+Launatafla[[#This Row],[Skerðing v/ samtals]]+Launatafla[[#This Row],[Viðbót v/ tryggðra lágmarkslauna]]","v":0},{"$f":"+Launatafla[[#This Row],[Laun frá launagreiðanda]]+Launatafla[[#This Row],[Laun frá ríkissjóði]]","v":0},{"$f":"IFERROR(Launatafla[[#This Row],[Heildarlaun]]/Launatafla[[#This Row],[Meðal heildarlaun sl. 3M fyrir skatta]],0)","v":0}]
[null,null,null,null,null,null,null,null,{"$f":"+Launatafla[[#This Row],[Starfshlutfall fyrir]]-Launatafla[[#This Row],[Skerðing starfshlutfalls]]","v":0},{"$f":"+IF(OR(Launatafla[[#This Row],[Skerðing starfshlutfalls]]>Hámarkslækkun_starfshl,Launatafla[[#This Row],[Skerðing starfshlutfalls]]<Lágmarkslækkun_starfshl),0,Atvinnuleysisbætur*Launatafla[[#This Row],[Skerðing starfshlutfalls]])","v":0},{"$f":"IFERROR(Launatafla[[#This Row],[Meðal heildarlaun sl. 3M fyrir skatta]]/Launatafla[[#This Row],[Starfshlutfall fyrir]],0)*(Launatafla[[#This Row],[Starfshlutfall fyrir]]-Launatafla[[#This Row],[Skerðing starfshlutfalls]])","v":0},{"$f":"+Launatafla[[#This Row],[Atvinnuleysisbætur fyrir skerðingu]]+Launatafla[[#This Row],[Laun frá launagreiðanda]]","v":0},{"$f":"-MAX(Launatafla[[#This Row],[Laun með bótum án skerðingar]]-Launatafla[[#This Row],[Meðal heildarlaun sl. 3M fyrir skatta]]*Hámarkshlutfall_af_launum,0)","v":0},{"$f":"-MIN(MAX(Launatafla[[#This Row],[Laun með bótum án skerðingar]]-Hámarkslaun,0),Launatafla[[#This Row],[Atvinnuleysisbætur fyrir skerðingu]])","v":0},{"$f":"+MIN(Launatafla[[#This Row],[Skerðing v/ hámarkshlutfalls]:[Skerðing v/ hámarkslauna]])","v":0},{"$f":"+IF(Launatafla[[#This Row],[Atvinnuleysisbætur fyrir skerðingu]]=0,0,\nMAX(MIN(Lágmarkslaun_fullt_starf,Launatafla[[#This Row],[Meðal heildarlaun sl. 3M fyrir skatta]]/Launatafla[[#This Row],[Starfshlutfall fyrir]])*Launatafla[[#This Row],[Starfshlutfall fyrir]]-(Launatafla[[#This Row],[Laun frá launagreiðanda]]+Launatafla[[#This Row],[Atvinnuleysisbætur fyrir skerðingu]]+Launatafla[[#This Row],[Skerðing v/ samtals]]),0))","v":0},{"$f":"+Launatafla[[#This Row],[Atvinnuleysisbætur fyrir skerðingu]]+Launatafla[[#This Row],[Skerðing v/ samtals]]+Launatafla[[#This Row],[Viðbót v/ tryggðra lágmarkslauna]]","v":0},{"$f":"+Launatafla[[#This Row],[Laun frá launagreiðanda]]+Launatafla[[#This Row],[Laun frá ríkissjóði]]","v":0},{"$f":"IFERROR(Launatafla[[#This Row],[Heildarlaun]]/Launatafla[[#This Row],[Meðal heildarlaun sl. 3M fyrir skatta]],0)","v":0}]
[null,null,null,null,null,null,null,null,{"$f":"+Launatafla[[#This Row],[Starfshlutfall fyrir]]-Launatafla[[#This Row],[Skerðing starfshlutfalls]]","v":0},{"$f":"+IF(OR(Launatafla[[#This Row],[Skerðing starfshlutfalls]]>Hámarkslækkun_starfshl,Launatafla[[#This Row],[Skerðing starfshlutfalls]]<Lágmarkslækkun_starfshl),0,Atvinnuleysisbætur*Launatafla[[#This Row],[Skerðing starfshlutfalls]])","v":0},{"$f":"IFERROR(Launatafla[[#This Row],[Meðal heildarlaun sl. 3M fyrir skatta]]/Launatafla[[#This Row],[Starfshlutfall fyrir]],0)*(Launatafla[[#This Row],[Starfshlutfall fyrir]]-Launatafla[[#This Row],[Skerðing starfshlutfalls]])","v":0},{"$f":"+Launatafla[[#This Row],[Atvinnuleysisbætur fyrir skerðingu]]+Launatafla[[#This Row],[Laun frá launagreiðanda]]","v":0},{"$f":"-MAX(Launatafla[[#This Row],[Laun með bótum án skerðingar]]-Launatafla[[#This Row],[Meðal heildarlaun sl. 3M fyrir skatta]]*Hámarkshlutfall_af_launum,0)","v":0},{"$f":"-MIN(MAX(Launatafla[[#This Row],[Laun með bótum án skerðingar]]-Hámarkslaun,0),Launatafla[[#This Row],[Atvinnuleysisbætur fyrir skerðingu]])","v":0},{"$f":"+MIN(Launatafla[[#This Row],[Skerðing v/ hámarkshlutfalls]:[Skerðing v/ hámarkslauna]])","v":0},{"$f":"+IF(Launatafla[[#This Row],[Atvinnuleysisbætur fyrir skerðingu]]=0,0,\nMAX(MIN(Lágmarkslaun_fullt_starf,Launatafla[[#This Row],[Meðal heildarlaun sl. 3M fyrir skatta]]/Launatafla[[#This Row],[Starfshlutfall fyrir]])*Launatafla[[#This Row],[Starfshlutfall fyrir]]-(Launatafla[[#This Row],[Laun frá launagreiðanda]]+Launatafla[[#This Row],[Atvinnuleysisbætur fyrir skerðingu]]+Launatafla[[#This Row],[Skerðing v/ samtals]]),0))","v":0},{"$f":"+Launatafla[[#This Row],[Atvinnuleysisbætur fyrir skerðingu]]+Launatafla[[#This Row],[Skerðing v/ samtals]]+Launatafla[[#This Row],[Viðbót v/ tryggðra lágmarkslauna]]","v":0},{"$f":"+Launatafla[[#This Row],[Laun frá launagreiðanda]]+Launatafla[[#This Row],[Laun frá ríkissjóði]]","v":0},{"$f":"IFERROR(Launatafla[[#This Row],[Heildarlaun]]/Launatafla[[#This Row],[Meðal heildarlaun sl. 3M fyrir skatta]],0)","v":0}]
[null,null,null,null,null,null,null,null,{"$f":"+Launatafla[[#This Row],[Starfshlutfall fyrir]]-Launatafla[[#This Row],[Skerðing starfshlutfalls]]","v":0},{"$f":"+IF(OR(Launatafla[[#This Row],[Skerðing starfshlutfalls]]>Hámarkslækkun_starfshl,Launatafla[[#This Row],[Skerðing starfshlutfalls]]<Lágmarkslækkun_starfshl),0,Atvinnuleysisbætur*Launatafla[[#This Row],[Skerðing starfshlutfalls]])","v":0},{"$f":"IFERROR(Launatafla[[#This Row],[Meðal heildarlaun sl. 3M fyrir skatta]]/Launatafla[[#This Row],[Starfshlutfall fyrir]],0)*(Launatafla[[#This Row],[Starfshlutfall fyrir]]-Launatafla[[#This Row],[Skerðing starfshlutfalls]])","v":0},{"$f":"+Launatafla[[#This Row],[Atvinnuleysisbætur fyrir skerðingu]]+Launatafla[[#This Row],[Laun frá launagreiðanda]]","v":0},{"$f":"-MAX(Launatafla[[#This Row],[Laun með bótum án skerðingar]]-Launatafla[[#This Row],[Meðal heildarlaun sl. 3M fyrir skatta]]*Hámarkshlutfall_af_launum,0)","v":0},{"$f":"-MIN(MAX(Launatafla[[#This Row],[Laun með bótum án skerðingar]]-Hámarkslaun,0),Launatafla[[#This Row],[Atvinnuleysisbætur fyrir skerðingu]])","v":0},{"$f":"+MIN(Launatafla[[#This Row],[Skerðing v/ hámarkshlutfalls]:[Skerðing v/ hámarkslauna]])","v":0},{"$f":"+IF(Launatafla[[#This Row],[Atvinnuleysisbætur fyrir skerðingu]]=0,0,\nMAX(MIN(Lágmarkslaun_fullt_starf,Launatafla[[#This Row],[Meðal heildarlaun sl. 3M fyrir skatta]]/Launatafla[[#This Row],[Starfshlutfall fyrir]])*Launatafla[[#This Row],[Starfshlutfall fyrir]]-(Launatafla[[#This Row],[Laun frá launagreiðanda]]+Launatafla[[#This Row],[Atvinnuleysisbætur fyrir skerðingu]]+Launatafla[[#This Row],[Skerðing v/ samtals]]),0))","v":0},{"$f":"+Launatafla[[#This Row],[Atvinnuleysisbætur fyrir skerðingu]]+Launatafla[[#This Row],[Skerðing v/ samtals]]+Launatafla[[#This Row],[Viðbót v/ tryggðra lágmarkslauna]]","v":0},{"$f":"+Launatafla[[#This Row],[Laun frá launagreiðanda]]+Launatafla[[#This Row],[Laun frá ríkissjóði]]","v":0},{"$f":"IFERROR(Launatafla[[#This Row],[Heildarlaun]]/Launatafla[[#This Row],[Meðal heildarlaun sl. 3M fyrir skatta]],0)","v":0}]
[null,null,null,null,null,null,null,null,{"$f":"+Launatafla[[#This Row],[Starfshlutfall fyrir]]-Launatafla[[#This Row],[Skerðing starfshlutfalls]]","v":0},{"$f":"+IF(OR(Launatafla[[#This Row],[Skerðing starfshlutfalls]]>Hámarkslækkun_starfshl,Launatafla[[#This Row],[Skerðing starfshlutfalls]]<Lágmarkslækkun_starfshl),0,Atvinnuleysisbætur*Launatafla[[#This Row],[Skerðing starfshlutfalls]])","v":0},{"$f":"IFERROR(Launatafla[[#This Row],[Meðal heildarlaun sl. 3M fyrir skatta]]/Launatafla[[#This Row],[Starfshlutfall fyrir]],0)*(Launatafla[[#This Row],[Starfshlutfall fyrir]]-Launatafla[[#This Row],[Skerðing starfshlutfalls]])","v":0},{"$f":"+Launatafla[[#This Row],[Atvinnuleysisbætur fyrir skerðingu]]+Launatafla[[#This Row],[Laun frá launagreiðanda]]","v":0},{"$f":"-MAX(Launatafla[[#This Row],[Laun með bótum án skerðingar]]-Launatafla[[#This Row],[Meðal heildarlaun sl. 3M fyrir skatta]]*Hámarkshlutfall_af_launum,0)","v":0},{"$f":"-MIN(MAX(Launatafla[[#This Row],[Laun með bótum án skerðingar]]-Hámarkslaun,0),Launatafla[[#This Row],[Atvinnuleysisbætur fyrir skerðingu]])","v":0},{"$f":"+MIN(Launatafla[[#This Row],[Skerðing v/ hámarkshlutfalls]:[Skerðing v/ hámarkslauna]])","v":0},{"$f":"+IF(Launatafla[[#This Row],[Atvinnuleysisbætur fyrir skerðingu]]=0,0,\nMAX(MIN(Lágmarkslaun_fullt_starf,Launatafla[[#This Row],[Meðal heildarlaun sl. 3M fyrir skatta]]/Launatafla[[#This Row],[Starfshlutfall fyrir]])*Launatafla[[#This Row],[Starfshlutfall fyrir]]-(Launatafla[[#This Row],[Laun frá launagreiðanda]]+Launatafla[[#This Row],[Atvinnuleysisbætur fyrir skerðingu]]+Launatafla[[#This Row],[Skerðing v/ samtals]]),0))","v":0},{"$f":"+Launatafla[[#This Row],[Atvinnuleysisbætur fyrir skerðingu]]+Launatafla[[#This Row],[Skerðing v/ samtals]]+Launatafla[[#This Row],[Viðbót v/ tryggðra lágmarkslauna]]","v":0},{"$f":"+Launatafla[[#This Row],[Laun frá launagreiðanda]]+Launatafla[[#This Row],[Laun frá ríkissjóði]]","v":0},{"$f":"IFERROR(Launatafla[[#This Row],[Heildarlaun]]/Launatafla[[#This Row],[Meðal heildarlaun sl. 3M fyrir skatta]],0)","v":0}]
[null,null,null,null,null,null,null,null,{"$f":"+Launatafla[[#This Row],[Starfshlutfall fyrir]]-Launatafla[[#This Row],[Skerðing starfshlutfalls]]","v":0},{"$f":"+IF(OR(Launatafla[[#This Row],[Skerðing starfshlutfalls]]>Hámarkslækkun_starfshl,Launatafla[[#This Row],[Skerðing starfshlutfalls]]<Lágmarkslækkun_starfshl),0,Atvinnuleysisbætur*Launatafla[[#This Row],[Skerðing starfshlutfalls]])","v":0},{"$f":"IFERROR(Launatafla[[#This Row],[Meðal heildarlaun sl. 3M fyrir skatta]]/Launatafla[[#This Row],[Starfshlutfall fyrir]],0)*(Launatafla[[#This Row],[Starfshlutfall fyrir]]-Launatafla[[#This Row],[Skerðing starfshlutfalls]])","v":0},{"$f":"+Launatafla[[#This Row],[Atvinnuleysisbætur fyrir skerðingu]]+Launatafla[[#This Row],[Laun frá launagreiðanda]]","v":0},{"$f":"-MAX(Launatafla[[#This Row],[Laun með bótum án skerðingar]]-Launatafla[[#This Row],[Meðal heildarlaun sl. 3M fyrir skatta]]*Hámarkshlutfall_af_launum,0)","v":0},{"$f":"-MIN(MAX(Launatafla[[#This Row],[Laun með bótum án skerðingar]]-Hámarkslaun,0),Launatafla[[#This Row],[Atvinnuleysisbætur fyrir skerðingu]])","v":0},{"$f":"+MIN(Launatafla[[#This Row],[Skerðing v/ hámarkshlutfalls]:[Skerðing v/ hámarkslauna]])","v":0},{"$f":"+IF(Launatafla[[#This Row],[Atvinnuleysisbætur fyrir skerðingu]]=0,0,\nMAX(MIN(Lágmarkslaun_fullt_starf,Launatafla[[#This Row],[Meðal heildarlaun sl. 3M fyrir skatta]]/Launatafla[[#This Row],[Starfshlutfall fyrir]])*Launatafla[[#This Row],[Starfshlutfall fyrir]]-(Launatafla[[#This Row],[Laun frá launagreiðanda]]+Launatafla[[#This Row],[Atvinnuleysisbætur fyrir skerðingu]]+Launatafla[[#This Row],[Skerðing v/ samtals]]),0))","v":0},{"$f":"+Launatafla[[#This Row],[Atvinnuleysisbætur fyrir skerðingu]]+Launatafla[[#This Row],[Skerðing v/ samtals]]+Launatafla[[#This Row],[Viðbót v/ tryggðra lágmarkslauna]]","v":0},{"$f":"+Launatafla[[#This Row],[Laun frá launagreiðanda]]+Launatafla[[#This Row],[Laun frá ríkissjóði]]","v":0},{"$f":"IFERROR(Launatafla[[#This Row],[Heildarlaun]]/Launatafla[[#This Row],[Meðal heildarlaun sl. 3M fyrir skatta]],0)","v":0}]
[null,null,null,null,null,null,null,null,{"$f":"+Launatafla[[#This Row],[Starfshlutfall fyrir]]-Launatafla[[#This Row],[Skerðing starfshlutfalls]]","v":0},{"$f":"+IF(OR(Launatafla[[#This Row],[Skerðing starfshlutfalls]]>Hámarkslækkun_starfshl,Launatafla[[#This Row],[Skerðing starfshlutfalls]]<Lágmarkslækkun_starfshl),0,Atvinnuleysisbætur*Launatafla[[#This Row],[Skerðing starfshlutfalls]])","v":0},{"$f":"IFERROR(Launatafla[[#This Row],[Meðal heildarlaun sl. 3M fyrir skatta]]/Launatafla[[#This Row],[Starfshlutfall fyrir]],0)*(Launatafla[[#This Row],[Starfshlutfall fyrir]]-Launatafla[[#This Row],[Skerðing starfshlutfalls]])","v":0},{"$f":"+Launatafla[[#This Row],[Atvinnuleysisbætur fyrir skerðingu]]+Launatafla[[#This Row],[Laun frá launagreiðanda]]","v":0},{"$f":"-MAX(Launatafla[[#This Row],[Laun með bótum án skerðingar]]-Launatafla[[#This Row],[Meðal heildarlaun sl. 3M fyrir skatta]]*Hámarkshlutfall_af_launum,0)","v":0},{"$f":"-MIN(MAX(Launatafla[[#This Row],[Laun með bótum án skerðingar]]-Hámarkslaun,0),Launatafla[[#This Row],[Atvinnuleysisbætur fyrir skerðingu]])","v":0},{"$f":"+MIN(Launatafla[[#This Row],[Skerðing v/ hámarkshlutfalls]:[Skerðing v/ hámarkslauna]])","v":0},{"$f":"+IF(Launatafla[[#This Row],[Atvinnuleysisbætur fyrir skerðingu]]=0,0,\nMAX(MIN(Lágmarkslaun_fullt_starf,Launatafla[[#This Row],[Meðal heildarlaun sl. 3M fyrir skatta]]/Launatafla[[#This Row],[Starfshlutfall fyrir]])*Launatafla[[#This Row],[Starfshlutfall fyrir]]-(Launatafla[[#This Row],[Laun frá launagreiðanda]]+Launatafla[[#This Row],[Atvinnuleysisbætur fyrir skerðingu]]+Launatafla[[#This Row],[Skerðing v/ samtals]]),0))","v":0},{"$f":"+Launatafla[[#This Row],[Atvinnuleysisbætur fyrir skerðingu]]+Launatafla[[#This Row],[Skerðing v/ samtals]]+Launatafla[[#This Row],[Viðbót v/ tryggðra lágmarkslauna]]","v":0},{"$f":"+Launatafla[[#This Row],[Laun frá launagreiðanda]]+Launatafla[[#This Row],[Laun frá ríkissjóði]]","v":0},{"$f":"IFERROR(Launatafla[[#This Row],[Heildarlaun]]/Launatafla[[#This Row],[Meðal heildarlaun sl. 3M fyrir skatta]],0)","v":0}]
[null,null,null,null,null,null,null,null,{"$f":"+Launatafla[[#This Row],[Starfshlutfall fyrir]]-Launatafla[[#This Row],[Skerðing starfshlutfalls]]","v":0},{"$f":"+IF(OR(Launatafla[[#This Row],[Skerðing starfshlutfalls]]>Hámarkslækkun_starfshl,Launatafla[[#This Row],[Skerðing starfshlutfalls]]<Lágmarkslækkun_starfshl),0,Atvinnuleysisbætur*Launatafla[[#This Row],[Skerðing starfshlutfalls]])","v":0},{"$f":"IFERROR(Launatafla[[#This Row],[Meðal heildarlaun sl. 3M fyrir skatta]]/Launatafla[[#This Row],[Starfshlutfall fyrir]],0)*(Launatafla[[#This Row],[Starfshlutfall fyrir]]-Launatafla[[#This Row],[Skerðing starfshlutfalls]])","v":0},{"$f":"+Launatafla[[#This Row],[Atvinnuleysisbætur fyrir skerðingu]]+Launatafla[[#This Row],[Laun frá launagreiðanda]]","v":0},{"$f":"-MAX(Launatafla[[#This Row],[Laun með bótum án skerðingar]]-Launatafla[[#This Row],[Meðal heildarlaun sl. 3M fyrir skatta]]*Hámarkshlutfall_af_launum,0)","v":0},{"$f":"-MIN(MAX(Launatafla[[#This Row],[Laun með bótum án skerðingar]]-Hámarkslaun,0),Launatafla[[#This Row],[Atvinnuleysisbætur fyrir skerðingu]])","v":0},{"$f":"+MIN(Launatafla[[#This Row],[Skerðing v/ hámarkshlutfalls]:[Skerðing v/ hámarkslauna]])","v":0},{"$f":"+IF(Launatafla[[#This Row],[Atvinnuleysisbætur fyrir skerðingu]]=0,0,\nMAX(MIN(Lágmarkslaun_fullt_starf,Launatafla[[#This Row],[Meðal heildarlaun sl. 3M fyrir skatta]]/Launatafla[[#This Row],[Starfshlutfall fyrir]])*Launatafla[[#This Row],[Starfshlutfall fyrir]]-(Launatafla[[#This Row],[Laun frá launagreiðanda]]+Launatafla[[#This Row],[Atvinnuleysisbætur fyrir skerðingu]]+Launatafla[[#This Row],[Skerðing v/ samtals]]),0))","v":0},{"$f":"+Launatafla[[#This Row],[Atvinnuleysisbætur fyrir skerðingu]]+Launatafla[[#This Row],[Skerðing v/ samtals]]+Launatafla[[#This Row],[Viðbót v/ tryggðra lágmarkslauna]]","v":0},{"$f":"+Launatafla[[#This Row],[Laun frá launagreiðanda]]+Launatafla[[#This Row],[Laun frá ríkissjóði]]","v":0},{"$f":"IFERROR(Launatafla[[#This Row],[Heildarlaun]]/Launatafla[[#This Row],[Meðal heildarlaun sl. 3M fyrir skatta]],0)","v":0}]